Body,BodyName,ServiceLabel,ServiceDivisionLabel,ExpenditureCategory,DetailedExpenditureType,DetailedExpenditureCode,DatePaid,TransactionNumber,NetAmount,CapitalOrRevenue,SupplierName
http://statistics.data.gov.uk/doc/local-authority/00DA,Leeds City Council,Environment & Housing,Environmental Health,Capital,Construction,3,31-Jul-13,1307-00001,4257.24,C,A & P Crontractors Ltd
http://statistics.data.gov.uk/doc/local-authority/00DA,Leeds City Council,Childrens Services,Learning Skills & Universal,Third Party Payments,Services Rendered By Voluntary Sector,505,04-Jul-13,1307-00002,577.3,R,A E Speight
http://statistics.data.gov.uk/doc/local-authority/00DA,Leeds City Council,Childrens Services,Learning Skills & Universal,Third Party Payments,Services Rendered By Voluntary Sector,505,04-Jul-13,1307-00003,1425.8,R,A Foley
http://statistics.data.gov.uk/doc/local-authority/00DA,Leeds City Council,Childrens Services,Safeguarding Targeted & Specialist,Third Party Payments,Adoptions - Allowances,560,11-Jul-13,1307-00004,500,R,REDACTED PERSONAL DATA
http://statistics.data.gov.uk/doc/local-authority/00DA,Leeds City Council,Central & Corporate,Commercial Services Trading Services,Supplies and Services,Operational Materials,205,23-Jul-13,1307-00005,860.54,R,A J H  Pump Supply & Repair Ltd
http://statistics.data.gov.uk/doc/local-authority/00DA,Leeds City Council,Central & Corporate,Commercial Services Trading Services,Supplies and Services,Operational Materials,205,31-Jul-13,1307-00006,1831,R,A J H  Pump Supply & Repair Ltd
http://statistics.data.gov.uk/doc/local-authority/00DA,Leeds City Council,Central & Corporate,Commercial Services Trading Services,Supplies and Services,Operational Materials,205,12-Jul-13,1307-00007,4019,R,A J H  Pump Supply & Repair Ltd
http://statistics.data.gov.uk/doc/local-authority/00DA,Leeds City Council,Central & Corporate,Commercial Services Trading Services,Supplies and Services,Other Hired And Contracted Services,265,10-Jul-13,1307-00008,550.64,R,A J H  Pump Supply & Repair Ltd
http://statistics.data.gov.uk/doc/local-authority/00DA,Leeds City Council,Central & Corporate,Commercial Services Trading Services,Supplies and Services,Other Hired And Contracted Services,265,31-Jul-13,1307-00009,883,R,A J H  Pump Supply & Repair Ltd
http://statistics.data.gov.uk/doc/local-authority/00DA,Leeds City Council,Central & Corporate,Commercial Services Trading Services,Supplies and Services,Other Hired And Contracted Services,265,31-Jul-13,1307-00010,2900,R,A J H  Pump Supply & Repair Ltd
http://statistics.data.gov.uk/doc/local-authority/00DA,Leeds City Council,City Development,Economic Development,Supplies and Services,Resaleable Materials,204,09-Jul-13,1307-00011,1066.01,R,A J Promotions
http://statistics.data.gov.uk/doc/local-authority/00DA,Leeds City Council,Environment & Housing,Parks & Countryside,Supplies and Services,Resaleable Materials,204,26-Jul-13,1307-00012,553.25,R,A J Promotions
http://statistics.data.gov.uk/doc/local-authority/00DA,Leeds City Council,Childrens Services,Safeguarding Targeted & Specialist,Third Party Payments,General External Residential Placements,507,17-Jul-13,1307-00013,13000,R,A Lowrie Care Service Limited
http://statistics.data.gov.uk/doc/local-authority/00DA,Leeds City Council,Childrens Services,Safeguarding Targeted & Specialist,Third Party Payments,General External Residential Placements,507,17-Jul-13,1307-00014,14000,R,A Lowrie Care Service Limited
http://statistics.data.gov.uk/doc/local-authority/00DA,Leeds City Council,Central & Corporate,Support And Facilities General Fund,Supplies and Services,Other Hired And Contracted Services,265,11-Jul-13,1307-00015,424,R,A Maywell Ltd
http://statistics.data.gov.uk/doc/local-authority/00DA,Leeds City Council,Central & Corporate,Support And Facilities General Fund,Supplies and Services,Other Hired And Contracted Services,265,11-Jul-13,1307-00016,1087,R,A Maywell Ltd
http://statistics.data.gov.uk/doc/local-authority/00DA,Leeds City Council,Environment & Housing,Parks & Countryside,Supplies and Services,Other Hired And Contracted Services,265,05-Jul-13,1307-00017,1305.6,R,A Nicholls
http://statistics.data.gov.uk/doc/local-authority/00DA,Leeds City Council,Adult Social Care,Services For Older People Under 65 P/Dis,Transfer Payments,Direct Payments,626,03-Jul-13,1307-00018,1006.92,R,REDACTED PERSONAL DATA
http://statistics.data.gov.uk/doc/local-authority/00DA,Leeds City Council,Adult Social Care,Services For Older People Under 65 P/Dis,Transfer Payments,Direct Payments,626,31-Jul-13,1307-00019,1320.26,R,REDACTED PERSONAL DATA
http://statistics.data.gov.uk/doc/local-authority/00DA,Leeds City Council,Environment & Housing,Streetscene Environmental Services,Employees,Central Training,79,08-Jul-13,1307-00020,980,R,REDACTED PERSONAL DATA
http://statistics.data.gov.uk/doc/local-authority/00DA,Leeds City Council,Childrens Services,Learning Skills & Universal,Third Party Payments,Services Rendered By Voluntary Sector,505,04-Jul-13,1307-00021,900.01,R,A Walding
http://statistics.data.gov.uk/doc/local-authority/00DA,Leeds City Council,Adult Social Care,Services For Older People Under 65 P/Dis,Transfer Payments,Direct Payments,626,31-Jul-13,1307-00022,1384.16,R,REDACTED PERSONAL DATA
http://statistics.data.gov.uk/doc/local-authority/00DA,Leeds City Council,Adult Social Care,Services For Older People Under 65 P/Dis,Transfer Payments,Direct Payments,626,03-Jul-13,1307-00023,1926.73,R,REDACTED PERSONAL DATA
http://statistics.data.gov.uk/doc/local-authority/00DA,Leeds City Council,Environment & Housing,Statutory Housing,Supplies and Services,Other Hired And Contracted Services,265,12-Jul-13,1307-00024,530,R,Aa Joinery & Building
http://statistics.data.gov.uk/doc/local-authority/00DA,Leeds City Council,Adult Social Care,Services For Older People Under 65 P/Dis,Transfer Payments,Personalised Budgets,627,03-Jul-13,1307-00025,822.4,R,REDACTED PERSONAL DATA
http://statistics.data.gov.uk/doc/local-authority/00DA,Leeds City Council,Adult Social Care,Services For Older People Under 65 P/Dis,Transfer Payments,Personalised Budgets,627,31-Jul-13,1307-00026,822.4,R,REDACTED PERSONAL DATA
http://statistics.data.gov.uk/doc/local-authority/00DA,Leeds City Council as Accountable Body,Social Services Pooled Budgets,Leeds Community Equip Store Pooled Budgt,Supplies and Services,Other Equipment,203,03-Jul-13,1307-00027,910,R,Aat (Gb) Ltd
http://statistics.data.gov.uk/doc/local-authority/00DA,Leeds City Council,Adult Social Care,Services For Older People - 65 And Over,Third Party Payments,Residential Care Dementia,571,03-Jul-13,1307-00028,1142.2,R,Abbey Lea Residential Care Home
http://statistics.data.gov.uk/doc/local-authority/00DA,Leeds City Council,Adult Social Care,Services For Older People - 65 And Over,Third Party Payments,Residential Care Dementia,571,31-Jul-13,1307-00029,1142.2,R,Abbey Lea Residential Care Home
http://statistics.data.gov.uk/doc/local-authority/00DA,Leeds City Council,Adult Social Care,Services For Adults Under 65 Mental/Dis,Third Party Payments,Residential,580,03-Jul-13,1307-00030,1374.64,R,Abbeydale Care Home
http://statistics.data.gov.uk/doc/local-authority/00DA,Leeds City Council,Adult Social Care,Services For Older People - 65 And Over,Third Party Payments,Residential,580,03-Jul-13,1307-00031,1089.56,R,Abbeydale Residential Home
http://statistics.data.gov.uk/doc/local-authority/00DA,Leeds City Council,Adult Social Care,Services For Older People - 65 And Over,Third Party Payments,Residential,580,31-Jul-13,1307-00032,4574.62,R,Abbeydale Residential Home
http://statistics.data.gov.uk/doc/local-authority/00DA,Leeds City Council,Childrens Services,Learning Skills & Universal,Third Party Payments,Services Rendered By Other Organisations,511,04-Jul-13,1307-00033,1412.4,R,Abc Daycare
http://statistics.data.gov.uk/doc/local-authority/00DA,Leeds City Council,Childrens Services,Learning Skills & Universal,Third Party Payments,Services Rendered By Other Organisations,511,04-Jul-13,1307-00034,1863.97,R,Abc Nursery At Lufc
http://statistics.data.gov.uk/doc/local-authority/00DA,Leeds City Council,Adult Social Care,Services For Older People - 65 And Over,Third Party Payments,Nursing Home,570,31-Jul-13,1307-00035,8563.66,R,Aberford Hall
http://statistics.data.gov.uk/doc/local-authority/00DA,Leeds City Council,Adult Social Care,Services For Older People - 65 And Over,Third Party Payments,Residential,580,31-Jul-13,1307-00036,10803.72,R,Aberford Hall
http://statistics.data.gov.uk/doc/local-authority/00DA,Leeds City Council as Accountable Body,Social Services Pooled Budgets,Jcs For People With Learning Disabilitie,Transfer Payments,Personal Budgets,627,03-Jul-13,1307-00037,1480.81,R,REDACTED PERSONAL DATA
http://statistics.data.gov.uk/doc/local-authority/00DA,Leeds City Council as Accountable Body,Social Services Pooled Budgets,Jcs For People With Learning Disabilitie,Transfer Payments,Personal Budgets,627,31-Jul-13,1307-00038,1835.48,R,REDACTED PERSONAL DATA
http://statistics.data.gov.uk/doc/local-authority/00DA,East - North East ,East - North East,Construction Services  ,Supplies and Services,Other Hired And Contracted Services,265,20-Jun-13,1307-00039,3530.54,R,Able Bathing
http://statistics.data.gov.uk/doc/local-authority/00DA,East - North East ,East - North East,Construction Services  ,Supplies and Services,Other Hired And Contracted Services,265,20-Jun-13,1307-00040,4238.93,R,Able Bathing
http://statistics.data.gov.uk/doc/local-authority/00DA,Leeds City Council,Environment & Housing,Environmental Health,Capital,Construction,3,03-Jul-13,1307-00041,1587.68,C,Able Bathing & Building Contractors Ltd
http://statistics.data.gov.uk/doc/local-authority/00DA,Leeds City Council,Environment & Housing,Environmental Health,Capital,Construction,3,03-Jul-13,1307-00042,2890,C,Able Bathing & Building Contractors Ltd
http://statistics.data.gov.uk/doc/local-authority/00DA,Leeds City Council,Environment & Housing,Environmental Health,Capital,Construction,3,03-Jul-13,1307-00043,4150,C,Able Bathing & Building Contractors Ltd
http://statistics.data.gov.uk/doc/local-authority/00DA,Leeds City Council,Environment & Housing,Environmental Health,Capital,Construction,3,19-Jul-13,1307-00044,4150,C,Able Bathing & Building Contractors Ltd
http://statistics.data.gov.uk/doc/local-authority/00DA,Leeds City Council,Environment & Housing,Environmental Health,Capital,Construction,3,10-Jul-13,1307-00045,4150,C,Able Bathing & Building Contractors Ltd
http://statistics.data.gov.uk/doc/local-authority/00DA,Leeds City Council,Environment & Housing,Environmental Health,Capital,Construction,3,19-Jul-13,1307-00046,4150,C,Able Bathing & Building Contractors Ltd
http://statistics.data.gov.uk/doc/local-authority/00DA,Leeds City Council,Environment & Housing,Environmental Health,Capital,Construction,3,18-Jul-13,1307-00047,4150,C,Able Bathing & Building Contractors Ltd
http://statistics.data.gov.uk/doc/local-authority/00DA,Leeds City Council,Environment & Housing,Environmental Health,Capital,Construction,3,22-Jul-13,1307-00048,4437.5,C,Able Bathing & Building Contractors Ltd
http://statistics.data.gov.uk/doc/local-authority/00DA,Leeds City Council,Environment & Housing,Environmental Health,Capital,Construction,3,24-Jul-13,1307-00049,4437.5,C,Able Bathing & Building Contractors Ltd
http://statistics.data.gov.uk/doc/local-authority/00DA,Leeds City Council,Environment & Housing,Environmental Health,Capital,Construction,3,10-Jul-13,1307-00050,4437.5,C,Able Bathing & Building Contractors Ltd
http://statistics.data.gov.uk/doc/local-authority/00DA,Leeds City Council,Environment & Housing,Environmental Health,Capital,Construction,3,01-Jul-13,1307-00051,4720,C,Able Bathing & Building Contractors Ltd
http://statistics.data.gov.uk/doc/local-authority/00DA,Leeds City Council,Environment & Housing,Environmental Health,Capital,Construction,3,03-Jul-13,1307-00052,4770,C,Able Bathing & Building Contractors Ltd
http://statistics.data.gov.uk/doc/local-authority/00DA,Leeds City Council,Environment & Housing,Environmental Health,Capital,Construction,3,18-Jul-13,1307-00053,6560,C,Able Bathing & Building Contractors Ltd
http://statistics.data.gov.uk/doc/local-authority/00DA,Leeds City Council,Environment & Housing,Environmental Health,Capital,Construction,3,18-Jul-13,1307-00054,8000,C,Able Bathing & Building Contractors Ltd
http://statistics.data.gov.uk/doc/local-authority/00DA,Leeds City Council,Environment & Housing,Environmental Health,Capital,Construction,3,03-Jul-13,1307-00055,10000,C,Able Bathing & Building Contractors Ltd
http://statistics.data.gov.uk/doc/local-authority/00DA,Leeds City Council,Childrens Services,Learning Skills & Universal,Third Party Payments,Services Rendered By Other Organisations,511,05-Jul-13,1307-00056,640.64,R,Academic Appointments Ltd
http://statistics.data.gov.uk/doc/local-authority/00DA,Leeds City Council,Childrens Services,Safeguarding Targeted & Specialist,Employees,Agency Staff,8,26-Jul-13,1307-00057,6736.24,R,Academic Appointments Ltd
http://statistics.data.gov.uk/doc/local-authority/00DA,Leeds City Council,Childrens Services,Safeguarding Targeted & Specialist,Employees,Agency Staff,8,24-Jul-13,1307-00058,7276.46,R,Academic Appointments Ltd
http://statistics.data.gov.uk/doc/local-authority/00DA,Leeds City Council,Childrens Services,Safeguarding Targeted & Specialist,Employees,Agency Staff,8,12-Jul-13,1307-00059,7433.43,R,Academic Appointments Ltd
http://statistics.data.gov.uk/doc/local-authority/00DA,Leeds City Council,Adult Social Care,Services For Adults Under 65 Learn/Dis,Premises,Rents,141,17-Jul-13,1307-00060,8643.9,R,Accent Foundation
http://statistics.data.gov.uk/doc/local-authority/00DA,Leeds City Council,Central & Corporate,Executive Support,Supplies and Services,Computer Software & Equipment,214,18-Jul-13,1307-00061,14950,R,Access Intelligence Media And
http://statistics.data.gov.uk/doc/local-authority/00DA,Leeds City Council,Environment & Housing,Parks & Countryside,Supplies and Services,Operational Furniture And Equipment,203,12-Jul-13,1307-00062,1200,R,Acm
http://statistics.data.gov.uk/doc/local-authority/00DA,Leeds City Council,Childrens Services,Learning Skills & Universal,Third Party Payments,Services Rendered By Voluntary Sector,505,01-Jul-13,1307-00063,1535.37,R,Acorns Nursery
http://statistics.data.gov.uk/doc/local-authority/00DA,Leeds City Council,Childrens Services,Learning Skills & Universal,Third Party Payments,Services Rendered By Other Organisations,511,04-Jul-13,1307-00064,2636.75,R,Acorns Nursery
http://statistics.data.gov.uk/doc/local-authority/00DA,Leeds City Council,Adult Social Care,Services For Adults Under 65 Mental/Dis,Third Party Payments,Residential,580,03-Jul-13,1307-00065,1718.12,R,Acre Green
http://statistics.data.gov.uk/doc/local-authority/00DA,Leeds City Council,Adult Social Care,Services For Adults Under 65 Mental/Dis,Third Party Payments,Residential,580,31-Jul-13,1307-00066,3032.36,R,Acre Green
http://statistics.data.gov.uk/doc/local-authority/00DA,Leeds City Council,Adult Social Care,Services For Adults Under 65 Mental/Dis,Third Party Payments,Residential,580,25-Jul-13,1307-00067,10544.48,R,Acre Green
http://statistics.data.gov.uk/doc/local-authority/00DA,Leeds City Council,Adult Social Care,Services For Older People - 65 And Over,Third Party Payments,Nursing Home,570,31-Jul-13,1307-00068,13872,R,Acre Green
http://statistics.data.gov.uk/doc/local-authority/00DA,Leeds City Council,Adult Social Care,Services For Older People - 65 And Over,Third Party Payments,Nursing Home,570,03-Jul-13,1307-00069,14477.36,R,Acre Green
http://statistics.data.gov.uk/doc/local-authority/00DA,Leeds City Council,Adult Social Care,Services For Older People - 65 And Over,Third Party Payments,Nursing Care Dementia,574,31-Jul-13,1307-00070,1824.68,R,Acre Green
http://statistics.data.gov.uk/doc/local-authority/00DA,Leeds City Council,Adult Social Care,Services For Older People - 65 And Over,Third Party Payments,Nursing Care Dementia,574,03-Jul-13,1307-00071,1824.68,R,Acre Green
http://statistics.data.gov.uk/doc/local-authority/00DA,Leeds City Council,Adult Social Care,Services For Older People - 65 And Over,Third Party Payments,Residential,580,03-Jul-13,1307-00072,16526.2,R,Acre Green
http://statistics.data.gov.uk/doc/local-authority/00DA,Leeds City Council,Adult Social Care,Services For Older People - 65 And Over,Third Party Payments,Residential,580,31-Jul-13,1307-00073,16691.63,R,Acre Green
http://statistics.data.gov.uk/doc/local-authority/00DA,Leeds City Council,Adult Social Care,Services For Older People Under 65 P/Dis,Third Party Payments,Nursing Home,570,31-Jul-13,1307-00074,1633.48,R,Acre Green
http://statistics.data.gov.uk/doc/local-authority/00DA,Leeds City Council,Adult Social Care,Services For Older People Under 65 P/Dis,Third Party Payments,Nursing Home,570,03-Jul-13,1307-00075,1633.48,R,Acre Green
http://statistics.data.gov.uk/doc/local-authority/00DA,Leeds City Council,Childrens Services,Learning Skills & Universal,Third Party Payments,Services Rendered By Other Organisations,511,10-Jul-13,1307-00076,740.41,R,Acre Wood Day Nursery
http://statistics.data.gov.uk/doc/local-authority/00DA,Leeds City Council,Childrens Services,Learning Skills & Universal,Third Party Payments,Services Rendered By Other Organisations,511,04-Jul-13,1307-00077,1156.66,R,Acre Wood Day Nursery
http://statistics.data.gov.uk/doc/local-authority/00DA,Leeds City Council,Childrens Services,Safeguarding Targeted & Specialist,Third Party Payments,Independent Fostering Agencies,509,11-Jul-13,1307-00078,4620,R,Action For Children
http://statistics.data.gov.uk/doc/local-authority/00DA,Leeds City Council,Childrens Services,Safeguarding Targeted & Specialist,Third Party Payments,Independent Fostering Agencies,509,11-Jul-13,1307-00079,4864.2,R,Action For Children
http://statistics.data.gov.uk/doc/local-authority/00DA,Leeds City Council,Childrens Services,Safeguarding Targeted & Specialist,Third Party Payments,Independent Fostering Agencies,509,23-Jul-13,1307-00080,-4820.49,R,Action For Children Services Ltd
http://statistics.data.gov.uk/doc/local-authority/00DA,Leeds City Council,Childrens Services,Safeguarding Targeted & Specialist,Third Party Payments,Independent Fostering Agencies,509,23-Jul-13,1307-00081,6116.42,R,Action For Children Services Ltd
http://statistics.data.gov.uk/doc/local-authority/00DA,Leeds City Council,Childrens Services,Safeguarding Targeted & Specialist,Third Party Payments,Independent Fostering Agencies,509,31-Jul-13,1307-00082,7611.3,R,Action For Children Services Ltd
http://statistics.data.gov.uk/doc/local-authority/00DA,Leeds City Council,Childrens Services,Safeguarding Targeted & Specialist,Third Party Payments,Independent Fostering Agencies,509,23-Jul-13,1307-00083,7865.01,R,Action For Children Services Ltd
http://statistics.data.gov.uk/doc/local-authority/00DA,Leeds City Council,Adult Social Care,Social Services Support Services,Third Party Payments,Payments To Voluntary Organisations,561,01-Jul-13,1307-00084,21005.5,R,Action For Gipton Elderly
http://statistics.data.gov.uk/doc/local-authority/00DA,Leeds City Council,Childrens Services,Learning Skills & Universal,Third Party Payments,Services Rendered By Other Organisations,511,04-Jul-13,1307-00085,840.76,R,Active Kids Day Nursery
http://statistics.data.gov.uk/doc/local-authority/00DA,Leeds City Council,Environment & Housing,Parks & Countryside,Supplies and Services,Resaleable Materials,204,04-Jul-13,1307-00086,473.25,R,Acushnet Europe Limited
http://statistics.data.gov.uk/doc/local-authority/00DA,Leeds City Council,Environment & Housing,Parks & Countryside,Supplies and Services,Bought In Professional Services,277,30-Jul-13,1307-00087,6845.6,R,REDACTED COMMERCIAL CONFIDENTIALITY
http://statistics.data.gov.uk/doc/local-authority/00DA,Leeds City Council,Adult Social Care,Services For Older People - 65 And Over,Transfer Payments,Personalised Budgets,627,31-Jul-13,1307-00088,1851,R,REDACTED PERSONAL DATA
http://statistics.data.gov.uk/doc/local-authority/00DA,Leeds City Council,Adult Social Care,Services For Older People Under 65 P/Dis,Transfer Payments,Personalised Budgets,627,31-Jul-13,1307-00089,717.28,R,REDACTED PERSONAL DATA
http://statistics.data.gov.uk/doc/local-authority/00DA,Leeds City Council,Adult Social Care,Services For Older People Under 65 P/Dis,Transfer Payments,Personalised Budgets,627,03-Jul-13,1307-00090,717.28,R,REDACTED PERSONAL DATA
http://statistics.data.gov.uk/doc/local-authority/00DA,Leeds City Council as Accountable Body,Social Services Pooled Budgets,Jcs For People With Learning Disabilitie,Transfer Payments,Asylum Seekers,626,31-Jul-13,1307-00091,1570.68,R,REDACTED PERSONAL DATA
http://statistics.data.gov.uk/doc/local-authority/00DA,Leeds City Council as Accountable Body,Social Services Pooled Budgets,Jcs For People With Learning Disabilitie,Transfer Payments,Asylum Seekers,626,03-Jul-13,1307-00092,2456.37,R,REDACTED PERSONAL DATA
http://statistics.data.gov.uk/doc/local-authority/00DA,Leeds City Council,Adult Social Care,Services For Adults Under 65 Mental/Dis,Transfer Payments,Direct Payments,626,03-Jul-13,1307-00093,444.4,R,REDACTED PERSONAL DATA
http://statistics.data.gov.uk/doc/local-authority/00DA,Leeds City Council,Adult Social Care,Services For Adults Under 65 Mental/Dis,Transfer Payments,Direct Payments,626,31-Jul-13,1307-00094,444.4,R,REDACTED PERSONAL DATA
http://statistics.data.gov.uk/doc/local-authority/00DA,Leeds City Council,Adult Social Care,Services For Older People Under 65 P/Dis,Transfer Payments,Direct Payments,626,03-Jul-13,1307-00095,877.2,R,REDACTED PERSONAL DATA
http://statistics.data.gov.uk/doc/local-authority/00DA,Leeds City Council,Adult Social Care,Services For Older People Under 65 P/Dis,Transfer Payments,Direct Payments,626,31-Jul-13,1307-00096,877.2,R,REDACTED PERSONAL DATA
http://statistics.data.gov.uk/doc/local-authority/00DA,Leeds City Council as Accountable Body,Social Services Pooled Budgets,Jcs For People With Learning Disabilitie,Transfer Payments,Asylum Seekers,626,03-Jul-13,1307-00097,1129.6,R,REDACTED PERSONAL DATA
http://statistics.data.gov.uk/doc/local-authority/00DA,Leeds City Council as Accountable Body,Social Services Pooled Budgets,Jcs For People With Learning Disabilitie,Transfer Payments,Asylum Seekers,626,31-Jul-13,1307-00098,1129.6,R,REDACTED PERSONAL DATA
http://statistics.data.gov.uk/doc/local-authority/00DA,Leeds City Council,Childrens Services,Safeguarding Targeted & Specialist,Support Services,Legal Disbursements,411,19-Jul-13,1307-00099,725,R,Adam Wolanski
http://statistics.data.gov.uk/doc/local-authority/00DA,Leeds City Council,Childrens Services,Partnership Development & Leadership,Supplies and Services,Memberships,226,04-Jul-13,1307-00100,3135,R,Adcs
http://statistics.data.gov.uk/doc/local-authority/00DA,Leeds City Council,Central & Corporate,Public Health,Third Party Payments,Public Health Commissioned Services,526,31-Jul-13,1307-00101,86750,R,Addiction Dependency Solutions
http://statistics.data.gov.uk/doc/local-authority/00DA,Leeds City Council,Strategic Accounts,Miscellaneous,Supplies and Services,Other Hired And Contracted Services,265,02-Jul-13,1307-00102,1714.5,R,Addleshaw Goddard
http://statistics.data.gov.uk/doc/local-authority/00DA,West - North West,West - North West,Customer And Tenancy,Premises,H.R.A. - Special Maintenance,106,25-Jul-13,1307-00103,498.68,R,Adel Association
http://statistics.data.gov.uk/doc/local-authority/00DA,Leeds City Council,Childrens Services,Learning Skills & Universal,Third Party Payments,Services Rendered By Voluntary Sector,505,01-Jul-13,1307-00104,628.11,R,Adel Pre School
http://statistics.data.gov.uk/doc/local-authority/00DA,Leeds City Council,Childrens Services,Learning Skills & Universal,Third Party Payments,Services Rendered By Voluntary Sector,505,04-Jul-13,1307-00105,1833.76,R,Adel Pre School
http://statistics.data.gov.uk/doc/local-authority/00DA,Leeds City Council,Adult Social Care,Services For Older People Under 65 P/Dis,Transfer Payments,Personalised Budgets,627,31-Jul-13,1307-00106,1866.32,R,REDACTED PERSONAL DATA
http://statistics.data.gov.uk/doc/local-authority/00DA,Leeds City Council,Adult Social Care,Services For Older People Under 65 P/Dis,Transfer Payments,Personalised Budgets,627,02-Jul-13,1307-00107,8517.44,R,REDACTED PERSONAL DATA
http://statistics.data.gov.uk/doc/local-authority/00DA,Leeds City Council,Adult Social Care,Services For Older People Under 65 P/Dis,Transfer Payments,Personalised Budgets,627,10-Jul-13,1307-00108,8517.44,R,REDACTED PERSONAL DATA
http://statistics.data.gov.uk/doc/local-authority/00DA,Leeds City Council,Adult Social Care,Services For Older People - 65 And Over,Third Party Payments,Residential Care Dementia,571,31-Jul-13,1307-00109,3129.4,R,Aden House
http://statistics.data.gov.uk/doc/local-authority/00DA,Leeds City Council,Central & Corporate,Commercial Services Trading Services,Supplies and Services,Other Hired And Contracted Services,265,04-Jul-13,1307-00110,432.5,R,Admas Limited
http://statistics.data.gov.uk/doc/local-authority/00DA,Leeds City Council,Childrens Services,Safeguarding Targeted & Specialist,Third Party Payments,Adoptions - Allowances,560,05-Jul-13,1307-00111,1194.42,R,Adoption Matters Northwest
http://statistics.data.gov.uk/doc/local-authority/00DA,Leeds City Council,Childrens Services,Safeguarding Targeted & Specialist,Third Party Payments,Payments To Voluntary Organisations,561,31-Jul-13,1307-00112,550,R,Adoption Uk
http://statistics.data.gov.uk/doc/local-authority/00DA,Leeds City Council,Central & Corporate Functions,Support And Facilities General Fund  ,Supplies and Services,Security Services (Non Infrastructure),262,25-Jun-13,1307-00113,619.34,R,Adt Belfast Cc
http://statistics.data.gov.uk/doc/local-authority/00DA,Leeds City Council,Adult Social Care,Assessment And Care Management,Premises,Premises Security Services,162,25-Jul-13,1307-00114,1068.81,R,Adt Fire And Security
http://statistics.data.gov.uk/doc/local-authority/00DA,Leeds City Council,City Development,Asset Management Services,Premises,Maintenance Of Buildings,101,02-Jul-13,1307-00115,1295.12,R,Adt Fire And Security
http://statistics.data.gov.uk/doc/local-authority/00DA,Leeds City Council,City Development,Asset Management Services,Premises,Maintenance Of Buildings,101,17-Jul-13,1307-00116,1557,R,Adt Fire And Security
http://statistics.data.gov.uk/doc/local-authority/00DA,Leeds City Council,City Development,Libraries  Arts & Heritage,Premises,Premises Security Services,162,10-Jul-13,1307-00117,985.2,R,Adt Fire And Security
http://statistics.data.gov.uk/doc/local-authority/00DA,East - North East  ,East - North East,Construction Services,Supplies and Services,Other Hired And Contracted Services,265,08-Jul-13,1307-00118,532,R,Adult Placement Services
http://statistics.data.gov.uk/doc/local-authority/00DA,Leeds City Council as Accountable Body,Social Services Pooled Budgets,Jcs For People With Learning Disabilitie,Third Party Payments,Home Care,568,05-Jul-13,1307-00119,565,R,Adult Placement Services
http://statistics.data.gov.uk/doc/local-authority/00DA,Leeds City Council as Accountable Body,Social Services Pooled Budgets,Jcs For People With Learning Disabilitie,Third Party Payments,Home Care,568,19-Jul-13,1307-00120,1332.2,R,Adult Placement Services
http://statistics.data.gov.uk/doc/local-authority/00DA,Leeds City Council,Adult Social Care,Services For Adults Under 65 Mental/Dis,Third Party Payments,Nursing Home,570,31-Jul-13,1307-00121,1549.8,R,Adult Supported Living Ltd
http://statistics.data.gov.uk/doc/local-authority/00DA,Leeds City Council,Adult Social Care,Services For Adults Under 65 Mental/Dis,Third Party Payments,Nursing Home,570,03-Jul-13,1307-00122,1549.8,R,Adult Supported Living Ltd
http://statistics.data.gov.uk/doc/local-authority/00DA,Leeds City Council,Childrens Services,Safeguarding Targeted & Specialist,Third Party Payments,General External Residential Placements,507,01-Jul-13,1307-00123,-2214.33,R,Advanced Childcare Limited
http://statistics.data.gov.uk/doc/local-authority/00DA,Leeds City Council,Childrens Services,Safeguarding Targeted & Specialist,Third Party Payments,General External Residential Placements,507,01-Jul-13,1307-00124,-2142.9,R,Advanced Childcare Limited
http://statistics.data.gov.uk/doc/local-authority/00DA,Leeds City Council,Childrens Services,Safeguarding Targeted & Specialist,Third Party Payments,General External Residential Placements,507,17-Jul-13,1307-00125,10628.66,R,Advanced Childcare Limited
http://statistics.data.gov.uk/doc/local-authority/00DA,Leeds City Council,Childrens Services,Safeguarding Targeted & Specialist,Third Party Payments,General External Residential Placements,507,17-Jul-13,1307-00126,11514.33,R,Advanced Childcare Limited
http://statistics.data.gov.uk/doc/local-authority/00DA,Leeds City Council,Childrens Services,Safeguarding Targeted & Specialist,Third Party Payments,General External Residential Placements,507,17-Jul-13,1307-00127,12842.99,R,Advanced Childcare Limited
http://statistics.data.gov.uk/doc/local-authority/00DA,Leeds City Council,Childrens Services,Safeguarding Targeted & Specialist,Third Party Payments,General External Residential Placements,507,17-Jul-13,1307-00128,16828.66,R,Advanced Childcare Limited
http://statistics.data.gov.uk/doc/local-authority/00DA,Leeds City Council,Childrens Services,Safeguarding Targeted & Specialist,Third Party Payments,General External Residential Placements,507,17-Jul-13,1307-00129,19928.66,R,Advanced Childcare Limited
http://statistics.data.gov.uk/doc/local-authority/00DA,Leeds City Council,Childrens Services,Safeguarding Targeted & Specialist,Third Party Payments,General External Residential Placements,507,15-Jul-13,1307-00130,21921.34,R,Advanced Childcare Limited
http://statistics.data.gov.uk/doc/local-authority/00DA,Leeds City Council,Childrens Services,Safeguarding Targeted & Specialist,Third Party Payments,General External Residential Placements,507,02-Jul-13,1307-00131,21921.34,R,Advanced Childcare Limited
http://statistics.data.gov.uk/doc/local-authority/00DA,Leeds City Council,Childrens Services,Safeguarding Targeted & Specialist,Third Party Payments,Independent Fostering Agencies,509,01-Jul-13,1307-00132,-2829.6,R,Advanced Childcare Limited
http://statistics.data.gov.uk/doc/local-authority/00DA,Leeds City Council,Childrens Services,Safeguarding Targeted & Specialist,Third Party Payments,Independent Fostering Agencies,509,01-Jul-13,1307-00133,-660.24,R,Advanced Childcare Limited
http://statistics.data.gov.uk/doc/local-authority/00DA,Leeds City Council,Childrens Services,Safeguarding Targeted & Specialist,Third Party Payments,Independent Fostering Agencies,509,15-Jul-13,1307-00134,-605.12,R,Advanced Childcare Limited
http://statistics.data.gov.uk/doc/local-authority/00DA,Leeds City Council,Childrens Services,Safeguarding Targeted & Specialist,Third Party Payments,Independent Fostering Agencies,509,15-Jul-13,1307-00135,-601.46,R,Advanced Childcare Limited
http://statistics.data.gov.uk/doc/local-authority/00DA,Leeds City Council,Childrens Services,Safeguarding Targeted & Specialist,Third Party Payments,Independent Fostering Agencies,509,01-Jul-13,1307-00136,428.56,R,Advanced Childcare Limited
http://statistics.data.gov.uk/doc/local-authority/00DA,Leeds City Council,Childrens Services,Safeguarding Targeted & Specialist,Third Party Payments,Independent Fostering Agencies,509,19-Jul-13,1307-00137,2923.92,R,Advanced Childcare Limited
http://statistics.data.gov.uk/doc/local-authority/00DA,Leeds City Council,Childrens Services,Safeguarding Targeted & Specialist,Third Party Payments,Independent Fostering Agencies,509,19-Jul-13,1307-00138,2923.92,R,Advanced Childcare Limited
http://statistics.data.gov.uk/doc/local-authority/00DA,Leeds City Council,Childrens Services,Safeguarding Targeted & Specialist,Third Party Payments,Independent Fostering Agencies,509,19-Jul-13,1307-00139,2989.33,R,Advanced Childcare Limited
http://statistics.data.gov.uk/doc/local-authority/00DA,Leeds City Council,Childrens Services,Safeguarding Targeted & Specialist,Third Party Payments,Independent Fostering Agencies,509,01-Jul-13,1307-00140,2999.92,R,Advanced Childcare Limited
http://statistics.data.gov.uk/doc/local-authority/00DA,Leeds City Council,Childrens Services,Safeguarding Targeted & Specialist,Third Party Payments,Independent Fostering Agencies,509,01-Jul-13,1307-00141,3077.99,R,Advanced Childcare Limited
http://statistics.data.gov.uk/doc/local-authority/00DA,Leeds City Council,Childrens Services,Safeguarding Targeted & Specialist,Third Party Payments,Independent Fostering Agencies,509,09-Jul-13,1307-00142,3214.2,R,Advanced Childcare Limited
http://statistics.data.gov.uk/doc/local-authority/00DA,Leeds City Council,Childrens Services,Safeguarding Targeted & Specialist,Third Party Payments,Independent Fostering Agencies,509,01-Jul-13,1307-00143,3321.34,R,Advanced Childcare Limited
http://statistics.data.gov.uk/doc/local-authority/00DA,Leeds City Council,Childrens Services,Safeguarding Targeted & Specialist,Third Party Payments,Independent Fostering Agencies,509,19-Jul-13,1307-00144,3321.34,R,Advanced Childcare Limited
http://statistics.data.gov.uk/doc/local-authority/00DA,Leeds City Council as Accountable Body,Social Services Pooled Budgets,Jcs For People With Learning Disabilitie,Third Party Payments,Home Care,568,29-Jul-13,1307-00145,-732.32,R,Advantage Healthcare Group Ltd
http://statistics.data.gov.uk/doc/local-authority/00DA,Leeds City Council as Accountable Body,Social Services Pooled Budgets,Jcs For People With Learning Disabilitie,Third Party Payments,Home Care,568,01-Jul-13,1307-00146,-580.03,R,Advantage Healthcare Group Ltd
http://statistics.data.gov.uk/doc/local-authority/00DA,Leeds City Council as Accountable Body,Social Services Pooled Budgets,Jcs For People With Learning Disabilitie,Third Party Payments,Home Care,568,29-Jul-13,1307-00147,-458.46,R,Advantage Healthcare Group Ltd
http://statistics.data.gov.uk/doc/local-authority/00DA,Leeds City Council as Accountable Body,Social Services Pooled Budgets,Jcs For People With Learning Disabilitie,Third Party Payments,Home Care,568,18-Jul-13,1307-00148,468.32,R,Advantage Healthcare Group Ltd
http://statistics.data.gov.uk/doc/local-authority/00DA,Leeds City Council as Accountable Body,Social Services Pooled Budgets,Jcs For People With Learning Disabilitie,Third Party Payments,Home Care,568,05-Jul-13,1307-00149,603.45,R,Advantage Healthcare Group Ltd
http://statistics.data.gov.uk/doc/local-authority/00DA,Leeds City Council as Accountable Body,Social Services Pooled Budgets,Jcs For People With Learning Disabilitie,Third Party Payments,Home Care,568,12-Jul-13,1307-00150,617.28,R,Advantage Healthcare Group Ltd
http://statistics.data.gov.uk/doc/local-authority/00DA,Leeds City Council as Accountable Body,Social Services Pooled Budgets,Jcs For People With Learning Disabilitie,Third Party Payments,Home Care,568,18-Jul-13,1307-00151,2030.01,R,Advantage Healthcare Group Ltd
http://statistics.data.gov.uk/doc/local-authority/00DA,Leeds City Council as Accountable Body,Social Services Pooled Budgets,Jcs For People With Learning Disabilitie,Third Party Payments,Home Care,568,02-Jul-13,1307-00152,2237.45,R,Advantage Healthcare Group Ltd
http://statistics.data.gov.uk/doc/local-authority/00DA,Leeds City Council as Accountable Body,Social Services Pooled Budgets,Jcs For People With Learning Disabilitie,Third Party Payments,Home Care,568,01-Jul-13,1307-00153,2428.42,R,Advantage Healthcare Group Ltd
http://statistics.data.gov.uk/doc/local-authority/00DA,Leeds City Council as Accountable Body,Social Services Pooled Budgets,Jcs For People With Learning Disabilitie,Third Party Payments,Home Care,568,05-Jul-13,1307-00154,2676.08,R,Advantage Healthcare Group Ltd
http://statistics.data.gov.uk/doc/local-authority/00DA,Leeds City Council as Accountable Body,Social Services Pooled Budgets,Jcs For People With Learning Disabilitie,Third Party Payments,Home Care,568,30-Jul-13,1307-00155,2930.88,R,Advantage Healthcare Group Ltd
http://statistics.data.gov.uk/doc/local-authority/00DA,Leeds City Council as Accountable Body,Social Services Pooled Budgets,Jcs For People With Learning Disabilitie,Third Party Payments,Home Care,568,23-Jul-13,1307-00156,2967.33,R,Advantage Healthcare Group Ltd
http://statistics.data.gov.uk/doc/local-authority/00DA,Leeds City Council as Accountable Body,Social Services Pooled Budgets,Jcs For People With Learning Disabilitie,Third Party Payments,Home Care,568,29-Jul-13,1307-00157,2973.62,R,Advantage Healthcare Group Ltd
http://statistics.data.gov.uk/doc/local-authority/00DA,Leeds City Council as Accountable Body,Social Services Pooled Budgets,Jcs For People With Learning Disabilitie,Third Party Payments,Home Care,568,30-Jul-13,1307-00158,3095.82,R,Advantage Healthcare Group Ltd
http://statistics.data.gov.uk/doc/local-authority/00DA,Leeds City Council as Accountable Body,Social Services Pooled Budgets,Jcs For People With Learning Disabilitie,Third Party Payments,Home Care,568,29-Jul-13,1307-00159,3111.96,R,Advantage Healthcare Group Ltd
http://statistics.data.gov.uk/doc/local-authority/00DA,Leeds City Council as Accountable Body,Social Services Pooled Budgets,Jcs For People With Learning Disabilitie,Third Party Payments,Home Care,568,02-Jul-13,1307-00160,3133.74,R,Advantage Healthcare Group Ltd
http://statistics.data.gov.uk/doc/local-authority/00DA,Leeds City Council as Accountable Body,Social Services Pooled Budgets,Jcs For People With Learning Disabilitie,Third Party Payments,Home Care,568,30-Jul-13,1307-00161,3164.54,R,Advantage Healthcare Group Ltd
http://statistics.data.gov.uk/doc/local-authority/00DA,Leeds City Council as Accountable Body,Social Services Pooled Budgets,Jcs For People With Learning Disabilitie,Third Party Payments,Home Care,568,30-Jul-13,1307-00162,3258.42,R,Advantage Healthcare Group Ltd
http://statistics.data.gov.uk/doc/local-authority/00DA,Leeds City Council as Accountable Body,Social Services Pooled Budgets,Jcs For People With Learning Disabilitie,Third Party Payments,Home Care,568,02-Jul-13,1307-00163,3275.46,R,Advantage Healthcare Group Ltd
http://statistics.data.gov.uk/doc/local-authority/00DA,Leeds City Council as Accountable Body,Social Services Pooled Budgets,Jcs For People With Learning Disabilitie,Third Party Payments,Home Care,568,29-Jul-13,1307-00164,3570.14,R,Advantage Healthcare Group Ltd
http://statistics.data.gov.uk/doc/local-authority/00DA,Leeds City Council as Accountable Body,Social Services Pooled Budgets,Jcs For People With Learning Disabilitie,Third Party Payments,Home Care,568,01-Jul-13,1307-00165,3627.33,R,Advantage Healthcare Group Ltd
http://statistics.data.gov.uk/doc/local-authority/00DA,Leeds City Council as Accountable Body,Social Services Pooled Budgets,Jcs For People With Learning Disabilitie,Third Party Payments,Home Care,568,12-Jul-13,1307-00166,4021.94,R,Advantage Healthcare Group Ltd
http://statistics.data.gov.uk/doc/local-authority/00DA,Leeds City Council as Accountable Body,Social Services Pooled Budgets,Jcs For People With Learning Disabilitie,Third Party Payments,Home Care,568,02-Jul-13,1307-00167,4094,R,Advantage Healthcare Group Ltd
http://statistics.data.gov.uk/doc/local-authority/00DA,Leeds City Council as Accountable Body,Social Services Pooled Budgets,Jcs For People With Learning Disabilitie,Third Party Payments,Residential,580,03-Jul-13,1307-00168,20332.4,R,Advitam Ltd
http://statistics.data.gov.uk/doc/local-authority/00DA,Leeds City Council as Accountable Body,Social Services Pooled Budgets,Jcs For People With Learning Disabilitie,Third Party Payments,Residential,580,31-Jul-13,1307-00169,20332.4,R,Advitam Ltd
http://statistics.data.gov.uk/doc/local-authority/00DA,Leeds City Council,Adult Social Care,Social Services Support Services,Third Party Payments,Payments To Voluntary Organisations,561,17-Jul-13,1307-00170,90446.46,R,Advonet
http://statistics.data.gov.uk/doc/local-authority/00DA,Leeds City Council,Adult Social Care,Services For Older People - 65 And Over,Third Party Payments,Home Care,568,11-Jul-13,1307-00171,1076.48,R,Affinity Trust
http://statistics.data.gov.uk/doc/local-authority/00DA,Leeds City Council,Adult Social Care,Services For Older People Under 65 P/Dis,Third Party Payments,Home Care,568,11-Jul-13,1307-00172,447.44,R,Affinity Trust
http://statistics.data.gov.uk/doc/local-authority/00DA,Leeds City Council,Adult Social Care,Services For Older People Under 65 P/Dis,Third Party Payments,Home Care,568,17-Jul-13,1307-00173,658.35,R,Affinity Trust
http://statistics.data.gov.uk/doc/local-authority/00DA,Leeds City Council,Adult Social Care,Services For Older People Under 65 P/Dis,Third Party Payments,Home Care,568,11-Jul-13,1307-00174,777.84,R,Affinity Trust
http://statistics.data.gov.uk/doc/local-authority/00DA,Leeds City Council,Adult Social Care,Services For Older People Under 65 P/Dis,Third Party Payments,Home Care,568,11-Jul-13,1307-00175,946.62,R,Affinity Trust
http://statistics.data.gov.uk/doc/local-authority/00DA,Leeds City Council,Adult Social Care,Services For Older People Under 65 P/Dis,Third Party Payments,Home Care,568,11-Jul-13,1307-00176,1437.68,R,Affinity Trust
http://statistics.data.gov.uk/doc/local-authority/00DA,Leeds City Council,Adult Social Care,Services For Older People Under 65 P/Dis,Third Party Payments,Home Care,568,11-Jul-13,1307-00177,1783.84,R,Affinity Trust
http://statistics.data.gov.uk/doc/local-authority/00DA,Leeds City Council,Adult Social Care,Services For Older People Under 65 P/Dis,Third Party Payments,Home Care,568,11-Jul-13,1307-00178,3407,R,Affinity Trust
http://statistics.data.gov.uk/doc/local-authority/00DA,Leeds City Council as Accountable Body,Social Services Pooled Budgets,Jcs For People With Learning Disabilitie,Third Party Payments,Day Centre,564,30-Jul-13,1307-00179,648.95,R,Affinity Trust
http://statistics.data.gov.uk/doc/local-authority/00DA,Leeds City Council as Accountable Body,Social Services Pooled Budgets,Jcs For People With Learning Disabilitie,Third Party Payments,Day Centre,564,12-Jul-13,1307-00180,827.64,R,Affinity Trust
http://statistics.data.gov.uk/doc/local-authority/00DA,Leeds City Council as Accountable Body,Social Services Pooled Budgets,Jcs For People With Learning Disabilitie,Third Party Payments,Day Centre,564,12-Jul-13,1307-00181,1316.7,R,Affinity Trust
http://statistics.data.gov.uk/doc/local-authority/00DA,Leeds City Council as Accountable Body,Social Services Pooled Budgets,Jcs For People With Learning Disabilitie,Third Party Payments,Day Centre,564,12-Jul-13,1307-00182,1454.42,R,Affinity Trust
http://statistics.data.gov.uk/doc/local-authority/00DA,Leeds City Council as Accountable Body,Social Services Pooled Budgets,Jcs For People With Learning Disabilitie,Third Party Payments,Day Centre,564,01-Jul-13,1307-00183,2128.52,R,Affinity Trust
http://statistics.data.gov.uk/doc/local-authority/00DA,Leeds City Council as Accountable Body,Social Services Pooled Budgets,Jcs For People With Learning Disabilitie,Third Party Payments,Day Centre,564,12-Jul-13,1307-00184,2333,R,Affinity Trust
http://statistics.data.gov.uk/doc/local-authority/00DA,Leeds City Council as Accountable Body,Social Services Pooled Budgets,Jcs For People With Learning Disabilitie,Third Party Payments,Day Centre,564,12-Jul-13,1307-00185,2815.68,R,Affinity Trust
http://statistics.data.gov.uk/doc/local-authority/00DA,Leeds City Council as Accountable Body,Social Services Pooled Budgets,Jcs For People With Learning Disabilitie,Third Party Payments,Day Centre,564,01-Jul-13,1307-00186,3529.68,R,Affinity Trust
http://statistics.data.gov.uk/doc/local-authority/00DA,Leeds City Council as Accountable Body,Social Services Pooled Budgets,Jcs For People With Learning Disabilitie,Third Party Payments,Day Centre,564,12-Jul-13,1307-00187,4870.72,R,Affinity Trust
http://statistics.data.gov.uk/doc/local-authority/00DA,Leeds City Council as Accountable Body,Social Services Pooled Budgets,Jcs For People With Learning Disabilitie,Third Party Payments,Home Care,568,12-Jul-13,1307-00188,511.36,R,Affinity Trust
http://statistics.data.gov.uk/doc/local-authority/00DA,Leeds City Council as Accountable Body,Social Services Pooled Budgets,Jcs For People With Learning Disabilitie,Third Party Payments,Home Care,568,12-Jul-13,1307-00189,807.36,R,Affinity Trust
http://statistics.data.gov.uk/doc/local-authority/00DA,Leeds City Council as Accountable Body,Social Services Pooled Budgets,Jcs For People With Learning Disabilitie,Third Party Payments,Home Care,568,12-Jul-13,1307-00190,816,R,Affinity Trust
http://statistics.data.gov.uk/doc/local-authority/00DA,Leeds City Council as Accountable Body,Social Services Pooled Budgets,Jcs For People With Learning Disabilitie,Third Party Payments,Home Care,568,12-Jul-13,1307-00191,905.04,R,Affinity Trust
http://statistics.data.gov.uk/doc/local-authority/00DA,Leeds City Council as Accountable Body,Social Services Pooled Budgets,Jcs For People With Learning Disabilitie,Third Party Payments,Home Care,568,12-Jul-13,1307-00192,953.6,R,Affinity Trust
http://statistics.data.gov.uk/doc/local-authority/00DA,Leeds City Council as Accountable Body,Social Services Pooled Budgets,Jcs For People With Learning Disabilitie,Third Party Payments,Home Care,568,12-Jul-13,1307-00193,955.32,R,Affinity Trust
http://statistics.data.gov.uk/doc/local-authority/00DA,Leeds City Council as Accountable Body,Social Services Pooled Budgets,Jcs For People With Learning Disabilitie,Third Party Payments,Home Care,568,12-Jul-13,1307-00194,964.67,R,Affinity Trust
http://statistics.data.gov.uk/doc/local-authority/00DA,Leeds City Council as Accountable Body,Social Services Pooled Budgets,Jcs For People With Learning Disabilitie,Third Party Payments,Home Care,568,12-Jul-13,1307-00195,1156.44,R,Affinity Trust
http://statistics.data.gov.uk/doc/local-authority/00DA,Leeds City Council as Accountable Body,Social Services Pooled Budgets,Jcs For People With Learning Disabilitie,Third Party Payments,Home Care,568,12-Jul-13,1307-00196,1319.88,R,Affinity Trust
http://statistics.data.gov.uk/doc/local-authority/00DA,Leeds City Council as Accountable Body,Social Services Pooled Budgets,Jcs For People With Learning Disabilitie,Third Party Payments,Home Care,568,12-Jul-13,1307-00197,1342.32,R,Affinity Trust
http://statistics.data.gov.uk/doc/local-authority/00DA,Leeds City Council as Accountable Body,Social Services Pooled Budgets,Jcs For People With Learning Disabilitie,Third Party Payments,Home Care,568,12-Jul-13,1307-00198,1345.6,R,Affinity Trust
http://statistics.data.gov.uk/doc/local-authority/00DA,Leeds City Council as Accountable Body,Social Services Pooled Budgets,Jcs For People With Learning Disabilitie,Third Party Payments,Home Care,568,16-Jul-13,1307-00199,1386,R,Affinity Trust
http://statistics.data.gov.uk/doc/local-authority/00DA,Leeds City Council as Accountable Body,Social Services Pooled Budgets,Jcs For People With Learning Disabilitie,Third Party Payments,Home Care,568,12-Jul-13,1307-00200,1468.5,R,Affinity Trust
http://statistics.data.gov.uk/doc/local-authority/00DA,Leeds City Council as Accountable Body,Social Services Pooled Budgets,Jcs For People With Learning Disabilitie,Third Party Payments,Home Care,568,12-Jul-13,1307-00201,1471.6,R,Affinity Trust
http://statistics.data.gov.uk/doc/local-authority/00DA,Leeds City Council as Accountable Body,Social Services Pooled Budgets,Jcs For People With Learning Disabilitie,Third Party Payments,Home Care,568,12-Jul-13,1307-00202,1513.24,R,Affinity Trust
http://statistics.data.gov.uk/doc/local-authority/00DA,Leeds City Council as Accountable Body,Social Services Pooled Budgets,Jcs For People With Learning Disabilitie,Third Party Payments,Home Care,568,12-Jul-13,1307-00203,1939.32,R,Affinity Trust
http://statistics.data.gov.uk/doc/local-authority/00DA,Leeds City Council as Accountable Body,Social Services Pooled Budgets,Jcs For People With Learning Disabilitie,Third Party Payments,Home Care,568,16-Jul-13,1307-00204,2011.2,R,Affinity Trust
http://statistics.data.gov.uk/doc/local-authority/00DA,Leeds City Council as Accountable Body,Social Services Pooled Budgets,Jcs For People With Learning Disabilitie,Third Party Payments,Home Care,568,12-Jul-13,1307-00205,2077.4,R,Affinity Trust
http://statistics.data.gov.uk/doc/local-authority/00DA,Leeds City Council as Accountable Body,Social Services Pooled Budgets,Jcs For People With Learning Disabilitie,Third Party Payments,Home Care,568,12-Jul-13,1307-00206,2413.44,R,Affinity Trust
http://statistics.data.gov.uk/doc/local-authority/00DA,Leeds City Council as Accountable Body,Social Services Pooled Budgets,Jcs For People With Learning Disabilitie,Third Party Payments,Home Care,568,19-Jul-13,1307-00207,2413.44,R,Affinity Trust
http://statistics.data.gov.uk/doc/local-authority/00DA,Leeds City Council as Accountable Body,Social Services Pooled Budgets,Jcs For People With Learning Disabilitie,Third Party Payments,Home Care,568,12-Jul-13,1307-00208,4136.16,R,Affinity Trust
http://statistics.data.gov.uk/doc/local-authority/00DA,Leeds City Council as Accountable Body,Social Services Pooled Budgets,Jcs For People With Learning Disabilitie,Third Party Payments,Home Care,568,19-Jul-13,1307-00209,4383.52,R,Affinity Trust
http://statistics.data.gov.uk/doc/local-authority/00DA,Leeds City Council as Accountable Body,Social Services Pooled Budgets,Jcs For People With Learning Disabilitie,Third Party Payments,Home Care,568,30-Jul-13,1307-00210,4810.1,R,Affinity Trust
http://statistics.data.gov.uk/doc/local-authority/00DA,Leeds City Council as Accountable Body,Social Services Pooled Budgets,Jcs For People With Learning Disabilitie,Third Party Payments,Home Care,568,12-Jul-13,1307-00211,6193.32,R,Affinity Trust
http://statistics.data.gov.uk/doc/local-authority/00DA,Leeds City Council as Accountable Body,Social Services Pooled Budgets,Jcs For People With Learning Disabilitie,Third Party Payments,Home Care,568,30-Jul-13,1307-00212,7741.65,R,Affinity Trust
http://statistics.data.gov.uk/doc/local-authority/00DA,Leeds City Council as Accountable Body,Social Services Pooled Budgets,Jcs For People With Learning Disabilitie,Third Party Payments,Sheltered Accommodation,569,03-Jul-13,1307-00213,98791.92,R,Affinity Trust North Divisional Office
http://statistics.data.gov.uk/doc/local-authority/00DA,Leeds City Council as Accountable Body,Social Services Pooled Budgets,Jcs For People With Learning Disabilitie,Third Party Payments,Sheltered Accommodation,569,31-Jul-13,1307-00214,112260.2,R,Affinity Trust North Divisional Office
http://statistics.data.gov.uk/doc/local-authority/00DA,Leeds City Council,City Development,Highways,Capital,Other Costs,7,23-Jul-13,1307-00215,752,C,Afi Uplift Ltd
http://statistics.data.gov.uk/doc/local-authority/00DA,Leeds City Council,City Development,Highways,Capital,Other Costs,7,23-Jul-13,1307-00216,1026,C,Afi Uplift Ltd
http://statistics.data.gov.uk/doc/local-authority/00DA,Leeds City Council,City Development,Highways,Capital,Other Costs,7,23-Jul-13,1307-00217,1126,C,Afi Uplift Ltd
http://statistics.data.gov.uk/doc/local-authority/00DA,Leeds City Council,City Development,Recreation  ,Transport,Hire of Movable Plant & Machinery,315,18-Jun-13,1307-00218,684,R,Afi Uplift Ltd
http://statistics.data.gov.uk/doc/local-authority/00DA,Leeds City Council,City Development,Recreation  ,Transport,Hire of Movable Plant & Machinery,315,18-Jun-13,1307-00219,1140,R,Afi Uplift Ltd
http://statistics.data.gov.uk/doc/local-authority/00DA,Leeds City Council,City Development,Recreation  ,Transport,Hire of Movable Plant & Machinery,315,18-Jun-13,1307-00220,1140,R,Afi Uplift Ltd
http://statistics.data.gov.uk/doc/local-authority/00DA,Leeds City Council,Central & Corporate,Support And Facilities General Fund,Supplies and Services,Operational Furniture And Equipment,203,11-Jul-13,1307-00221,524.15,R,Afm Europe Ltd
http://statistics.data.gov.uk/doc/local-authority/00DA,Leeds City Council,Adult Social Care,Other Generic Services,Third Party Payments,Payments To Voluntary Organisations,561,05-Jul-13,1307-00222,20572.5,R,Age Uk Leeds
http://statistics.data.gov.uk/doc/local-authority/00DA,Leeds City Council,Adult Social Care,Services For Older People - 65 And Over,Third Party Payments,Payments To Voluntary Organisations,561,01-Jul-13,1307-00223,8025,R,Age Uk Leeds
http://statistics.data.gov.uk/doc/local-authority/00DA,Leeds City Council,Environment & Housing,Strategy & Commissioning,Third Party Payments,Supporting Ppl - Block Gross Chargeable,514,12-Jul-13,1307-00224,3957.68,R,Age Uk Leeds
http://statistics.data.gov.uk/doc/local-authority/00DA,Leeds City Council,Adult Social Care,Services For Older People Under 65 P/Dis,Third Party Payments,Residential,580,03-Jul-13,1307-00225,5612.16,R,Agricola House
http://statistics.data.gov.uk/doc/local-authority/00DA,Leeds City Council,Adult Social Care,Services For Older People Under 65 P/Dis,Third Party Payments,Residential,580,31-Jul-13,1307-00226,5612.16,R,Agricola House
http://statistics.data.gov.uk/doc/local-authority/00DA,Leeds City Council,Adult Social Care,Services For Older People Under 65 P/Dis,Transfer Payments,Personalised Budgets,627,03-Jul-13,1307-00227,531.2,R,REDACTED PERSONAL DATA
http://statistics.data.gov.uk/doc/local-authority/00DA,Leeds City Council,Adult Social Care,Services For Older People Under 65 P/Dis,Transfer Payments,Personalised Budgets,627,31-Jul-13,1307-00228,531.2,R,REDACTED PERSONAL DATA
http://statistics.data.gov.uk/doc/local-authority/00DA,Leeds City Council as Accountable Body,Social Services Pooled Budgets,Leeds Community Equip Store Pooled Budgt,Supplies and Services,Other Equipment,203,19-Jul-13,1307-00229,900,R,Aidapt Bathrooms Ltd
http://statistics.data.gov.uk/doc/local-authority/00DA,Leeds City Council as Accountable Body,Social Services Pooled Budgets,Leeds Community Equip Store Pooled Budgt,Supplies and Services,Other Equipment,203,24-Jul-13,1307-00230,1038,R,Aidapt Bathrooms Ltd
http://statistics.data.gov.uk/doc/local-authority/00DA,Leeds City Council as Accountable Body,Social Services Pooled Budgets,Leeds Community Equip Store Pooled Budgt,Supplies and Services,Other Equipment,203,04-Jul-13,1307-00231,1824,R,Aidapt Bathrooms Ltd
http://statistics.data.gov.uk/doc/local-authority/00DA,Leeds City Council as Accountable Body,Social Services Pooled Budgets,Leeds Community Equip Store Pooled Budgt,Supplies and Services,Other Equipment,203,24-Jul-13,1307-00232,2320,R,Aidapt Bathrooms Ltd
http://statistics.data.gov.uk/doc/local-authority/00DA,Leeds City Council as Accountable Body,Social Services Pooled Budgets,Leeds Community Equip Store Pooled Budgt,Supplies and Services,Other Equipment,203,16-Jul-13,1307-00233,2345,R,Aidapt Bathrooms Ltd
http://statistics.data.gov.uk/doc/local-authority/00DA,Leeds City Council as Accountable Body,Social Services Pooled Budgets,Jcs For People With Learning Disabilitie,Transfer Payments,Personal Budgets,627,03-Jul-13,1307-00234,2839.32,R,REDACTED PERSONAL DATA
http://statistics.data.gov.uk/doc/local-authority/00DA,Leeds City Council as Accountable Body,Social Services Pooled Budgets,Jcs For People With Learning Disabilitie,Transfer Payments,Personal Budgets,627,31-Jul-13,1307-00235,2839.32,R,REDACTED PERSONAL DATA
http://statistics.data.gov.uk/doc/local-authority/00DA,Leeds City Council,Childrens Services,Safeguarding Targeted & Specialist,Supplies and Services,Operational Furniture And Equipment,203,31-Jul-13,1307-00236,498,R,Aidservice Ltd
http://statistics.data.gov.uk/doc/local-authority/00DA,Leeds City Council,City Development,Economic Development,Supplies and Services,City Centre Enhancement,295,02-Jul-13,1307-00237,665,R,Aig Edenspiekermann Ltd
http://statistics.data.gov.uk/doc/local-authority/00DA,Leeds City Council,Adult Social Care,Services For Older People - 65 And Over,Transfer Payments,Personalised Budgets,627,03-Jul-13,1307-00238,529.24,R,REDACTED PERSONAL DATA
http://statistics.data.gov.uk/doc/local-authority/00DA,Leeds City Council,Adult Social Care,Services For Older People - 65 And Over,Transfer Payments,Personalised Budgets,627,31-Jul-13,1307-00239,529.24,R,REDACTED PERSONAL DATA
http://statistics.data.gov.uk/doc/local-authority/00DA,Leeds City Council,City Development,Libraries  Arts & Heritage  ,Transport,Public Transport Expenses,310,21-Jun-13,1307-00240,588.6,R,Air France
http://statistics.data.gov.uk/doc/local-authority/00DA,Leeds City Council,City Development,Libraries  Arts & Heritage  ,Transport,Public Transport Expenses,310,21-Jun-13,1307-00241,588.6,R,Air France
http://statistics.data.gov.uk/doc/local-authority/00DA,Leeds City Council,City Development,Libraries  Arts & Heritage  ,Transport,Public Transport Expenses,310,21-Jun-13,1307-00242,588.6,R,Air France
http://statistics.data.gov.uk/doc/local-authority/00DA,Leeds City Council,City Development,Libraries  Arts & Heritage  ,Transport,Public Transport Expenses,310,21-Jun-13,1307-00243,588.6,R,Air France
http://statistics.data.gov.uk/doc/local-authority/00DA,Leeds City Council,Environment & Housing,Parks & Countryside,Transport,Outside Repairs (Non CVM),344,23-Jul-13,1307-00244,528.21,R,Air Solutions (Leeds) Ltd
http://statistics.data.gov.uk/doc/local-authority/00DA,Leeds City Council,Adult Social Care,Services For Adults Under 65 Mental/Dis,Third Party Payments,Residential,580,03-Jul-13,1307-00245,6028.4,R,Aire House
http://statistics.data.gov.uk/doc/local-authority/00DA,Leeds City Council,Adult Social Care,Services For Adults Under 65 Mental/Dis,Third Party Payments,Residential,580,31-Jul-13,1307-00246,6028.4,R,Aire House
http://statistics.data.gov.uk/doc/local-authority/00DA,Leeds City Council as Accountable Body,Social Services Pooled Budgets,Jcs For People With Learning Disabilitie,Third Party Payments,Residential,580,31-Jul-13,1307-00247,9106.64,R,Aire House
http://statistics.data.gov.uk/doc/local-authority/00DA,Leeds City Council as Accountable Body,Social Services Pooled Budgets,Jcs For People With Learning Disabilitie,Third Party Payments,Residential,580,03-Jul-13,1307-00248,9106.64,R,Aire House
http://statistics.data.gov.uk/doc/local-authority/00DA,East - North East  ,East - North East,Business Improvement,Premises,Other,114,31-Jul-13,1307-00249,500,R,Aire Valley Landscaping Services Ltd
http://statistics.data.gov.uk/doc/local-authority/00DA,Leeds City Council,Adult Social Care,Services For Older People - 65 And Over,Third Party Payments,Residential Care Dementia,571,31-Jul-13,1307-00250,36564.24,R,Aire View Residential Home
http://statistics.data.gov.uk/doc/local-authority/00DA,Leeds City Council,Adult Social Care,Services For Older People - 65 And Over,Third Party Payments,Residential Care Dementia,571,03-Jul-13,1307-00251,39208.12,R,Aire View Residential Home
http://statistics.data.gov.uk/doc/local-authority/00DA,Leeds City Council,Adult Social Care,Services For Older People - 65 And Over,Third Party Payments,Residential,580,03-Jul-13,1307-00252,10894.96,R,Aire View Residential Home
http://statistics.data.gov.uk/doc/local-authority/00DA,Leeds City Council,Adult Social Care,Services For Older People - 65 And Over,Third Party Payments,Residential,580,31-Jul-13,1307-00253,16052.1,R,Aire View Residential Home
http://statistics.data.gov.uk/doc/local-authority/00DA,Leeds City Council,Adult Social Care,Social Services Support Services,Third Party Payments,Payments To Voluntary Organisations,561,01-Jul-13,1307-00254,16560,R,Aireborough Voluntary Services
http://statistics.data.gov.uk/doc/local-authority/00DA,Leeds City Council,Adult Social Care,Services For Older People - 65 And Over,Third Party Payments,Residential,580,03-Jul-13,1307-00255,23069.24,R,Airedale (Goldsborough)
http://statistics.data.gov.uk/doc/local-authority/00DA,Leeds City Council,Adult Social Care,Services For Older People - 65 And Over,Third Party Payments,Residential,580,31-Jul-13,1307-00256,26148.23,R,Airedale (Goldsborough)
http://statistics.data.gov.uk/doc/local-authority/00DA,Leeds City Council,Environment & Housing,Community Safety,Supplies and Services,Other Hired And Contracted Services,265,15-Jul-13,1307-00257,736.81,R,Airwave Solutions Ltd
http://statistics.data.gov.uk/doc/local-authority/00DA,Leeds City Council,City Development,Recreation,Supplies and Services,Operational Materials,205,17-Jul-13,1307-00258,619.7,R,Aitkens Sportsturf Ltd
http://statistics.data.gov.uk/doc/local-authority/00DA,Leeds City Council,Adult Social Care,Services For Older People - 65 And Over,Third Party Payments,Home Care,568,26-Jul-13,1307-00259,9259.66,R,Aj Social Care
http://statistics.data.gov.uk/doc/local-authority/00DA,Leeds City Council,Adult Social Care,Services For Older People Under 65 P/Dis,Third Party Payments,Home Care,568,26-Jul-13,1307-00260,2534.4,R,Aj Social Care
http://statistics.data.gov.uk/doc/local-authority/00DA,East - North East  ,East - North East,Construction Services,Supplies and Services,Other Materials,205,24-Jul-13,1307-00261,522,R,Ajm Fixings & Power Tools Ltd
http://statistics.data.gov.uk/doc/local-authority/00DA,Leeds City Council,Adult Social Care,Services For Older People - 65 And Over,Third Party Payments,Nursing Home,570,04-Jul-13,1307-00262,2438.48,R,Akari Care Ltd
http://statistics.data.gov.uk/doc/local-authority/00DA,Leeds City Council as Accountable Body,Social Services Pooled Budgets,Jcs For People With Learning Disabilitie,Transfer Payments,Personal Budgets,627,31-Jul-13,1307-00263,1898.9,R,REDACTED PERSONAL DATA
http://statistics.data.gov.uk/doc/local-authority/00DA,Leeds City Council,Adult Social Care,Services For Older People Under 65 P/Dis,Transfer Payments,Direct Payments,626,03-Jul-13,1307-00264,1228.96,R,REDACTED PERSONAL DATA
http://statistics.data.gov.uk/doc/local-authority/00DA,Leeds City Council,Adult Social Care,Services For Older People Under 65 P/Dis,Transfer Payments,Personalised Budgets,627,03-Jul-13,1307-00265,2040.08,R,REDACTED PERSONAL DATA
http://statistics.data.gov.uk/doc/local-authority/00DA,Leeds City Council,Adult Social Care,Services For Older People Under 65 P/Dis,Transfer Payments,Personalised Budgets,627,31-Jul-13,1307-00266,2040.08,R,REDACTED PERSONAL DATA
http://statistics.data.gov.uk/doc/local-authority/00DA,Leeds City Council,Environment & Housing,Statutory Housing,Supplies and Services,Other Hired And Contracted Services,265,11-Jul-13,1307-00267,495,R,Alan Slater Property Services
http://statistics.data.gov.uk/doc/local-authority/00DA,Leeds City Council,Adult Social Care,Services For Older People - 65 And Over,Transfer Payments,Direct Payments,626,03-Jul-13,1307-00268,2916.88,R,REDACTED PERSONAL DATA
http://statistics.data.gov.uk/doc/local-authority/00DA,Leeds City Council,Adult Social Care,Services For Older People - 65 And Over,Transfer Payments,Direct Payments,626,31-Jul-13,1307-00269,2916.88,R,REDACTED PERSONAL DATA
http://statistics.data.gov.uk/doc/local-authority/00DA,Leeds City Council,City Development,Libraries  Arts & Heritage,Supplies and Services,Other Hired And Contracted Services,265,10-Jul-13,1307-00270,4000,R,Aled Jones Enterprises Limited
http://statistics.data.gov.uk/doc/local-authority/00DA,Leeds City Council,Adult Social Care,Adult Social Care,Capital,Furniture And Equipment,5,04-Jul-13,1307-00271,1652,C,Alert It
http://statistics.data.gov.uk/doc/local-authority/00DA,Leeds City Council,Adult Social Care,Adult Social Care,Capital,Furniture And Equipment,5,19-Jul-13,1307-00272,2370,C,Alert It
http://statistics.data.gov.uk/doc/local-authority/00DA,Leeds City Council as Accountable Body,Social Services Pooled Budgets,Jcs For People With Learning Disabilitie,Transfer Payments,Asylum Seekers,626,03-Jul-13,1307-00273,1144.8,R,REDACTED PERSONAL DATA
http://statistics.data.gov.uk/doc/local-authority/00DA,Leeds City Council as Accountable Body,Social Services Pooled Budgets,Jcs For People With Learning Disabilitie,Transfer Payments,Asylum Seekers,626,31-Jul-13,1307-00274,1144.8,R,REDACTED PERSONAL DATA
http://statistics.data.gov.uk/doc/local-authority/00DA,Leeds City Council,Adult Social Care,Services For Older People Under 65 P/Dis,Transfer Payments,Direct Payments,626,03-Jul-13,1307-00275,751.36,R,REDACTED PERSONAL DATA
http://statistics.data.gov.uk/doc/local-authority/00DA,Leeds City Council,Adult Social Care,Services For Older People Under 65 P/Dis,Transfer Payments,Direct Payments,626,31-Jul-13,1307-00276,817.17,R,REDACTED PERSONAL DATA
http://statistics.data.gov.uk/doc/local-authority/00DA,Leeds City Council,Adult Social Care,Services For Older People - 65 And Over,Third Party Payments,Nursing Home,570,04-Jul-13,1307-00277,1614.76,R,Alexander Court Care Home
http://statistics.data.gov.uk/doc/local-authority/00DA,Leeds City Council,Adult Social Care,Services For Older People Under 65 P/Dis,Transfer Payments,Personalised Budgets,627,03-Jul-13,1307-00278,736.36,R,REDACTED PERSONAL DATA
http://statistics.data.gov.uk/doc/local-authority/00DA,Leeds City Council,Adult Social Care,Services For Older People Under 65 P/Dis,Transfer Payments,Personalised Budgets,627,31-Jul-13,1307-00279,736.36,R,REDACTED PERSONAL DATA
http://statistics.data.gov.uk/doc/local-authority/00DA,Leeds City Council,Adult Social Care,Services For Adults Under 65 Mental/Dis,Transfer Payments,Personalised Budgets,627,31-Jul-13,1307-00280,640,R,REDACTED PERSONAL DATA
http://statistics.data.gov.uk/doc/local-authority/00DA,Leeds City Council,Adult Social Care,Services For Adults Under 65 Mental/Dis,Transfer Payments,Personalised Budgets,627,03-Jul-13,1307-00281,640,R,REDACTED PERSONAL DATA
http://statistics.data.gov.uk/doc/local-authority/00DA,Leeds City Council,Adult Social Care,Services For Older People - 65 And Over,Third Party Payments,Residential Care Dementia,571,31-Jul-13,1307-00282,8121.96,R,Alexander Residential Home
http://statistics.data.gov.uk/doc/local-authority/00DA,Leeds City Council,Adult Social Care,Services For Older People - 65 And Over,Third Party Payments,Residential Care Dementia,571,03-Jul-13,1307-00283,8121.96,R,Alexander Residential Home
http://statistics.data.gov.uk/doc/local-authority/00DA,Leeds City Council,Adult Social Care,Services For Older People - 65 And Over,Third Party Payments,Residential,580,03-Jul-13,1307-00284,18715.48,R,Alexander Residential Home
http://statistics.data.gov.uk/doc/local-authority/00DA,Leeds City Council,Adult Social Care,Services For Older People - 65 And Over,Third Party Payments,Residential,580,31-Jul-13,1307-00285,25911.76,R,Alexander Residential Home
http://statistics.data.gov.uk/doc/local-authority/00DA,Leeds City Council as Accountable Body,Social Services Pooled Budgets,Jcs For People With Learning Disabilitie,Third Party Payments,Residential,580,03-Jul-13,1307-00286,1230,R,Alexander Residential Home
http://statistics.data.gov.uk/doc/local-authority/00DA,Leeds City Council as Accountable Body,Social Services Pooled Budgets,Jcs For People With Learning Disabilitie,Third Party Payments,Residential,580,31-Jul-13,1307-00287,1230,R,Alexander Residential Home
http://statistics.data.gov.uk/doc/local-authority/00DA,Leeds City Council as Accountable Body,Social Services Pooled Budgets,Jcs For People With Learning Disabilitie,Transfer Payments,Personal Budgets,627,03-Jul-13,1307-00288,536.48,R,REDACTED PERSONAL DATA
http://statistics.data.gov.uk/doc/local-authority/00DA,Leeds City Council as Accountable Body,Social Services Pooled Budgets,Jcs For People With Learning Disabilitie,Transfer Payments,Personal Budgets,627,31-Jul-13,1307-00289,536.48,R,REDACTED PERSONAL DATA
http://statistics.data.gov.uk/doc/local-authority/00DA,Leeds City Council,Adult Social Care,Services For Older People - 65 And Over,Third Party Payments,Residential,580,03-Jul-13,1307-00290,7385.86,R,Alexandra Court
http://statistics.data.gov.uk/doc/local-authority/00DA,Leeds City Council,Adult Social Care,Services For Older People - 65 And Over,Third Party Payments,Residential,580,31-Jul-13,1307-00291,7625.63,R,Alexandra Court
http://statistics.data.gov.uk/doc/local-authority/00DA,Leeds City Council,Environment & Housing,Environmental Action (South),Supplies and Services,Bought In Professional Services,277,25-Jul-13,1307-00292,595.2,R,Alfies Boarding Kennels
http://statistics.data.gov.uk/doc/local-authority/00DA,Leeds City Council,Environment & Housing,Environmental Action (South),Supplies and Services,Bought In Professional Services,277,19-Jul-13,1307-00293,700,R,Alfies Boarding Kennels
http://statistics.data.gov.uk/doc/local-authority/00DA,Leeds City Council,Environment & Housing,Environmental Action (South),Supplies and Services,Bought In Professional Services,277,19-Jul-13,1307-00294,700,R,Alfies Boarding Kennels
http://statistics.data.gov.uk/doc/local-authority/00DA,Leeds City Council,Adult Social Care,Adult Social Care,Capital,Other Costs,7,03-Jul-13,1307-00295,1316.88,C,Alfred Bagnall & Sons (Leeds) Ltd
http://statistics.data.gov.uk/doc/local-authority/00DA,Leeds City Council,Adult Social Care,Adult Social Care,Capital,Furniture And Equipment,5,26-Jul-13,1307-00296,12240,C,Alfred Bagnall & Sons (Leeds) Ltd
http://statistics.data.gov.uk/doc/local-authority/00DA,Leeds City Council,Central & Corporate,Customer Services,Premises,Maintenance Of Buildings,101,31-Jul-13,1307-00297,3595.08,R,Alfred Bagnall & Sons (Leeds) Ltd
http://statistics.data.gov.uk/doc/local-authority/00DA,Leeds City Council,Central & Corporate,Support And Facilities General Fund,Premises,Maintenance Of Buildings,101,26-Jul-13,1307-00298,765,R,Alfred Bagnall & Sons (Leeds) Ltd
http://statistics.data.gov.uk/doc/local-authority/00DA,Leeds City Council,City Development,Asset Management Services,Premises,Maintenance Of Buildings,101,31-Jul-13,1307-00299,1088.95,R,Alfred Bagnall & Sons (Leeds) Ltd
http://statistics.data.gov.uk/doc/local-authority/00DA,Leeds City Council,City Development,Asset Management Services,Premises,Maintenance Of Buildings,101,10-Jul-13,1307-00300,2718,R,Alfred Bagnall & Sons (Leeds) Ltd
http://statistics.data.gov.uk/doc/local-authority/00DA,Leeds City Council,City Development,Asset Management Services,Premises,Maintenance Of Buildings,101,31-Jul-13,1307-00301,40639.15,R,Alfred Bagnall & Sons (Leeds) Ltd
http://statistics.data.gov.uk/doc/local-authority/00DA,Leeds City Council,City Development,Libraries  Arts & Heritage,Premises,Maintenance Of Buildings,101,26-Jul-13,1307-00302,1245,R,Alfred Bagnall & Sons (Leeds) Ltd
http://statistics.data.gov.uk/doc/local-authority/00DA,Leeds City Council,Environment & Housing,Statutory Housing,Supplies and Services,Other Hired And Contracted Services,265,23-Jul-13,1307-00303,725,R,Ali Bokhari
http://statistics.data.gov.uk/doc/local-authority/00DA,Leeds City Council,Adult Social Care,Services For Older People Under 65 P/Dis,Transfer Payments,Personalised Budgets,627,03-Jul-13,1307-00304,525.36,R,REDACTED PERSONAL DATA
http://statistics.data.gov.uk/doc/local-authority/00DA,Leeds City Council,Adult Social Care,Services For Older People Under 65 P/Dis,Transfer Payments,Personalised Budgets,627,31-Jul-13,1307-00305,525.36,R,REDACTED PERSONAL DATA
http://statistics.data.gov.uk/doc/local-authority/00DA,Leeds City Council,Adult Social Care,Services For Older People - 65 And Over,Transfer Payments,Personalised Budgets,627,03-Jul-13,1307-00306,489.24,R,REDACTED PERSONAL DATA
http://statistics.data.gov.uk/doc/local-authority/00DA,Leeds City Council,Adult Social Care,Services For Older People - 65 And Over,Transfer Payments,Personalised Budgets,627,31-Jul-13,1307-00307,489.24,R,REDACTED PERSONAL DATA
http://statistics.data.gov.uk/doc/local-authority/00DA,Leeds City Council as Accountable Body,Social Services Pooled Budgets,Jcs For People With Learning Disabilitie,Transfer Payments,Personal Budgets,627,03-Jul-13,1307-00308,947.96,R,REDACTED PERSONAL DATA
http://statistics.data.gov.uk/doc/local-authority/00DA,Leeds City Council as Accountable Body,Social Services Pooled Budgets,Jcs For People With Learning Disabilitie,Transfer Payments,Personal Budgets,627,31-Jul-13,1307-00309,947.96,R,REDACTED PERSONAL DATA
http://statistics.data.gov.uk/doc/local-authority/00DA,Leeds City Council,City Development,Libraries  Arts & Heritage,Supplies and Services,Bought In Professional Services,277,10-Jul-13,1307-00310,1425.05,R,Alison Glew
http://statistics.data.gov.uk/doc/local-authority/00DA,Leeds City Council,Adult Social Care,Services For Older People Under 65 P/Dis,Transfer Payments,Personalised Budgets,627,31-Jul-13,1307-00311,2666.4,R,REDACTED PERSONAL DATA
http://statistics.data.gov.uk/doc/local-authority/00DA,Leeds City Council,Adult Social Care,Services For Older People Under 65 P/Dis,Transfer Payments,Personalised Budgets,627,03-Jul-13,1307-00312,2666.4,R,REDACTED PERSONAL DATA
http://statistics.data.gov.uk/doc/local-authority/00DA,Leeds City Council,Adult Social Care,Services For Older People Under 65 P/Dis,Transfer Payments,Personalised Budgets,627,03-Jul-13,1307-00313,7003.2,R,REDACTED PERSONAL DATA
http://statistics.data.gov.uk/doc/local-authority/00DA,Leeds City Council,Adult Social Care,Services For Older People Under 65 P/Dis,Transfer Payments,Personalised Budgets,627,31-Jul-13,1307-00314,20469.99,R,REDACTED PERSONAL DATA
http://statistics.data.gov.uk/doc/local-authority/00DA,Leeds City Council,Adult Social Care,Services For Older People - 65 And Over,Third Party Payments,Residential,580,03-Jul-13,1307-00315,1107.4,R,Allendale Residential Home
http://statistics.data.gov.uk/doc/local-authority/00DA,Leeds City Council,Adult Social Care,Services For Older People - 65 And Over,Third Party Payments,Residential,580,31-Jul-13,1307-00316,1107.4,R,Allendale Residential Home
http://statistics.data.gov.uk/doc/local-authority/00DA,Leeds City Council as Accountable Body,Social Services Pooled Budgets,Jcs For People With Learning Disabilitie,Third Party Payments,Residential,580,03-Jul-13,1307-00317,15616.36,R,Allerton Avenue
http://statistics.data.gov.uk/doc/local-authority/00DA,Leeds City Council as Accountable Body,Social Services Pooled Budgets,Jcs For People With Learning Disabilitie,Third Party Payments,Residential,580,31-Jul-13,1307-00318,15616.36,R,Allerton Avenue
http://statistics.data.gov.uk/doc/local-authority/00DA,Leeds City Council,Central & Corporate,Benefits,Supplies and Services,Bank Charges,263,04-Jul-13,1307-00319,1275.87,R,Alliance & Leicester Commercial Bank
http://statistics.data.gov.uk/doc/local-authority/00DA,Leeds City Council,Adult Social Care,Other Generic Services,Third Party Payments,Home Care,568,17-Jul-13,1307-00320,6566.64,R,Allied Healthcare Group Ltd
http://statistics.data.gov.uk/doc/local-authority/00DA,Leeds City Council,Adult Social Care,Other Generic Services,Third Party Payments,Home Care,568,17-Jul-13,1307-00321,6819.51,R,Allied Healthcare Group Ltd
http://statistics.data.gov.uk/doc/local-authority/00DA,Leeds City Council,Adult Social Care,Other Generic Services,Third Party Payments,Home Care,568,17-Jul-13,1307-00322,16252,R,Allied Healthcare Group Ltd
http://statistics.data.gov.uk/doc/local-authority/00DA,Leeds City Council,Adult Social Care,Other Generic Services,Third Party Payments,Home Care,568,17-Jul-13,1307-00323,16480.37,R,Allied Healthcare Group Ltd
http://statistics.data.gov.uk/doc/local-authority/00DA,Leeds City Council,Adult Social Care,Services For Older People - 65 And Over,Third Party Payments,Home Care,568,11-Jul-13,1307-00324,418.59,R,Allied Healthcare Group Ltd
http://statistics.data.gov.uk/doc/local-authority/00DA,Leeds City Council,Adult Social Care,Services For Older People - 65 And Over,Third Party Payments,Home Care,568,24-Jul-13,1307-00325,530.4,R,Allied Healthcare Group Ltd
http://statistics.data.gov.uk/doc/local-authority/00DA,Leeds City Council,Adult Social Care,Services For Older People - 65 And Over,Third Party Payments,Home Care,568,24-Jul-13,1307-00326,627.3,R,Allied Healthcare Group Ltd
http://statistics.data.gov.uk/doc/local-authority/00DA,Leeds City Council,Adult Social Care,Services For Older People - 65 And Over,Third Party Payments,Home Care,568,23-Jul-13,1307-00327,854.83,R,Allied Healthcare Group Ltd
http://statistics.data.gov.uk/doc/local-authority/00DA,Leeds City Council,Adult Social Care,Services For Older People - 65 And Over,Third Party Payments,Home Care,568,11-Jul-13,1307-00328,1609.93,R,Allied Healthcare Group Ltd
http://statistics.data.gov.uk/doc/local-authority/00DA,Leeds City Council,Adult Social Care,Services For Older People - 65 And Over,Third Party Payments,Home Care,568,24-Jul-13,1307-00329,3924.9,R,Allied Healthcare Group Ltd
http://statistics.data.gov.uk/doc/local-authority/00DA,Leeds City Council,Adult Social Care,Services For Older People - 65 And Over,Third Party Payments,Home Care,568,24-Jul-13,1307-00330,9746.96,R,Allied Healthcare Group Ltd
http://statistics.data.gov.uk/doc/local-authority/00DA,Leeds City Council,Adult Social Care,Services For Older People - 65 And Over,Third Party Payments,Home Care,568,24-Jul-13,1307-00331,16136.19,R,Allied Healthcare Group Ltd
http://statistics.data.gov.uk/doc/local-authority/00DA,Leeds City Council,Adult Social Care,Services For Older People Under 65 P/Dis,Third Party Payments,Home Care,568,11-Jul-13,1307-00332,674.81,R,Allied Healthcare Group Ltd
http://statistics.data.gov.uk/doc/local-authority/00DA,Leeds City Council,Adult Social Care,Services For Older People Under 65 P/Dis,Third Party Payments,Home Care,568,24-Jul-13,1307-00333,857.26,R,Allied Healthcare Group Ltd
http://statistics.data.gov.uk/doc/local-authority/00DA,Leeds City Council,Adult Social Care,Services For Older People Under 65 P/Dis,Third Party Payments,Home Care,568,24-Jul-13,1307-00334,1163.75,R,Allied Healthcare Group Ltd
http://statistics.data.gov.uk/doc/local-authority/00DA,Leeds City Council,Adult Social Care,Services For Older People Under 65 P/Dis,Third Party Payments,Home Care,568,11-Jul-13,1307-00335,1189.75,R,Allied Healthcare Group Ltd
http://statistics.data.gov.uk/doc/local-authority/00DA,Leeds City Council,Adult Social Care,Services For Older People Under 65 P/Dis,Third Party Payments,Home Care,568,24-Jul-13,1307-00336,1198.5,R,Allied Healthcare Group Ltd
http://statistics.data.gov.uk/doc/local-authority/00DA,Leeds City Council,Adult Social Care,Services For Older People Under 65 P/Dis,Third Party Payments,Home Care,568,24-Jul-13,1307-00337,1387.2,R,Allied Healthcare Group Ltd
http://statistics.data.gov.uk/doc/local-authority/00DA,Leeds City Council,Adult Social Care,Services For Older People Under 65 P/Dis,Third Party Payments,Home Care,568,24-Jul-13,1307-00338,6315.34,R,Allied Healthcare Group Ltd
http://statistics.data.gov.uk/doc/local-authority/00DA,Leeds City Council,Childrens Services,Safeguarding Targeted & Specialist,Third Party Payments,Section 17,551,19-Jul-13,1307-00339,499.9,R,Allied Healthcare Group Ltd
http://statistics.data.gov.uk/doc/local-authority/00DA,Leeds City Council,Childrens Services,Safeguarding Targeted & Specialist,Third Party Payments,Section 17,551,31-Jul-13,1307-00340,832.01,R,Allied Healthcare Group Ltd
http://statistics.data.gov.uk/doc/local-authority/00DA,Leeds City Council,Childrens Services,Safeguarding Targeted & Specialist,Third Party Payments,Section 17,551,24-Jul-13,1307-00341,835.87,R,Allied Healthcare Group Ltd
http://statistics.data.gov.uk/doc/local-authority/00DA,Leeds City Council as Accountable Body,Social Services Pooled Budgets,Jcs For People With Learning Disabilitie,Third Party Payments,Home Care,568,03-Jul-13,1307-00342,428.4,R,Allied Healthcare Group Ltd
http://statistics.data.gov.uk/doc/local-authority/00DA,Leeds City Council as Accountable Body,Social Services Pooled Budgets,Jcs For People With Learning Disabilitie,Third Party Payments,Home Care,568,22-Jul-13,1307-00343,431.18,R,Allied Healthcare Group Ltd
http://statistics.data.gov.uk/doc/local-authority/00DA,Leeds City Council as Accountable Body,Social Services Pooled Budgets,Jcs For People With Learning Disabilitie,Third Party Payments,Home Care,568,05-Jul-13,1307-00344,519.82,R,Allied Healthcare Group Ltd
http://statistics.data.gov.uk/doc/local-authority/00DA,Leeds City Council as Accountable Body,Social Services Pooled Budgets,Jcs For People With Learning Disabilitie,Third Party Payments,Home Care,568,26-Jul-13,1307-00345,520.84,R,Allied Healthcare Group Ltd
http://statistics.data.gov.uk/doc/local-authority/00DA,Leeds City Council as Accountable Body,Social Services Pooled Budgets,Jcs For People With Learning Disabilitie,Third Party Payments,Home Care,568,03-Jul-13,1307-00346,536.45,R,Allied Healthcare Group Ltd
http://statistics.data.gov.uk/doc/local-authority/00DA,Leeds City Council as Accountable Body,Social Services Pooled Budgets,Jcs For People With Learning Disabilitie,Third Party Payments,Home Care,568,05-Jul-13,1307-00347,553.21,R,Allied Healthcare Group Ltd
http://statistics.data.gov.uk/doc/local-authority/00DA,Leeds City Council as Accountable Body,Social Services Pooled Budgets,Jcs For People With Learning Disabilitie,Third Party Payments,Home Care,568,12-Jul-13,1307-00348,561.63,R,Allied Healthcare Group Ltd
http://statistics.data.gov.uk/doc/local-authority/00DA,Leeds City Council as Accountable Body,Social Services Pooled Budgets,Jcs For People With Learning Disabilitie,Third Party Payments,Home Care,568,12-Jul-13,1307-00349,1273.38,R,Allied Healthcare Group Ltd
http://statistics.data.gov.uk/doc/local-authority/00DA,Leeds City Council as Accountable Body,Social Services Pooled Budgets,Jcs For People With Learning Disabilitie,Third Party Payments,Home Care,568,18-Jul-13,1307-00350,2723.76,R,Allied Healthcare Group Ltd
http://statistics.data.gov.uk/doc/local-authority/00DA,Leeds City Council as Accountable Body,Social Services Pooled Budgets,Jcs For People With Learning Disabilitie,Third Party Payments,Home Care,568,04-Jul-13,1307-00351,3371.61,R,Allied Healthcare Group Ltd
http://statistics.data.gov.uk/doc/local-authority/00DA,Leeds City Council as Accountable Body,Social Services Pooled Budgets,Jcs For People With Learning Disabilitie,Third Party Payments,Home Care,568,08-Jul-13,1307-00352,3385.28,R,Allied Healthcare Group Ltd
http://statistics.data.gov.uk/doc/local-authority/00DA,Leeds City Council as Accountable Body,Social Services Pooled Budgets,Jcs For People With Learning Disabilitie,Third Party Payments,Home Care,568,04-Jul-13,1307-00353,3391.07,R,Allied Healthcare Group Ltd
http://statistics.data.gov.uk/doc/local-authority/00DA,Leeds City Council as Accountable Body,Social Services Pooled Budgets,Jcs For People With Learning Disabilitie,Third Party Payments,Home Care,568,04-Jul-13,1307-00354,3401.7,R,Allied Healthcare Group Ltd
http://statistics.data.gov.uk/doc/local-authority/00DA,Leeds City Council as Accountable Body,Social Services Pooled Budgets,Jcs For People With Learning Disabilitie,Third Party Payments,Home Care,568,17-Jul-13,1307-00355,3424.31,R,Allied Healthcare Group Ltd
http://statistics.data.gov.uk/doc/local-authority/00DA,Leeds City Council as Accountable Body,Social Services Pooled Budgets,Jcs For People With Learning Disabilitie,Third Party Payments,Home Care,568,26-Jul-13,1307-00356,3782.16,R,Allied Healthcare Group Ltd
http://statistics.data.gov.uk/doc/local-authority/00DA,Leeds City Council as Accountable Body,Social Services Pooled Budgets,Jcs For People With Learning Disabilitie,Third Party Payments,Home Care,568,01-Jul-13,1307-00357,3849.14,R,Allied Healthcare Group Ltd
http://statistics.data.gov.uk/doc/local-authority/00DA,Leeds City Council as Accountable Body,Social Services Pooled Budgets,Jcs For People With Learning Disabilitie,Third Party Payments,Home Care,568,12-Jul-13,1307-00358,3878.12,R,Allied Healthcare Group Ltd
http://statistics.data.gov.uk/doc/local-authority/00DA,Leeds City Council as Accountable Body,Social Services Pooled Budgets,Jcs For People With Learning Disabilitie,Third Party Payments,Home Care,568,05-Jul-13,1307-00359,3960,R,Allied Healthcare Group Ltd
http://statistics.data.gov.uk/doc/local-authority/00DA,Leeds City Council as Accountable Body,Social Services Pooled Budgets,Jcs For People With Learning Disabilitie,Third Party Payments,Home Care,568,18-Jul-13,1307-00360,3960.6,R,Allied Healthcare Group Ltd
http://statistics.data.gov.uk/doc/local-authority/00DA,Leeds City Council as Accountable Body,Social Services Pooled Budgets,Jcs For People With Learning Disabilitie,Third Party Payments,Home Care,568,03-Jul-13,1307-00361,4547.5,R,Allied Healthcare Group Ltd
http://statistics.data.gov.uk/doc/local-authority/00DA,Leeds City Council as Accountable Body,Social Services Pooled Budgets,Jcs For People With Learning Disabilitie,Third Party Payments,Home Care,568,01-Jul-13,1307-00362,9955.08,R,Allied Healthcare Group Ltd
http://statistics.data.gov.uk/doc/local-authority/00DA,Leeds City Council as Accountable Body,Social Services Pooled Budgets,Jcs For People With Learning Disabilitie,Third Party Payments,Home Care,568,01-Jul-13,1307-00363,14174.95,R,Allied Healthcare Group Ltd
http://statistics.data.gov.uk/doc/local-authority/00DA,Leeds City Council as Accountable Body,Social Services Pooled Budgets,Jcs For People With Learning Disabilitie,Third Party Payments,Home Care,568,01-Jul-13,1307-00364,15131.49,R,Allied Healthcare Group Ltd
http://statistics.data.gov.uk/doc/local-authority/00DA,Leeds City Council as Accountable Body,Social Services Pooled Budgets,Jcs For People With Learning Disabilitie,Third Party Payments,Home Care,568,01-Jul-13,1307-00365,15303.79,R,Allied Healthcare Group Ltd
http://statistics.data.gov.uk/doc/local-authority/00DA,Leeds City Council as Accountable Body,Social Services Pooled Budgets,Jcs For People With Learning Disabilitie,Third Party Payments,Home Care,568,12-Jul-13,1307-00366,15707.9,R,Allied Healthcare Group Ltd
http://statistics.data.gov.uk/doc/local-authority/00DA,Leeds City Council,Childrens Services,Learning Skills & Universal,Transport,Fuel (Non LCC Supplies),321,08-Jul-13,1307-00367,3371.93,R,Allstar Business Solutions Ltd
http://statistics.data.gov.uk/doc/local-authority/00DA,Leeds City Council,City Development,Highways,Transport,Fuel (Non LCC Supplies),321,08-Jul-13,1307-00368,474.2,R,Allstar Business Solutions Ltd
http://statistics.data.gov.uk/doc/local-authority/00DA,Leeds City Council,Childrens Services,Partnership Development & Leadership,Employees,Central Training,79,25-Jul-13,1307-00369,876,R,REDACTED PERSONAL DATA
http://statistics.data.gov.uk/doc/local-authority/00DA,Leeds City Council,Childrens Services,Safeguarding Targeted & Specialist,Support Services,Legal Disbursements,411,31-Jul-13,1307-00370,575,R,Alpha Biolabs
http://statistics.data.gov.uk/doc/local-authority/00DA,Leeds City Council,Central & Corporate,Support And Facilities General Fund,Supplies and Services,Other Hired And Contracted Services,265,31-Jul-13,1307-00371,457,R,Alpha Media Solutions Ltd
http://statistics.data.gov.uk/doc/local-authority/00DA,Leeds City Council,Central & Corporate,Commercial Services Trading Services,Supplies and Services,Other Hired And Contracted Services,265,31-Jul-13,1307-00372,723.01,R,Alternative Windows (Leeds) Ltd
http://statistics.data.gov.uk/doc/local-authority/00DA,Leeds City Council,Childrens Services,Learning Skills & Universal  ,Supplies and Services,Teaching Materials,202,25-Jun-13,1307-00373,990,R,Alton Towers Park
http://statistics.data.gov.uk/doc/local-authority/00DA,Leeds City Council,Adult Social Care,Services For Older People - 65 And Over,Third Party Payments,Nursing Home,570,31-Jul-13,1307-00374,1355.08,R,Alwoodley Nursing Home
http://statistics.data.gov.uk/doc/local-authority/00DA,Leeds City Council,Adult Social Care,Services For Older People - 65 And Over,Third Party Payments,Nursing Home,570,03-Jul-13,1307-00375,1411.24,R,Alwoodley Nursing Home
http://statistics.data.gov.uk/doc/local-authority/00DA,Leeds City Council,Adult Social Care,Services For Older People - 65 And Over,Third Party Payments,Residential,580,31-Jul-13,1307-00376,1155.04,R,Alwoodley Nursing Home
http://statistics.data.gov.uk/doc/local-authority/00DA,Leeds City Council,Adult Social Care,Services For Older People - 65 And Over,Third Party Payments,Residential,580,03-Jul-13,1307-00377,1204,R,Alwoodley Nursing Home
http://statistics.data.gov.uk/doc/local-authority/00DA,Leeds City Council as Accountable Body,Social Services Pooled Budgets,Jcs For People With Learning Disabilitie,Transfer Payments,Personal Budgets,627,03-Jul-13,1307-00378,1073.2,R,REDACTED PERSONAL DATA
http://statistics.data.gov.uk/doc/local-authority/00DA,Leeds City Council as Accountable Body,Social Services Pooled Budgets,Jcs For People With Learning Disabilitie,Transfer Payments,Personal Budgets,627,31-Jul-13,1307-00379,1073.2,R,REDACTED PERSONAL DATA
http://statistics.data.gov.uk/doc/local-authority/00DA,Leeds City Council,Adult Social Care,Services For Adults Under 65 Mental/Dis,Transfer Payments,Personalised Budgets,627,03-Jul-13,1307-00380,2082.56,R,REDACTED PERSONAL DATA
http://statistics.data.gov.uk/doc/local-authority/00DA,Leeds City Council,Adult Social Care,Services For Adults Under 65 Mental/Dis,Transfer Payments,Personalised Budgets,627,31-Jul-13,1307-00381,2082.56,R,REDACTED PERSONAL DATA
http://statistics.data.gov.uk/doc/local-authority/00DA,Leeds City Council,Adult Social Care,Services For Older People Under 65 P/Dis,Transfer Payments,Personalised Budgets,627,03-Jul-13,1307-00382,1280.32,R,REDACTED PERSONAL DATA
http://statistics.data.gov.uk/doc/local-authority/00DA,Leeds City Council,Adult Social Care,Services For Older People Under 65 P/Dis,Transfer Payments,Personalised Budgets,627,31-Jul-13,1307-00383,1593.04,R,REDACTED PERSONAL DATA
http://statistics.data.gov.uk/doc/local-authority/00DA,Leeds City Council,Adult Social Care,Services For Older People Under 65 P/Dis,Transfer Payments,Direct Payments,626,03-Jul-13,1307-00384,761.44,R,REDACTED PERSONAL DATA
http://statistics.data.gov.uk/doc/local-authority/00DA,Leeds City Council,Adult Social Care,Services For Older People Under 65 P/Dis,Transfer Payments,Direct Payments,626,31-Jul-13,1307-00385,761.44,R,REDACTED PERSONAL DATA
http://statistics.data.gov.uk/doc/local-authority/00DA,Leeds City Council,Central & Corporate,Support And Facilities General Fund,Premises,Electricity,124,05-Jul-13,1307-00386,484.39,R,Amas Ltd/ Lim/ Rent Ac
http://statistics.data.gov.uk/doc/local-authority/00DA,Leeds City Council,Central & Corporate,Support And Facilities General Fund,Premises,Electricity,124,05-Jul-13,1307-00387,484.39,R,Amas Ltd/ Lim/ Rent Ac
http://statistics.data.gov.uk/doc/local-authority/00DA,Leeds City Council,Childrens Services,Learning Skills & Universal,Third Party Payments,Services Rendered By Other Organisations,511,04-Jul-13,1307-00388,3313.88,R,Amazing Grace Early Years Childcare
http://statistics.data.gov.uk/doc/local-authority/00DA,Leeds City Council,Environment & Neighbourhoods,Streetscene Environmental Services  ,Supplies and Services,Computer Software & Equipment,214,13-Jun-13,1307-00389,1176.4,R,Amazon *mktplce Eu-Uk
http://statistics.data.gov.uk/doc/local-authority/00DA,Leeds City Council,Childrens Services,Safeguarding Targeted & Specialist,Third Party Payments,General External Residential Placements,507,19-Jul-13,1307-00390,16020,R,Amberleigh Care Ltd
http://statistics.data.gov.uk/doc/local-authority/00DA,Leeds City Council,Environment & Housing,Parks & Countryside,Supplies and Services,Operational Materials,205,19-Jul-13,1307-00391,530,R,Amberol Ltd
http://statistics.data.gov.uk/doc/local-authority/00DA,Leeds City Council,Environment & Housing,Parks & Countryside,Supplies and Services,Operational Materials,205,10-Jul-13,1307-00392,1962,R,Amberol Ltd
http://statistics.data.gov.uk/doc/local-authority/00DA,Leeds City Council,Adult Social Care,Services For Older People - 65 And Over,Third Party Payments,Residential,580,03-Jul-13,1307-00393,2139.44,R,Amelia House Care Home
http://statistics.data.gov.uk/doc/local-authority/00DA,Leeds City Council,Adult Social Care,Services For Older People - 65 And Over,Third Party Payments,Residential,580,31-Jul-13,1307-00394,2139.44,R,Amelia House Care Home
http://statistics.data.gov.uk/doc/local-authority/00DA,Leeds City Council,City Development,Highways,Supplies and Services,Other Hired And Contracted Services,265,22-Jul-13,1307-00395,7500,R,Amelix Limited
http://statistics.data.gov.uk/doc/local-authority/00DA,Leeds City Council,Adult Social Care,Services For Older People - 65 And Over,Transfer Payments,Personalised Budgets,627,03-Jul-13,1307-00396,1717.04,R,REDACTED PERSONAL DATA
http://statistics.data.gov.uk/doc/local-authority/00DA,Leeds City Council,Adult Social Care,Services For Older People - 65 And Over,Transfer Payments,Personalised Budgets,627,03-Jul-13,1307-00397,1469.48,R,REDACTED PERSONAL DATA
http://statistics.data.gov.uk/doc/local-authority/00DA,Leeds City Council,Adult Social Care,Services For Older People - 65 And Over,Transfer Payments,Personalised Budgets,627,31-Jul-13,1307-00398,1469.48,R,REDACTED PERSONAL DATA
http://statistics.data.gov.uk/doc/local-authority/00DA,Leeds City Council,City Development,Libraries  Arts & Heritage,Supplies and Services,Other Hired And Contracted Services,265,10-Jul-13,1307-00399,2000,R,Amore
http://statistics.data.gov.uk/doc/local-authority/00DA,Leeds City Council as Accountable Body,Social Services Pooled Budgets,Jcs For People With Learning Disabilitie,Transfer Payments,Personal Budgets,627,03-Jul-13,1307-00400,878.96,R,REDACTED PERSONAL DATA
http://statistics.data.gov.uk/doc/local-authority/00DA,Leeds City Council as Accountable Body,Social Services Pooled Budgets,Jcs For People With Learning Disabilitie,Transfer Payments,Personal Budgets,627,31-Jul-13,1307-00401,878.96,R,REDACTED PERSONAL DATA
http://statistics.data.gov.uk/doc/local-authority/00DA,Leeds City Council as Accountable Body,Social Services Pooled Budgets,Jcs For People With Learning Disabilitie,Transfer Payments,Personal Budgets,627,03-Jul-13,1307-00402,549.48,R,REDACTED PERSONAL DATA
http://statistics.data.gov.uk/doc/local-authority/00DA,Leeds City Council as Accountable Body,Social Services Pooled Budgets,Jcs For People With Learning Disabilitie,Transfer Payments,Personal Budgets,627,31-Jul-13,1307-00403,549.48,R,REDACTED PERSONAL DATA
http://statistics.data.gov.uk/doc/local-authority/00DA,Leeds City Council,Adult Social Care,Services For Adults Under 65 Mental/Dis,Transfer Payments,Personalised Budgets,627,31-Jul-13,1307-00404,532.72,R,REDACTED PERSONAL DATA
http://statistics.data.gov.uk/doc/local-authority/00DA,Leeds City Council,Adult Social Care,Services For Adults Under 65 Mental/Dis,Transfer Payments,Personalised Budgets,627,03-Jul-13,1307-00405,532.72,R,REDACTED PERSONAL DATA
http://statistics.data.gov.uk/doc/local-authority/00DA,Leeds City Council,Adult Social Care,Services For Older People Under 65 P/Dis,Transfer Payments,Direct Payments,626,03-Jul-13,1307-00406,1124.72,R,REDACTED PERSONAL DATA
http://statistics.data.gov.uk/doc/local-authority/00DA,Leeds City Council,Adult Social Care,Services For Older People Under 65 P/Dis,Transfer Payments,Direct Payments,626,31-Jul-13,1307-00407,1124.72,R,REDACTED PERSONAL DATA
http://statistics.data.gov.uk/doc/local-authority/00DA,Leeds City Council,Adult Social Care,Services For Older People - 65 And Over,Third Party Payments,Payments To Voluntary Organisations,561,05-Jul-13,1307-00408,9167.48,R,Anchor Trust
http://statistics.data.gov.uk/doc/local-authority/00DA,Leeds City Council,Adult Social Care,Services For Older People - 65 And Over,Third Party Payments,Nursing Home,570,31-Jul-13,1307-00409,38672.99,R,Anchor Trust
http://statistics.data.gov.uk/doc/local-authority/00DA,Leeds City Council,Adult Social Care,Services For Older People - 65 And Over,Third Party Payments,Nursing Home,570,03-Jul-13,1307-00410,43025.83,R,Anchor Trust
http://statistics.data.gov.uk/doc/local-authority/00DA,Leeds City Council,Adult Social Care,Services For Older People - 65 And Over,Third Party Payments,Residential Care Dementia,571,31-Jul-13,1307-00411,-2933.96,R,Anchor Trust
http://statistics.data.gov.uk/doc/local-authority/00DA,Leeds City Council,Adult Social Care,Services For Older People - 65 And Over,Third Party Payments,Residential Care Dementia,571,03-Jul-13,1307-00412,5969.4,R,Anchor Trust
http://statistics.data.gov.uk/doc/local-authority/00DA,Leeds City Council,Adult Social Care,Services For Older People - 65 And Over,Third Party Payments,Nursing Care Dementia,574,03-Jul-13,1307-00413,1159.72,R,Anchor Trust
http://statistics.data.gov.uk/doc/local-authority/00DA,Leeds City Council,Adult Social Care,Services For Older People - 65 And Over,Third Party Payments,Nursing Care Dementia,574,31-Jul-13,1307-00414,3186,R,Anchor Trust
http://statistics.data.gov.uk/doc/local-authority/00DA,Leeds City Council,Adult Social Care,Services For Older People - 65 And Over,Third Party Payments,Nursing Care Dementia,574,03-Jul-13,1307-00415,3186,R,Anchor Trust
http://statistics.data.gov.uk/doc/local-authority/00DA,Leeds City Council,Adult Social Care,Services For Older People - 65 And Over,Third Party Payments,Residential,580,23-Jul-13,1307-00416,1274.23,R,Anchor Trust
http://statistics.data.gov.uk/doc/local-authority/00DA,Leeds City Council,Adult Social Care,Services For Older People - 65 And Over,Third Party Payments,Residential,580,04-Jul-13,1307-00417,1274.23,R,Anchor Trust
http://statistics.data.gov.uk/doc/local-authority/00DA,Leeds City Council,Adult Social Care,Services For Older People - 65 And Over,Third Party Payments,Residential,580,31-Jul-13,1307-00418,3175.56,R,Anchor Trust
http://statistics.data.gov.uk/doc/local-authority/00DA,Leeds City Council,Adult Social Care,Services For Older People - 65 And Over,Third Party Payments,Residential,580,03-Jul-13,1307-00419,8899.72,R,Anchor Trust
http://statistics.data.gov.uk/doc/local-authority/00DA,Leeds City Council,Adult Social Care,Services For Older People - 65 And Over,Third Party Payments,Residential,580,03-Jul-13,1307-00420,12692.55,R,Anchor Trust
http://statistics.data.gov.uk/doc/local-authority/00DA,Leeds City Council,Adult Social Care,Services For Older People - 65 And Over,Third Party Payments,Residential,580,31-Jul-13,1307-00421,13606.44,R,Anchor Trust
http://statistics.data.gov.uk/doc/local-authority/00DA,Leeds City Council,Adult Social Care,Services For Older People Under 65 P/Dis,Third Party Payments,Nursing Home,570,03-Jul-13,1307-00422,2870.8,R,Anchor Trust
http://statistics.data.gov.uk/doc/local-authority/00DA,Leeds City Council,Adult Social Care,Services For Older People Under 65 P/Dis,Third Party Payments,Nursing Home,570,31-Jul-13,1307-00423,7499.37,R,Anchor Trust
http://statistics.data.gov.uk/doc/local-authority/00DA,Leeds City Council,Environment & Housing,Strategy & Commissioning,Third Party Payments,Supporting Ppl - Block Gross Chargeable,514,12-Jul-13,1307-00424,5738.04,R,Anchor Trust
http://statistics.data.gov.uk/doc/local-authority/00DA,Leeds City Council as Accountable Body,Social Services Pooled Budgets,Jcs For People With Learning Disabilitie,Third Party Payments,Residential,580,12-Jul-13,1307-00425,649.32,R,Anchor Trust
http://statistics.data.gov.uk/doc/local-authority/00DA,Leeds City Council,Adult Social Care,Services For Older People - 65 And Over,Third Party Payments,Residential Care Dementia,571,31-Jul-13,1307-00426,14523.24,R,Anchor Trust Simon Marks Court
http://statistics.data.gov.uk/doc/local-authority/00DA,Leeds City Council,Adult Social Care,Services For Older People - 65 And Over,Third Party Payments,Residential Care Dementia,571,03-Jul-13,1307-00427,17650.76,R,Anchor Trust Simon Marks Court
http://statistics.data.gov.uk/doc/local-authority/00DA,Leeds City Council,Adult Social Care,Services For Older People - 65 And Over,Third Party Payments,Residential,580,31-Jul-13,1307-00428,13096.63,R,Anchor Trust Simon Marks Court
http://statistics.data.gov.uk/doc/local-authority/00DA,Leeds City Council,Adult Social Care,Services For Older People - 65 And Over,Third Party Payments,Residential,580,03-Jul-13,1307-00429,17451.07,R,Anchor Trust Simon Marks Court
http://statistics.data.gov.uk/doc/local-authority/00DA,Leeds City Council,Adult Social Care,Services For Older People Under 65 P/Dis,Transfer Payments,Personalised Budgets,627,03-Jul-13,1307-00430,603.6,R,REDACTED PERSONAL DATA
http://statistics.data.gov.uk/doc/local-authority/00DA,Leeds City Council,Adult Social Care,Services For Older People Under 65 P/Dis,Transfer Payments,Personalised Budgets,627,31-Jul-13,1307-00431,603.6,R,REDACTED PERSONAL DATA
http://statistics.data.gov.uk/doc/local-authority/00DA,Leeds City Council,Adult Social Care,Services For Older People Under 65 P/Dis,Transfer Payments,Direct Payments,626,31-Jul-13,1307-00432,5217.68,R,REDACTED PERSONAL DATA
http://statistics.data.gov.uk/doc/local-authority/00DA,Leeds City Council,Adult Social Care,Services For Older People Under 65 P/Dis,Transfer Payments,Direct Payments,626,03-Jul-13,1307-00433,5217.68,R,REDACTED PERSONAL DATA
http://statistics.data.gov.uk/doc/local-authority/00DA,Leeds City Council,Adult Social Care,Services For Adults Under 65 Mental/Dis,Transfer Payments,Personalised Budgets,627,03-Jul-13,1307-00434,1049.92,R,REDACTED PERSONAL DATA
http://statistics.data.gov.uk/doc/local-authority/00DA,Leeds City Council,Adult Social Care,Services For Adults Under 65 Mental/Dis,Transfer Payments,Personalised Budgets,627,31-Jul-13,1307-00435,1098.97,R,REDACTED PERSONAL DATA
http://statistics.data.gov.uk/doc/local-authority/00DA,Leeds City Council as Accountable Body,Social Services Pooled Budgets,Jcs For People With Learning Disabilitie,Transfer Payments,Personal Budgets,627,31-Jul-13,1307-00436,690.32,R,REDACTED PERSONAL DATA
http://statistics.data.gov.uk/doc/local-authority/00DA,Leeds City Council as Accountable Body,Social Services Pooled Budgets,Jcs For People With Learning Disabilitie,Transfer Payments,Personal Budgets,627,04-Jul-13,1307-00437,4765.32,R,REDACTED PERSONAL DATA
http://statistics.data.gov.uk/doc/local-authority/00DA,Leeds City Council as Accountable Body,Social Services Pooled Budgets,Jcs For People With Learning Disabilitie,Transfer Payments,Personal Budgets,627,31-Jul-13,1307-00438,837.4,R,REDACTED PERSONAL DATA
http://statistics.data.gov.uk/doc/local-authority/00DA,Leeds City Council as Accountable Body,Social Services Pooled Budgets,Jcs For People With Learning Disabilitie,Transfer Payments,Personal Budgets,627,03-Jul-13,1307-00439,837.4,R,REDACTED PERSONAL DATA
http://statistics.data.gov.uk/doc/local-authority/00DA,Leeds City Council,Adult Social Care,Services For Older People Under 65 P/Dis,Transfer Payments,Direct Payments,626,31-Jul-13,1307-00440,6150.87,R,REDACTED PERSONAL DATA
http://statistics.data.gov.uk/doc/local-authority/00DA,Leeds City Council,Adult Social Care,Services For Older People Under 65 P/Dis,Transfer Payments,Direct Payments,626,03-Jul-13,1307-00441,7632.92,R,REDACTED PERSONAL DATA
http://statistics.data.gov.uk/doc/local-authority/00DA,Leeds City Council,Adult Social Care,Services For Older People Under 65 P/Dis,Transfer Payments,Direct Payments,626,31-Jul-13,1307-00442,439.6,R,REDACTED PERSONAL DATA
http://statistics.data.gov.uk/doc/local-authority/00DA,Leeds City Council,Adult Social Care,Services For Older People Under 65 P/Dis,Transfer Payments,Personalised Budgets,627,31-Jul-13,1307-00443,1000,R,REDACTED PERSONAL DATA
http://statistics.data.gov.uk/doc/local-authority/00DA,Leeds City Council,Adult Social Care,Services For Older People Under 65 P/Dis,Transfer Payments,Personalised Budgets,627,03-Jul-13,1307-00444,1000,R,REDACTED PERSONAL DATA
http://statistics.data.gov.uk/doc/local-authority/00DA,Leeds City Council as Accountable Body,Social Services Pooled Budgets,Jcs For People With Learning Disabilitie,Transfer Payments,Asylum Seekers,626,03-Jul-13,1307-00445,564.6,R,REDACTED PERSONAL DATA
http://statistics.data.gov.uk/doc/local-authority/00DA,Leeds City Council as Accountable Body,Social Services Pooled Budgets,Jcs For People With Learning Disabilitie,Transfer Payments,Asylum Seekers,626,31-Jul-13,1307-00446,622.73,R,REDACTED PERSONAL DATA
http://statistics.data.gov.uk/doc/local-authority/00DA,Leeds City Council,Adult Social Care,Services For Older People Under 65 P/Dis,Transfer Payments,Personalised Budgets,627,03-Jul-13,1307-00447,679.36,R,REDACTED PERSONAL DATA
http://statistics.data.gov.uk/doc/local-authority/00DA,Leeds City Council,Adult Social Care,Services For Older People Under 65 P/Dis,Transfer Payments,Personalised Budgets,627,31-Jul-13,1307-00448,679.36,R,REDACTED PERSONAL DATA
http://statistics.data.gov.uk/doc/local-authority/00DA,Leeds City Council,Adult Social Care,Services For Older People Under 65 P/Dis,Transfer Payments,Personalised Budgets,627,03-Jul-13,1307-00449,505.6,R,REDACTED PERSONAL DATA
http://statistics.data.gov.uk/doc/local-authority/00DA,Leeds City Council,Adult Social Care,Services For Older People Under 65 P/Dis,Transfer Payments,Personalised Budgets,627,31-Jul-13,1307-00450,505.6,R,REDACTED PERSONAL DATA
http://statistics.data.gov.uk/doc/local-authority/00DA,Leeds City Council,Adult Social Care,Services For Older People Under 65 P/Dis,Transfer Payments,Direct Payments,626,03-Jul-13,1307-00451,2021.52,R,REDACTED PERSONAL DATA
http://statistics.data.gov.uk/doc/local-authority/00DA,Leeds City Council,Adult Social Care,Services For Older People Under 65 P/Dis,Transfer Payments,Direct Payments,626,31-Jul-13,1307-00452,2021.52,R,REDACTED PERSONAL DATA
http://statistics.data.gov.uk/doc/local-authority/00DA,Leeds City Council,Adult Social Care,Services For Older People Under 65 P/Dis,Transfer Payments,Personalised Budgets,627,31-Jul-13,1307-00453,1661.25,R,REDACTED PERSONAL DATA
http://statistics.data.gov.uk/doc/local-authority/00DA,Leeds City Council as Accountable Body,Social Services Pooled Budgets,Jcs For People With Learning Disabilitie,Transfer Payments,Asylum Seekers,626,03-Jul-13,1307-00454,866.12,R,REDACTED PERSONAL DATA
http://statistics.data.gov.uk/doc/local-authority/00DA,Leeds City Council as Accountable Body,Social Services Pooled Budgets,Jcs For People With Learning Disabilitie,Transfer Payments,Asylum Seekers,626,31-Jul-13,1307-00455,866.12,R,REDACTED PERSONAL DATA
http://statistics.data.gov.uk/doc/local-authority/00DA,Leeds City Council,Adult Social Care,Services For Older People Under 65 P/Dis,Transfer Payments,Personalised Budgets,627,03-Jul-13,1307-00456,2108.56,R,REDACTED PERSONAL DATA
http://statistics.data.gov.uk/doc/local-authority/00DA,Leeds City Council,Adult Social Care,Services For Older People Under 65 P/Dis,Transfer Payments,Personalised Budgets,627,31-Jul-13,1307-00457,2108.56,R,REDACTED PERSONAL DATA
http://statistics.data.gov.uk/doc/local-authority/00DA,Leeds City Council as Accountable Body,Social Services Pooled Budgets,Jcs For People With Learning Disabilitie,Transfer Payments,Asylum Seekers,626,03-Jul-13,1307-00458,433.6,R,REDACTED PERSONAL DATA
http://statistics.data.gov.uk/doc/local-authority/00DA,Leeds City Council as Accountable Body,Social Services Pooled Budgets,Jcs For People With Learning Disabilitie,Transfer Payments,Asylum Seekers,626,31-Jul-13,1307-00459,433.6,R,REDACTED PERSONAL DATA
http://statistics.data.gov.uk/doc/local-authority/00DA,Leeds City Council,Adult Social Care,Services For Older People Under 65 P/Dis,Transfer Payments,Personalised Budgets,627,31-Jul-13,1307-00460,567,R,REDACTED PERSONAL DATA
http://statistics.data.gov.uk/doc/local-authority/00DA,Leeds City Council,Adult Social Care,Services For Older People Under 65 P/Dis,Transfer Payments,Personalised Budgets,627,03-Jul-13,1307-00461,722.25,R,REDACTED PERSONAL DATA
http://statistics.data.gov.uk/doc/local-authority/00DA,Leeds City Council,Adult Social Care,Services For Older People Under 65 P/Dis,Transfer Payments,Personalised Budgets,627,03-Jul-13,1307-00462,494.96,R,REDACTED PERSONAL DATA
http://statistics.data.gov.uk/doc/local-authority/00DA,Leeds City Council,Adult Social Care,Services For Older People Under 65 P/Dis,Transfer Payments,Personalised Budgets,627,31-Jul-13,1307-00463,494.96,R,REDACTED PERSONAL DATA
http://statistics.data.gov.uk/doc/local-authority/00DA,Leeds City Council as Accountable Body,Social Services Pooled Budgets,Jcs For People With Learning Disabilitie,Transfer Payments,Asylum Seekers,626,03-Jul-13,1307-00464,687.48,R,REDACTED PERSONAL DATA
http://statistics.data.gov.uk/doc/local-authority/00DA,Leeds City Council as Accountable Body,Social Services Pooled Budgets,Jcs For People With Learning Disabilitie,Transfer Payments,Asylum Seekers,626,31-Jul-13,1307-00465,687.48,R,REDACTED PERSONAL DATA
http://statistics.data.gov.uk/doc/local-authority/00DA,Leeds City Council,Adult Social Care,Services For Older People Under 65 P/Dis,Transfer Payments,Personalised Budgets,627,03-Jul-13,1307-00466,531.68,R,REDACTED PERSONAL DATA
http://statistics.data.gov.uk/doc/local-authority/00DA,Leeds City Council,Adult Social Care,Services For Older People Under 65 P/Dis,Transfer Payments,Personalised Budgets,627,31-Jul-13,1307-00467,531.68,R,REDACTED PERSONAL DATA
http://statistics.data.gov.uk/doc/local-authority/00DA,Leeds City Council,Adult Social Care,Services For Older People - 65 And Over,Third Party Payments,Home Care,568,17-Jul-13,1307-00468,462,R,Angels Home Care Services
http://statistics.data.gov.uk/doc/local-authority/00DA,Leeds City Council,Adult Social Care,Services For Older People - 65 And Over,Third Party Payments,Home Care,568,17-Jul-13,1307-00469,1340.4,R,Angels Home Care Services
http://statistics.data.gov.uk/doc/local-authority/00DA,Leeds City Council,Adult Social Care,Services For Older People - 65 And Over,Third Party Payments,Home Care,568,17-Jul-13,1307-00470,1660.17,R,Angels Home Care Services
http://statistics.data.gov.uk/doc/local-authority/00DA,Leeds City Council,Adult Social Care,Services For Older People - 65 And Over,Third Party Payments,Home Care,568,17-Jul-13,1307-00471,1685.92,R,Angels Home Care Services
http://statistics.data.gov.uk/doc/local-authority/00DA,Leeds City Council,Adult Social Care,Services For Older People - 65 And Over,Third Party Payments,Home Care,568,17-Jul-13,1307-00472,2093,R,Angels Home Care Services
http://statistics.data.gov.uk/doc/local-authority/00DA,Leeds City Council,Adult Social Care,Services For Older People - 65 And Over,Third Party Payments,Home Care,568,17-Jul-13,1307-00473,3232.21,R,Angels Home Care Services
http://statistics.data.gov.uk/doc/local-authority/00DA,Leeds City Council,Adult Social Care,Services For Older People - 65 And Over,Third Party Payments,Home Care,568,17-Jul-13,1307-00474,3480.83,R,Angels Home Care Services
http://statistics.data.gov.uk/doc/local-authority/00DA,Leeds City Council,Adult Social Care,Services For Older People Under 65 P/Dis,Third Party Payments,Home Care,568,17-Jul-13,1307-00475,460.8,R,Angels Home Care Services
http://statistics.data.gov.uk/doc/local-authority/00DA,Leeds City Council,Adult Social Care,Services For Older People Under 65 P/Dis,Third Party Payments,Home Care,568,17-Jul-13,1307-00476,1134,R,Angels Home Care Services
http://statistics.data.gov.uk/doc/local-authority/00DA,Leeds City Council,Adult Social Care,Services For Older People Under 65 P/Dis,Third Party Payments,Home Care,568,17-Jul-13,1307-00477,1669.5,R,Angels Home Care Services
http://statistics.data.gov.uk/doc/local-authority/00DA,Leeds City Council,Childrens Services,Learning Skills & Universal,Third Party Payments,Services Rendered By Other Organisations,511,04-Jul-13,1307-00478,831.77,R,Angels Nursery
http://statistics.data.gov.uk/doc/local-authority/00DA,Leeds City Council,Childrens Services,Learning Skills & Universal,Supplies and Services,Admission Charges To Schools,283,02-Jul-13,1307-00479,21600,R,Angrove Park
http://statistics.data.gov.uk/doc/local-authority/00DA,Leeds City Council,Adult Social Care,Services For Older People Under 65 P/Dis,Transfer Payments,Personalised Budgets,627,03-Jul-13,1307-00480,438.64,R,REDACTED PERSONAL DATA
http://statistics.data.gov.uk/doc/local-authority/00DA,Leeds City Council,Adult Social Care,Services For Older People Under 65 P/Dis,Transfer Payments,Personalised Budgets,627,31-Jul-13,1307-00481,438.64,R,REDACTED PERSONAL DATA
http://statistics.data.gov.uk/doc/local-authority/00DA,Leeds City Council,Adult Social Care,Services For Older People Under 65 P/Dis,Transfer Payments,Direct Payments,626,03-Jul-13,1307-00482,642.24,R,REDACTED PERSONAL DATA
http://statistics.data.gov.uk/doc/local-authority/00DA,Leeds City Council,Adult Social Care,Services For Older People Under 65 P/Dis,Transfer Payments,Direct Payments,626,31-Jul-13,1307-00483,642.24,R,REDACTED PERSONAL DATA
http://statistics.data.gov.uk/doc/local-authority/00DA,Leeds City Council,Adult Social Care,Services For Older People Under 65 P/Dis,Transfer Payments,Direct Payments,626,31-Jul-13,1307-00484,804.88,R,REDACTED PERSONAL DATA
http://statistics.data.gov.uk/doc/local-authority/00DA,Leeds City Council,Adult Social Care,Services For Older People Under 65 P/Dis,Transfer Payments,Direct Payments,626,03-Jul-13,1307-00485,804.88,R,REDACTED PERSONAL DATA
http://statistics.data.gov.uk/doc/local-authority/00DA,Leeds City Council,Adult Social Care,Services For Older People Under 65 P/Dis,Transfer Payments,Direct Payments,626,03-Jul-13,1307-00486,443.52,R,REDACTED PERSONAL DATA
http://statistics.data.gov.uk/doc/local-authority/00DA,Leeds City Council,Adult Social Care,Services For Older People - 65 And Over,Transfer Payments,Direct Payments,626,03-Jul-13,1307-00487,643.32,R,REDACTED PERSONAL DATA
http://statistics.data.gov.uk/doc/local-authority/00DA,Leeds City Council,Adult Social Care,Services For Older People - 65 And Over,Transfer Payments,Direct Payments,626,31-Jul-13,1307-00488,643.32,R,REDACTED PERSONAL DATA
http://statistics.data.gov.uk/doc/local-authority/00DA,Leeds City Council,Adult Social Care,Services For Older People Under 65 P/Dis,Transfer Payments,Direct Payments,626,03-Jul-13,1307-00489,1160,R,REDACTED PERSONAL DATA
http://statistics.data.gov.uk/doc/local-authority/00DA,Leeds City Council,Adult Social Care,Services For Older People Under 65 P/Dis,Transfer Payments,Direct Payments,626,31-Jul-13,1307-00490,1160,R,REDACTED PERSONAL DATA
http://statistics.data.gov.uk/doc/local-authority/00DA,Leeds City Council,Adult Social Care,Services For Adults Under 65 Mental/Dis,Transfer Payments,Direct Payments,626,03-Jul-13,1307-00491,702.4,R,REDACTED PERSONAL DATA
http://statistics.data.gov.uk/doc/local-authority/00DA,Leeds City Council,Adult Social Care,Services For Adults Under 65 Mental/Dis,Transfer Payments,Direct Payments,626,31-Jul-13,1307-00492,702.4,R,REDACTED PERSONAL DATA
http://statistics.data.gov.uk/doc/local-authority/00DA,Leeds City Council,Central & Corporate,Customer Services,Supplies and Services,Other Hired And Contracted Services,265,04-Jul-13,1307-00493,620.05,R,Anna West
http://statistics.data.gov.uk/doc/local-authority/00DA,Leeds City Council,Adult Social Care,Services For Older People Under 65 P/Dis,Transfer Payments,Personalised Budgets,627,31-Jul-13,1307-00494,587.02,R,REDACTED PERSONAL DATA
http://statistics.data.gov.uk/doc/local-authority/00DA,Leeds City Council,Adult Social Care,Services For Older People - 65 And Over,Transfer Payments,Direct Payments,626,03-Jul-13,1307-00495,481.68,R,REDACTED PERSONAL DATA
http://statistics.data.gov.uk/doc/local-authority/00DA,Leeds City Council,Adult Social Care,Services For Older People - 65 And Over,Transfer Payments,Direct Payments,626,31-Jul-13,1307-00496,481.68,R,REDACTED PERSONAL DATA
http://statistics.data.gov.uk/doc/local-authority/00DA,Leeds City Council,Adult Social Care,Services For Older People Under 65 P/Dis,Transfer Payments,Personalised Budgets,627,03-Jul-13,1307-00497,964.4,R,REDACTED PERSONAL DATA
http://statistics.data.gov.uk/doc/local-authority/00DA,Leeds City Council,Adult Social Care,Services For Older People Under 65 P/Dis,Transfer Payments,Personalised Budgets,627,31-Jul-13,1307-00498,964.4,R,REDACTED PERSONAL DATA
http://statistics.data.gov.uk/doc/local-authority/00DA,Leeds City Council,Adult Social Care,Services For Older People - 65 And Over,Transfer Payments,Personalised Budgets,627,31-Jul-13,1307-00499,460.8,R,REDACTED PERSONAL DATA
http://statistics.data.gov.uk/doc/local-authority/00DA,Leeds City Council,Adult Social Care,Services For Older People - 65 And Over,Transfer Payments,Personalised Budgets,627,03-Jul-13,1307-00500,460.8,R,REDACTED PERSONAL DATA
http://statistics.data.gov.uk/doc/local-authority/00DA,Leeds City Council,Adult Social Care,Services For Older People - 65 And Over,Transfer Payments,Personalised Budgets,627,03-Jul-13,1307-00501,462.28,R,REDACTED PERSONAL DATA
http://statistics.data.gov.uk/doc/local-authority/00DA,Leeds City Council,Adult Social Care,Services For Older People - 65 And Over,Transfer Payments,Personalised Budgets,627,31-Jul-13,1307-00502,462.28,R,REDACTED PERSONAL DATA
http://statistics.data.gov.uk/doc/local-authority/00DA,Leeds City Council,Adult Social Care,Services For Older People - 65 And Over,Transfer Payments,Personalised Budgets,627,03-Jul-13,1307-00503,551.64,R,REDACTED PERSONAL DATA
http://statistics.data.gov.uk/doc/local-authority/00DA,Leeds City Council,Adult Social Care,Services For Older People - 65 And Over,Transfer Payments,Personalised Budgets,627,31-Jul-13,1307-00504,551.64,R,REDACTED PERSONAL DATA
http://statistics.data.gov.uk/doc/local-authority/00DA,Leeds City Council,Adult Social Care,Services For Older People - 65 And Over,Transfer Payments,Personalised Budgets,627,03-Jul-13,1307-00505,2021.44,R,REDACTED PERSONAL DATA
http://statistics.data.gov.uk/doc/local-authority/00DA,Leeds City Council,Adult Social Care,Services For Older People - 65 And Over,Transfer Payments,Personalised Budgets,627,31-Jul-13,1307-00506,2021.44,R,REDACTED PERSONAL DATA
http://statistics.data.gov.uk/doc/local-authority/00DA,Leeds City Council,Central & Corporate,Human Resources,Employees,Training Costs,71,26-Jul-13,1307-00507,1532.25,R,Anslow Communications Ltd
http://statistics.data.gov.uk/doc/local-authority/00DA,Leeds City Council,Adult Social Care,Services For Older People Under 65 P/Dis,Transfer Payments,Direct Payments,626,03-Jul-13,1307-00508,547.2,R,REDACTED PERSONAL DATA
http://statistics.data.gov.uk/doc/local-authority/00DA,Leeds City Council,Adult Social Care,Services For Older People Under 65 P/Dis,Transfer Payments,Direct Payments,626,31-Jul-13,1307-00509,547.2,R,REDACTED PERSONAL DATA
http://statistics.data.gov.uk/doc/local-authority/00DA,Leeds City Council as Accountable Body,Social Services Pooled Budgets,Jcs For People With Learning Disabilitie,Transfer Payments,Personal Budgets,627,03-Jul-13,1307-00510,1088.48,R,REDACTED PERSONAL DATA
http://statistics.data.gov.uk/doc/local-authority/00DA,Leeds City Council as Accountable Body,Social Services Pooled Budgets,Jcs For People With Learning Disabilitie,Transfer Payments,Personal Budgets,627,31-Jul-13,1307-00511,1088.48,R,REDACTED PERSONAL DATA
http://statistics.data.gov.uk/doc/local-authority/00DA,Leeds City Council,Adult Social Care,Services For Older People Under 65 P/Dis,Transfer Payments,Personalised Budgets,627,03-Jul-13,1307-00512,585,R,REDACTED PERSONAL DATA
http://statistics.data.gov.uk/doc/local-authority/00DA,Leeds City Council,Adult Social Care,Services For Older People Under 65 P/Dis,Transfer Payments,Personalised Budgets,627,31-Jul-13,1307-00513,585,R,REDACTED PERSONAL DATA
http://statistics.data.gov.uk/doc/local-authority/00DA,Leeds City Council,Adult Social Care,Assessment And Care Management,Transfer Payments,Direct Payments,626,17-Jul-13,1307-00514,725,R,REDACTED PERSONAL DATA
http://statistics.data.gov.uk/doc/local-authority/00DA,Leeds City Council,Adult Social Care,Services For Older People Under 65 P/Dis,Transfer Payments,Personalised Budgets,627,03-Jul-13,1307-00515,1563.72,R,REDACTED PERSONAL DATA
http://statistics.data.gov.uk/doc/local-authority/00DA,Leeds City Council,Adult Social Care,Services For Older People Under 65 P/Dis,Transfer Payments,Personalised Budgets,627,31-Jul-13,1307-00516,1563.72,R,REDACTED PERSONAL DATA
http://statistics.data.gov.uk/doc/local-authority/00DA,Leeds City Council,Childrens Services,Learning Skills & Universal,Supplies and Services,Other Hired And Contracted Services,265,22-Jul-13,1307-00517,575,R,Anything Audio Ltd
http://statistics.data.gov.uk/doc/local-authority/00DA,Aire Valley Homes Leeds,Aire Valley Homes Leeds,Aire Valley Homes Leeds,Supplies and Services,Audit Fees,261,18-Jul-13,1307-00518,1410,R,Aon Hewitt Limited
http://statistics.data.gov.uk/doc/local-authority/00DA,East - North East  ,East - North East,Corporate Directorate,Supplies and Services,Audit Fees,261,25-Jul-13,1307-00519,1410,R,Aon Hewitt Limited
http://statistics.data.gov.uk/doc/local-authority/00DA,Leeds City Council,Central & Corporate,Audit And Risk,Supplies and Services,External Audit Fees,261,19-Jul-13,1307-00520,2145,R,Aon Hewitt Limited
http://statistics.data.gov.uk/doc/local-authority/00DA,Leeds City Council,Central & Corporate Functions,Commercial Services Trading Services  ,Supplies and Services,Food & Drink,231,24-Jun-13,1307-00521,1124.95,R,Apetito Limited
http://statistics.data.gov.uk/doc/local-authority/00DA,Leeds City Council,Central & Corporate Functions,Commercial Services Trading Services  ,Supplies and Services,Food & Drink,231,24-Jun-13,1307-00522,1498.93,R,Apetito Limited
http://statistics.data.gov.uk/doc/local-authority/00DA,Leeds City Council,Central & Corporate Functions,Commercial Services Trading Services  ,Supplies and Services,Food & Drink,231,03-Jun-13,1307-00523,1539.97,R,Apetito Limited
http://statistics.data.gov.uk/doc/local-authority/00DA,Leeds City Council,Central & Corporate Functions,Commercial Services Trading Services  ,Supplies and Services,Food & Drink,231,12-Jun-13,1307-00524,1794.71,R,Apetito Limited
http://statistics.data.gov.uk/doc/local-authority/00DA,Leeds City Council,Central & Corporate Functions,Commercial Services Trading Services  ,Supplies and Services,Food & Drink,231,10-Jun-13,1307-00525,1982.68,R,Apetito Limited
http://statistics.data.gov.uk/doc/local-authority/00DA,Leeds City Council,Central & Corporate Functions,Commercial Services Trading Services  ,Supplies and Services,Food & Drink,231,19-Jun-13,1307-00526,2134.99,R,Apetito Limited
http://statistics.data.gov.uk/doc/local-authority/00DA,Leeds City Council,Central & Corporate Functions,Commercial Services Trading Services  ,Supplies and Services,Food & Drink,231,14-Jun-13,1307-00527,2172.86,R,Apetito Limited
http://statistics.data.gov.uk/doc/local-authority/00DA,Leeds City Council,Central & Corporate,Commercial Services Trading Services,Transport,External  Hire- ( Fleet Management),313,11-Jul-13,1307-00528,24639,R,Apetito Ltd
http://statistics.data.gov.uk/doc/local-authority/00DA,Leeds City Council,City Development,Libraries  Arts & Heritage  ,Supplies and Services,Operational Materials,205,25-Jun-13,1307-00529,1383.12,R,Apple Display&shopfitt
http://statistics.data.gov.uk/doc/local-authority/00DA,Leeds City Council,Childrens Services,Safeguarding Targeted & Specialist  ,Supplies and Services,General Amenity for Client/Residents,285,03-Jun-13,1307-00530,678,R,Apple Online Store Gbp
http://statistics.data.gov.uk/doc/local-authority/00DA,Leeds City Council as Accountable Body,Social Services Pooled Budgets,Jcs For People With Learning Disabilitie,Third Party Payments,Residential,580,31-Jul-13,1307-00531,11432.36,R,Applewalk Homes
http://statistics.data.gov.uk/doc/local-authority/00DA,Leeds City Council as Accountable Body,Social Services Pooled Budgets,Jcs For People With Learning Disabilitie,Third Party Payments,Residential,580,03-Jul-13,1307-00532,13846.76,R,Applewalk Homes
http://statistics.data.gov.uk/doc/local-authority/00DA,Leeds City Council as Accountable Body,Social Services Pooled Budgets,Leeds Community Equip Store Pooled Budgt,Supplies and Services,Other Equipment,203,25-Jul-13,1307-00533,487.64,R,Aqua Joy Bathlifts Ltd
http://statistics.data.gov.uk/doc/local-authority/00DA,Leeds City Council as Accountable Body,Social Services Pooled Budgets,Leeds Community Equip Store Pooled Budgt,Supplies and Services,Other Equipment,203,26-Jul-13,1307-00534,5060,R,Aqua Joy Bathlifts Ltd
http://statistics.data.gov.uk/doc/local-authority/00DA,Leeds City Council as Accountable Body,Social Services Pooled Budgets,Jcs For People With Learning Disabilitie,Third Party Payments,Home Care,568,26-Jul-13,1307-00535,466.18,R,Arabella Health Staffing Ltd
http://statistics.data.gov.uk/doc/local-authority/00DA,Leeds City Council as Accountable Body,Social Services Pooled Budgets,Jcs For People With Learning Disabilitie,Third Party Payments,Home Care,568,08-Jul-13,1307-00536,466.18,R,Arabella Health Staffing Ltd
http://statistics.data.gov.uk/doc/local-authority/00DA,Leeds City Council as Accountable Body,Social Services Pooled Budgets,Jcs For People With Learning Disabilitie,Third Party Payments,Home Care,568,08-Jul-13,1307-00537,466.18,R,Arabella Health Staffing Ltd
http://statistics.data.gov.uk/doc/local-authority/00DA,Leeds City Council as Accountable Body,Social Services Pooled Budgets,Jcs For People With Learning Disabilitie,Third Party Payments,Home Care,568,08-Jul-13,1307-00538,692.85,R,Arabella Health Staffing Ltd
http://statistics.data.gov.uk/doc/local-authority/00DA,Leeds City Council as Accountable Body,Social Services Pooled Budgets,Jcs For People With Learning Disabilitie,Third Party Payments,Home Care,568,19-Jul-13,1307-00539,760.76,R,Arabella Health Staffing Ltd
http://statistics.data.gov.uk/doc/local-authority/00DA,Leeds City Council as Accountable Body,Social Services Pooled Budgets,Jcs For People With Learning Disabilitie,Third Party Payments,Home Care,568,19-Jul-13,1307-00540,822.03,R,Arabella Health Staffing Ltd
http://statistics.data.gov.uk/doc/local-authority/00DA,Leeds City Council as Accountable Body,Social Services Pooled Budgets,Jcs For People With Learning Disabilitie,Third Party Payments,Home Care,568,09-Jul-13,1307-00541,829.96,R,Arabella Health Staffing Ltd
http://statistics.data.gov.uk/doc/local-authority/00DA,Leeds City Council as Accountable Body,Social Services Pooled Budgets,Jcs For People With Learning Disabilitie,Third Party Payments,Home Care,568,08-Jul-13,1307-00542,913.71,R,Arabella Health Staffing Ltd
http://statistics.data.gov.uk/doc/local-authority/00DA,Leeds City Council as Accountable Body,Social Services Pooled Budgets,Jcs For People With Learning Disabilitie,Third Party Payments,Home Care,568,24-Jul-13,1307-00543,1070.87,R,Arabella Health Staffing Ltd
http://statistics.data.gov.uk/doc/local-authority/00DA,Leeds City Council as Accountable Body,Social Services Pooled Budgets,Jcs For People With Learning Disabilitie,Third Party Payments,Home Care,568,26-Jul-13,1307-00544,1116.61,R,Arabella Health Staffing Ltd
http://statistics.data.gov.uk/doc/local-authority/00DA,Leeds City Council,Adult Social Care,Services For Older People Under 65 P/Dis,Transfer Payments,Personalised Budgets,627,03-Jul-13,1307-00545,1000,R,REDACTED PERSONAL DATA
http://statistics.data.gov.uk/doc/local-authority/00DA,Leeds City Council,Adult Social Care,Services For Older People Under 65 P/Dis,Transfer Payments,Personalised Budgets,627,31-Jul-13,1307-00546,1000,R,REDACTED PERSONAL DATA
http://statistics.data.gov.uk/doc/local-authority/00DA,Leeds City Council,Central & Corporate,Commercial Services Trading Services,Supplies and Services,Other Hired And Contracted Services,265,17-Jul-13,1307-00547,491.81,R,Archbold Carshop Ltd
http://statistics.data.gov.uk/doc/local-authority/00DA,Leeds City Council,Central & Corporate,Commercial Services Trading Services,Supplies and Services,Other Hired And Contracted Services,265,08-Jul-13,1307-00548,529.37,R,Archbold Carshop Ltd
http://statistics.data.gov.uk/doc/local-authority/00DA,Aire Valley Homes Leeds,Aire Valley Homes Leeds,Housing,Supplies and Services,Equipment And Materials,207,02-Jul-13,1307-00549,425.91,R,Arco Ltd
http://statistics.data.gov.uk/doc/local-authority/00DA,Leeds City Council,Central & Corporate,Commercial Services Trading Services,Supplies and Services,Clothing & Uniforms,241,02-Jul-13,1307-00550,582.12,R,Arco Ltd
http://statistics.data.gov.uk/doc/local-authority/00DA,Leeds City Council,City Development,Highways,Supplies and Services,Operational Materials,205,19-Jul-13,1307-00551,420.6,R,Arco Ltd
http://statistics.data.gov.uk/doc/local-authority/00DA,Leeds City Council,Environment & Housing,Parks & Countryside,Supplies and Services,Clothing & Uniforms,241,05-Jul-13,1307-00552,1160,R,Arco Ltd
http://statistics.data.gov.uk/doc/local-authority/00DA,Leeds City Council,Environment & Housing,Streetscene Environmental Services,Supplies and Services,Clothing & Uniforms,241,05-Jul-13,1307-00553,455,R,Arco Ltd
http://statistics.data.gov.uk/doc/local-authority/00DA,Leeds City Council,Environment & Housing,Streetscene Environmental Services,Supplies and Services,Clothing & Uniforms,241,04-Jul-13,1307-00554,476,R,Arco Ltd
http://statistics.data.gov.uk/doc/local-authority/00DA,Leeds City Council,Environment & Housing,Streetscene Environmental Services,Supplies and Services,Clothing & Uniforms,241,04-Jul-13,1307-00555,499.5,R,Arco Ltd
http://statistics.data.gov.uk/doc/local-authority/00DA,Leeds City Council,Environment & Housing,Streetscene Environmental Services,Supplies and Services,Clothing & Uniforms,241,03-Jul-13,1307-00556,505.5,R,Arco Ltd
http://statistics.data.gov.uk/doc/local-authority/00DA,Leeds City Council,Environment & Housing,Streetscene Environmental Services,Supplies and Services,Clothing & Uniforms,241,23-Jul-13,1307-00557,624,R,Arco Ltd
http://statistics.data.gov.uk/doc/local-authority/00DA,Leeds City Council,Environment & Housing,Streetscene Environmental Services,Supplies and Services,Clothing & Uniforms,241,30-Jul-13,1307-00558,721.18,R,Arco Ltd
http://statistics.data.gov.uk/doc/local-authority/00DA,Leeds City Council,Environment & Housing,Streetscene Environmental Services,Supplies and Services,Clothing & Uniforms,241,15-Jul-13,1307-00559,764.4,R,Arco Ltd
http://statistics.data.gov.uk/doc/local-authority/00DA,Leeds City Council,Environment & Housing,Streetscene Environmental Services,Supplies and Services,Clothing & Uniforms,241,04-Jul-13,1307-00560,770,R,Arco Ltd
http://statistics.data.gov.uk/doc/local-authority/00DA,Leeds City Council,Environment & Housing,Streetscene Environmental Services,Supplies and Services,Clothing & Uniforms,241,04-Jul-13,1307-00561,780,R,Arco Ltd
http://statistics.data.gov.uk/doc/local-authority/00DA,Leeds City Council,Environment & Housing,Streetscene Environmental Services,Supplies and Services,Clothing & Uniforms,241,04-Jul-13,1307-00562,819,R,Arco Ltd
http://statistics.data.gov.uk/doc/local-authority/00DA,Leeds City Council,Environment & Housing,Streetscene Environmental Services,Supplies and Services,Clothing & Uniforms,241,04-Jul-13,1307-00563,820,R,Arco Ltd
http://statistics.data.gov.uk/doc/local-authority/00DA,Leeds City Council,Environment & Housing,Streetscene Environmental Services,Supplies and Services,Clothing & Uniforms,241,12-Jul-13,1307-00564,843.75,R,Arco Ltd
http://statistics.data.gov.uk/doc/local-authority/00DA,Leeds City Council,Environment & Housing,Streetscene Environmental Services,Supplies and Services,Clothing & Uniforms,241,02-Jul-13,1307-00565,1284.29,R,Arco Ltd
http://statistics.data.gov.uk/doc/local-authority/00DA,Leeds City Council,Environment & Housing,Streetscene Environmental Services,Supplies and Services,Clothing & Uniforms,241,03-Jul-13,1307-00566,1535.45,R,Arco Ltd
http://statistics.data.gov.uk/doc/local-authority/00DA,Leeds City Council,Environment & Housing,Streetscene Environmental Services,Supplies and Services,Clothing & Uniforms,241,12-Jul-13,1307-00567,1560,R,Arco Ltd
http://statistics.data.gov.uk/doc/local-authority/00DA,Leeds City Council,Environment & Housing,Streetscene Environmental Services,Supplies and Services,Clothing & Uniforms,241,02-Jul-13,1307-00568,1560,R,Arco Ltd
http://statistics.data.gov.uk/doc/local-authority/00DA,Leeds City Council,Environment & Housing,Streetscene Environmental Services,Supplies and Services,Clothing & Uniforms,241,05-Jul-13,1307-00569,1695,R,Arco Ltd
http://statistics.data.gov.uk/doc/local-authority/00DA,Leeds City Council,Environment & Housing,Streetscene Environmental Services,Supplies and Services,Clothing & Uniforms,241,17-Jul-13,1307-00570,2095.57,R,Arco Ltd
http://statistics.data.gov.uk/doc/local-authority/00DA,Leeds City Council,Environment & Housing,Streetscene Environmental Services,Supplies and Services,Clothing & Uniforms,241,30-Jul-13,1307-00571,2176.31,R,Arco Ltd
http://statistics.data.gov.uk/doc/local-authority/00DA,Leeds City Council,Childrens Services,Safeguarding Targeted & Specialist  ,Third Party Payments,Pathway/UASC Grants,556,07-Jun-13,1307-00572,612.91,R,Argos Retail Group
http://statistics.data.gov.uk/doc/local-authority/00DA,Aire Valley Homes Leeds,Aire Valley Homes Leeds,Aire Valley Homes Leeds,Premises,H.R.A. - Repairs A To P,107,23-Jul-13,1307-00573,427.47,R,Arjohuntleigh Uk
http://statistics.data.gov.uk/doc/local-authority/00DA,Leeds City Council,Environment & Housing,Parks & Countryside,Supplies and Services,Operational Materials,205,18-Jul-13,1307-00574,5000,R,Ark Display Graphics
http://statistics.data.gov.uk/doc/local-authority/00DA,Leeds City Council,Adult Social Care,Services For Older People - 65 And Over,Third Party Payments,Home Care,568,05-Jul-13,1307-00575,1278.45,R,Ark Home Healthcare Ltd
http://statistics.data.gov.uk/doc/local-authority/00DA,Leeds City Council,Adult Social Care,Services For Older People - 65 And Over,Third Party Payments,Home Care,568,05-Jul-13,1307-00576,2469.52,R,Ark Home Healthcare Ltd
http://statistics.data.gov.uk/doc/local-authority/00DA,Leeds City Council,Adult Social Care,Services For Older People - 65 And Over,Third Party Payments,Home Care,568,15-Jul-13,1307-00577,2851.72,R,Ark Home Healthcare Ltd
http://statistics.data.gov.uk/doc/local-authority/00DA,Leeds City Council,Adult Social Care,Services For Older People - 65 And Over,Third Party Payments,Home Care,568,05-Jul-13,1307-00578,6363.02,R,Ark Home Healthcare Ltd
http://statistics.data.gov.uk/doc/local-authority/00DA,Leeds City Council,Adult Social Care,Services For Older People - 65 And Over,Third Party Payments,Home Care,568,05-Jul-13,1307-00579,8741.35,R,Ark Home Healthcare Ltd
http://statistics.data.gov.uk/doc/local-authority/00DA,Leeds City Council,Adult Social Care,Services For Older People - 65 And Over,Third Party Payments,Home Care,568,05-Jul-13,1307-00580,11338.86,R,Ark Home Healthcare Ltd
http://statistics.data.gov.uk/doc/local-authority/00DA,Leeds City Council,Adult Social Care,Services For Older People - 65 And Over,Third Party Payments,Home Care,568,05-Jul-13,1307-00581,18756.65,R,Ark Home Healthcare Ltd
http://statistics.data.gov.uk/doc/local-authority/00DA,Leeds City Council,Adult Social Care,Services For Older People - 65 And Over,Third Party Payments,Home Care,568,05-Jul-13,1307-00582,19576.69,R,Ark Home Healthcare Ltd
http://statistics.data.gov.uk/doc/local-authority/00DA,Leeds City Council,Adult Social Care,Services For Older People Under 65 P/Dis,Third Party Payments,Home Care,568,05-Jul-13,1307-00583,468.2,R,Ark Home Healthcare Ltd
http://statistics.data.gov.uk/doc/local-authority/00DA,Leeds City Council,Adult Social Care,Services For Older People Under 65 P/Dis,Third Party Payments,Home Care,568,05-Jul-13,1307-00584,1314.78,R,Ark Home Healthcare Ltd
http://statistics.data.gov.uk/doc/local-authority/00DA,Leeds City Council,Adult Social Care,Services For Older People Under 65 P/Dis,Third Party Payments,Home Care,568,05-Jul-13,1307-00585,1324.32,R,Ark Home Healthcare Ltd
http://statistics.data.gov.uk/doc/local-authority/00DA,Leeds City Council,Adult Social Care,Services For Older People Under 65 P/Dis,Third Party Payments,Home Care,568,05-Jul-13,1307-00586,3458,R,Ark Home Healthcare Ltd
http://statistics.data.gov.uk/doc/local-authority/00DA,Leeds City Council,Adult Social Care,Services For Older People Under 65 P/Dis,Third Party Payments,Home Care,568,05-Jul-13,1307-00587,7167.54,R,Ark Home Healthcare Ltd
http://statistics.data.gov.uk/doc/local-authority/00DA,Leeds City Council,City Development,Highways,Transport,Plant Hire - By Directorate,305,18-Jul-13,1307-00588,2000,R,Armcon Limited
http://statistics.data.gov.uk/doc/local-authority/00DA,Leeds City Council,Adult Social Care,Services For Older People Under 65 P/Dis,Transfer Payments,Direct Payments,626,03-Jul-13,1307-00589,1138.2,R,REDACTED PERSONAL DATA
http://statistics.data.gov.uk/doc/local-authority/00DA,Leeds City Council,Adult Social Care,Services For Older People Under 65 P/Dis,Transfer Payments,Direct Payments,626,31-Jul-13,1307-00590,1270.18,R,REDACTED PERSONAL DATA
http://statistics.data.gov.uk/doc/local-authority/00DA,Leeds City Council,City Development,Highways,Employees,Best Value Training,70,12-Jul-13,1307-00591,750,R,Armitage Training Solutions Ltd
http://statistics.data.gov.uk/doc/local-authority/00DA,Leeds City Council,Adult Social Care,Social Services Support Services,Third Party Payments,Payments To Voluntary Organisations,561,01-Jul-13,1307-00592,22646,R,Armley Helping Hands
http://statistics.data.gov.uk/doc/local-authority/00DA,Leeds City Council,Childrens Services,Learning Skills & Universal,Third Party Payments,Services Rendered By Voluntary Sector,505,04-Jul-13,1307-00593,11196,R,Armley Juniors
http://statistics.data.gov.uk/doc/local-authority/00DA,Leeds City Council,Central & Corporate,Executive Support,Supplies and Services,'Well Being' Large Grants Projects,230,24-Jul-13,1307-00594,4893,R,Armley Juniors Project For Young People
http://statistics.data.gov.uk/doc/local-authority/00DA,Leeds City Council,City Development,Libraries  Arts & Heritage,Supplies and Services,Operational Materials,205,03-Jul-13,1307-00595,1164.9,R,Arqadia Limited
http://statistics.data.gov.uk/doc/local-authority/00DA,Leeds City Council,Adult Social Care,Services For Older People - 65 And Over,Third Party Payments,Nursing Home,570,04-Jul-13,1307-00596,1323.64,R,Arrigadeen Nursing Home
http://statistics.data.gov.uk/doc/local-authority/00DA,Leeds City Council,Childrens Services,Learning Skills & Universal,Premises,Maintenance Of Buildings,101,12-Jul-13,1307-00597,485,R,Arrow Sec Shutters Ltd
http://statistics.data.gov.uk/doc/local-authority/00DA,Leeds City Council,City Development,Libraries  Arts & Heritage,Supplies and Services,Art Galleries Total Stores,3,25-Jul-13,1307-00598,864.6,R,Art Angels Publishing Ltd
http://statistics.data.gov.uk/doc/local-authority/00DA,Leeds City Council,Adult Social Care,Services For Older People - 65 And Over,Transfer Payments,Personalised Budgets,627,03-Jul-13,1307-00599,1008,R,REDACTED PERSONAL DATA
http://statistics.data.gov.uk/doc/local-authority/00DA,Leeds City Council,Adult Social Care,Services For Older People - 65 And Over,Transfer Payments,Personalised Budgets,627,31-Jul-13,1307-00600,1008,R,REDACTED PERSONAL DATA
http://statistics.data.gov.uk/doc/local-authority/00DA,Leeds City Council,Adult Social Care,Services For Adults Under 65 Mental/Dis,Third Party Payments,Payments To Voluntary Organisations,561,12-Jul-13,1307-00601,1027.87,R,Articulate Advocacy
http://statistics.data.gov.uk/doc/local-authority/00DA,Leeds City Council,Adult Social Care,Services For Adults Under 65 Mental/Dis,Third Party Payments,Payments To Voluntary Organisations,561,12-Jul-13,1307-00602,1131.33,R,Articulate Advocacy
http://statistics.data.gov.uk/doc/local-authority/00DA,Leeds City Council,Adult Social Care,Services For Adults Under 65 Mental/Dis,Third Party Payments,Payments To Voluntary Organisations,561,15-Jul-13,1307-00603,17239.86,R,Articulate Advocacy
http://statistics.data.gov.uk/doc/local-authority/00DA,Leeds City Council,Adult Social Care,Services For Adults Under 65 Mental/Dis,Third Party Payments,Payments To Voluntary Organisations,561,03-Jul-13,1307-00604,18652.75,R,Articulate Advocacy
http://statistics.data.gov.uk/doc/local-authority/00DA,Leeds City Council,Adult Social Care,Services For Adults Under 65 Mental/Dis,Third Party Payments,Payments To Voluntary Organisations,561,05-Jul-13,1307-00605,18699.92,R,Articulate Advocacy
http://statistics.data.gov.uk/doc/local-authority/00DA,Leeds City Council as Accountable Body,Social Services Pooled Budgets,Jcs For People With Learning Disabilitie,Third Party Payments,Other Agency Services,561,24-Jul-13,1307-00606,3003.32,R,Articulate Advocacy
http://statistics.data.gov.uk/doc/local-authority/00DA,Leeds City Council,City Development,Recreation,Supplies and Services,Resaleable Materials,204,24-Jul-13,1307-00607,739.75,R,Asa Awards Scheme
http://statistics.data.gov.uk/doc/local-authority/00DA,Leeds City Council,City Development,Recreation,Supplies and Services,Resaleable Materials,204,09-Jul-13,1307-00608,961.6,R,Asa Awards Scheme
http://statistics.data.gov.uk/doc/local-authority/00DA,Leeds City Council,Central & Corporate,Commercial Services Trading Services,Supplies and Services,Operational Materials,205,01-Jul-13,1307-00609,437.75,R,Asbestos Equipment & Supplies Ltd
http://statistics.data.gov.uk/doc/local-authority/00DA,Leeds City Council,Central & Corporate,Commercial Services Trading Services,Supplies and Services,Other Hired And Contracted Services,265,12-Jul-13,1307-00610,420,R,Asbestos Sample Analysis Limited
http://statistics.data.gov.uk/doc/local-authority/00DA,Leeds City Council,Central & Corporate,Commercial Services Trading Services,Supplies and Services,Other Hired And Contracted Services,265,18-Jul-13,1307-00611,442.5,R,Asbestos Sample Analysis Limited
http://statistics.data.gov.uk/doc/local-authority/00DA,Leeds City Council,Central & Corporate,Commercial Services Trading Services,Supplies and Services,Other Hired And Contracted Services,265,18-Jul-13,1307-00612,450,R,Asbestos Sample Analysis Limited
http://statistics.data.gov.uk/doc/local-authority/00DA,Leeds City Council,Central & Corporate,Commercial Services Trading Services,Supplies and Services,Other Hired And Contracted Services,265,03-Jul-13,1307-00613,450,R,Asbestos Sample Analysis Limited
http://statistics.data.gov.uk/doc/local-authority/00DA,Leeds City Council,Central & Corporate,Commercial Services Trading Services,Supplies and Services,Other Hired And Contracted Services,265,26-Jul-13,1307-00614,450,R,Asbestos Sample Analysis Limited
http://statistics.data.gov.uk/doc/local-authority/00DA,Leeds City Council,Central & Corporate,Commercial Services Trading Services,Supplies and Services,Other Hired And Contracted Services,265,24-Jul-13,1307-00615,525,R,Asbestos Sample Analysis Limited
http://statistics.data.gov.uk/doc/local-authority/00DA,Leeds City Council,Central & Corporate,Commercial Services Trading Services,Supplies and Services,Other Hired And Contracted Services,265,24-Jul-13,1307-00616,675,R,Asbestos Sample Analysis Limited
http://statistics.data.gov.uk/doc/local-authority/00DA,East - North East  ,East - North East,Construction Services,Supplies and Services,Office Equipment,201,12-Jul-13,1307-00617,1130.6,R,Ascertiva Group Ltd
http://statistics.data.gov.uk/doc/local-authority/00DA,Leeds City Council,Childrens Services,Learning Skills & Universal,Supplies and Services,Teaching Furniture & Equipment,207,24-Jul-13,1307-00618,450,R,Ascl Professional Development Ltd
http://statistics.data.gov.uk/doc/local-authority/00DA,Leeds City Council,City Development,Asset Management Services,Premises,Rents,141,26-Jul-13,1307-00619,11362.81,R,Asda Stores Limited
http://statistics.data.gov.uk/doc/local-authority/00DA,Leeds City Council,Childrens Services,Learning Skills & Universal,Third Party Payments,Services Rendered By Voluntary Sector,505,04-Jul-13,1307-00620,603.55,R,Asha Neighbourhood Project
http://statistics.data.gov.uk/doc/local-authority/00DA,Leeds City Council,Adult Social Care,Services For Older People - 65 And Over,Third Party Payments,Residential,580,31-Jul-13,1307-00621,8375.76,R,Ashcroft House Residential Home
http://statistics.data.gov.uk/doc/local-authority/00DA,Leeds City Council,Adult Social Care,Services For Older People - 65 And Over,Third Party Payments,Residential,580,03-Jul-13,1307-00622,13561.1,R,Ashcroft House Residential Home
http://statistics.data.gov.uk/doc/local-authority/00DA,Leeds City Council,Adult Social Care,Services For Older People - 65 And Over,Third Party Payments,Nursing Home,570,31-Jul-13,1307-00623,1307.32,R,Ashcroft Nursing Home
http://statistics.data.gov.uk/doc/local-authority/00DA,Leeds City Council,Adult Social Care,Services For Older People - 65 And Over,Third Party Payments,Nursing Home,570,31-Jul-13,1307-00624,1312.76,R,Ashcroft Nursing Home
http://statistics.data.gov.uk/doc/local-authority/00DA,Leeds City Council,Adult Social Care,Services For Older People - 65 And Over,Third Party Payments,Nursing Home,570,03-Jul-13,1307-00625,1343,R,Ashcroft Nursing Home
http://statistics.data.gov.uk/doc/local-authority/00DA,Leeds City Council,Adult Social Care,Services For Older People - 65 And Over,Third Party Payments,Nursing Home,570,03-Jul-13,1307-00626,3714.03,R,Ashcroft Nursing Home
http://statistics.data.gov.uk/doc/local-authority/00DA,Leeds City Council,Adult Social Care,Services For Older People - 65 And Over,Third Party Payments,Residential Care Dementia,571,31-Jul-13,1307-00627,750.84,R,Ashcroft Nursing Home
http://statistics.data.gov.uk/doc/local-authority/00DA,Leeds City Council,Adult Social Care,Services For Older People - 65 And Over,Third Party Payments,Residential Care Dementia,571,03-Jul-13,1307-00628,750.84,R,Ashcroft Nursing Home
http://statistics.data.gov.uk/doc/local-authority/00DA,Leeds City Council,Environment & Housing,Parks & Countryside,Supplies and Services,Operational Materials,205,02-Jul-13,1307-00629,1880,R,Ashdown Supplies
http://statistics.data.gov.uk/doc/local-authority/00DA,Leeds City Council,Adult Social Care,Services For Older People - 65 And Over,Third Party Payments,Residential,580,03-Jul-13,1307-00630,971.52,R,Ashfield Court
http://statistics.data.gov.uk/doc/local-authority/00DA,Leeds City Council,Adult Social Care,Services For Adults Under 65 Mental/Dis,Third Party Payments,Residential,580,31-Jul-13,1307-00631,2318.4,R,Ashfield Nursing Home
http://statistics.data.gov.uk/doc/local-authority/00DA,Leeds City Council,Adult Social Care,Services For Adults Under 65 Mental/Dis,Third Party Payments,Residential,580,03-Jul-13,1307-00632,2318.4,R,Ashfield Nursing Home
http://statistics.data.gov.uk/doc/local-authority/00DA,Leeds City Council,Adult Social Care,Services For Older People - 65 And Over,Third Party Payments,Nursing Home,570,31-Jul-13,1307-00633,5312.16,R,Ashfield Nursing Home
http://statistics.data.gov.uk/doc/local-authority/00DA,Leeds City Council,Adult Social Care,Services For Older People - 65 And Over,Third Party Payments,Nursing Home,570,03-Jul-13,1307-00634,5312.16,R,Ashfield Nursing Home
http://statistics.data.gov.uk/doc/local-authority/00DA,Leeds City Council,Adult Social Care,Services For Older People - 65 And Over,Third Party Payments,Residential Care Dementia,571,31-Jul-13,1307-00635,1119.36,R,Ashfield Nursing Home
http://statistics.data.gov.uk/doc/local-authority/00DA,Leeds City Council,Adult Social Care,Services For Older People - 65 And Over,Third Party Payments,Residential Care Dementia,571,03-Jul-13,1307-00636,1119.36,R,Ashfield Nursing Home
http://statistics.data.gov.uk/doc/local-authority/00DA,Leeds City Council,Adult Social Care,Services For Older People - 65 And Over,Third Party Payments,Residential,580,31-Jul-13,1307-00637,1208,R,Ashfield Nursing Home
http://statistics.data.gov.uk/doc/local-authority/00DA,Leeds City Council,Adult Social Care,Services For Older People - 65 And Over,Third Party Payments,Residential,580,03-Jul-13,1307-00638,1208,R,Ashfield Nursing Home
http://statistics.data.gov.uk/doc/local-authority/00DA,Leeds City Council,Adult Social Care,Services For Older People - 65 And Over,Third Party Payments,Nursing Home,570,03-Jul-13,1307-00639,1860,R,Ashley Care Ltd
http://statistics.data.gov.uk/doc/local-authority/00DA,Leeds City Council,Adult Social Care,Services For Older People - 65 And Over,Third Party Payments,Nursing Home,570,31-Jul-13,1307-00640,1860,R,Ashley Care Ltd
http://statistics.data.gov.uk/doc/local-authority/00DA,Leeds City Council as Accountable Body,Social Services Pooled Budgets,Jcs For People With Learning Disabilitie,Transfer Payments,Personal Budgets,627,03-Jul-13,1307-00641,791.32,R,REDACTED PERSONAL DATA
http://statistics.data.gov.uk/doc/local-authority/00DA,Leeds City Council as Accountable Body,Social Services Pooled Budgets,Jcs For People With Learning Disabilitie,Transfer Payments,Personal Budgets,627,31-Jul-13,1307-00642,791.32,R,REDACTED PERSONAL DATA
http://statistics.data.gov.uk/doc/local-authority/00DA,Leeds City Council,Adult Social Care,Services For Older People Under 65 P/Dis,Transfer Payments,Personalised Budgets,627,03-Jul-13,1307-00643,634.68,R,REDACTED PERSONAL DATA
http://statistics.data.gov.uk/doc/local-authority/00DA,Leeds City Council,Adult Social Care,Services For Older People Under 65 P/Dis,Transfer Payments,Personalised Budgets,627,31-Jul-13,1307-00644,634.68,R,REDACTED PERSONAL DATA
http://statistics.data.gov.uk/doc/local-authority/00DA,Leeds City Council,Central & Corporate,Commercial Services Trading Services,Supplies and Services,Other Hired And Contracted Services,265,10-Jul-13,1307-00645,546,R,Ashtead Plant Hire Company Ltd
http://statistics.data.gov.uk/doc/local-authority/00DA,Leeds City Council,Central & Corporate,Commercial Services Trading Services,Supplies and Services,Other Hired And Contracted Services,265,16-Jul-13,1307-00646,782,R,Ashtead Plant Hire Company Ltd
http://statistics.data.gov.uk/doc/local-authority/00DA,Leeds City Council,City Development,Highways,Transport,Plant Hire - By Directorate,305,05-Jul-13,1307-00647,667,R,Ashtead Plant Hire Company Ltd
http://statistics.data.gov.uk/doc/local-authority/00DA,Leeds City Council,City Development,Highways,Transport,Plant Hire - By Directorate,305,05-Jul-13,1307-00648,667,R,Ashtead Plant Hire Company Ltd
http://statistics.data.gov.uk/doc/local-authority/00DA,Leeds City Council,City Development,Highways,Transport,Plant Hire - By Directorate,305,05-Jul-13,1307-00649,667,R,Ashtead Plant Hire Company Ltd
http://statistics.data.gov.uk/doc/local-authority/00DA,Leeds City Council,City Development,Highways,Transport,Plant Hire - By Directorate,305,05-Jul-13,1307-00650,667,R,Ashtead Plant Hire Company Ltd
http://statistics.data.gov.uk/doc/local-authority/00DA,Leeds City Council,City Development,Highways,Transport,Plant Hire - By Directorate,305,05-Jul-13,1307-00651,667,R,Ashtead Plant Hire Company Ltd
http://statistics.data.gov.uk/doc/local-authority/00DA,Leeds City Council,City Development,Highways,Transport,Plant Hire - By Directorate,305,05-Jul-13,1307-00652,667,R,Ashtead Plant Hire Company Ltd
http://statistics.data.gov.uk/doc/local-authority/00DA,Leeds City Council,City Development,Highways,Transport,Plant Hire - By Directorate,305,05-Jul-13,1307-00653,667,R,Ashtead Plant Hire Company Ltd
http://statistics.data.gov.uk/doc/local-authority/00DA,Leeds City Council,City Development,Highways,Transport,Plant Hire - By Directorate,305,05-Jul-13,1307-00654,667,R,Ashtead Plant Hire Company Ltd
http://statistics.data.gov.uk/doc/local-authority/00DA,Leeds City Council,City Development,Highways,Transport,Plant Hire - By Directorate,305,05-Jul-13,1307-00655,667,R,Ashtead Plant Hire Company Ltd
http://statistics.data.gov.uk/doc/local-authority/00DA,Leeds City Council,City Development,Highways,Transport,Plant Hire - By Directorate,305,05-Jul-13,1307-00656,667,R,Ashtead Plant Hire Company Ltd
http://statistics.data.gov.uk/doc/local-authority/00DA,Leeds City Council,City Development,Highways,Transport,Plant Hire - By Directorate,305,05-Jul-13,1307-00657,667,R,Ashtead Plant Hire Company Ltd
http://statistics.data.gov.uk/doc/local-authority/00DA,Leeds City Council,City Development,Highways,Transport,Plant Hire - By Directorate,305,05-Jul-13,1307-00658,667,R,Ashtead Plant Hire Company Ltd
http://statistics.data.gov.uk/doc/local-authority/00DA,Leeds City Council,City Development,Highways,Transport,Plant Hire - By Directorate,305,05-Jul-13,1307-00659,667,R,Ashtead Plant Hire Company Ltd
http://statistics.data.gov.uk/doc/local-authority/00DA,Leeds City Council,City Development,Highways,Transport,Plant Hire - By Directorate,305,05-Jul-13,1307-00660,667,R,Ashtead Plant Hire Company Ltd
http://statistics.data.gov.uk/doc/local-authority/00DA,Leeds City Council,City Development,Highways,Transport,Plant Hire - By Directorate,305,05-Jul-13,1307-00661,667,R,Ashtead Plant Hire Company Ltd
http://statistics.data.gov.uk/doc/local-authority/00DA,Leeds City Council,City Development,Highways,Transport,Plant Hire - By Directorate,305,05-Jul-13,1307-00662,667,R,Ashtead Plant Hire Company Ltd
http://statistics.data.gov.uk/doc/local-authority/00DA,Leeds City Council,City Development,Highways,Transport,Plant Hire - By Directorate,305,05-Jul-13,1307-00663,667,R,Ashtead Plant Hire Company Ltd
http://statistics.data.gov.uk/doc/local-authority/00DA,Leeds City Council,City Development,Highways,Transport,Plant Hire - By Directorate,305,05-Jul-13,1307-00664,667,R,Ashtead Plant Hire Company Ltd
http://statistics.data.gov.uk/doc/local-authority/00DA,Leeds City Council,City Development,Highways,Transport,Plant Hire - By Directorate,305,05-Jul-13,1307-00665,667,R,Ashtead Plant Hire Company Ltd
http://statistics.data.gov.uk/doc/local-authority/00DA,Leeds City Council,City Development,Highways,Transport,Plant Hire - By Directorate,305,05-Jul-13,1307-00666,667,R,Ashtead Plant Hire Company Ltd
http://statistics.data.gov.uk/doc/local-authority/00DA,Leeds City Council,City Development,Highways,Transport,Plant Hire - By Directorate,305,05-Jul-13,1307-00667,667,R,Ashtead Plant Hire Company Ltd
http://statistics.data.gov.uk/doc/local-authority/00DA,Leeds City Council,City Development,Highways,Transport,Plant Hire - By Directorate,305,05-Jul-13,1307-00668,690,R,Ashtead Plant Hire Company Ltd
http://statistics.data.gov.uk/doc/local-authority/00DA,Leeds City Council,City Development,Highways,Transport,Plant Hire - By Directorate,305,05-Jul-13,1307-00669,920,R,Ashtead Plant Hire Company Ltd
http://statistics.data.gov.uk/doc/local-authority/00DA,Leeds City Council,Adult Social Care,Services For Older People - 65 And Over,Third Party Payments,Residential Care Dementia,571,31-Jul-13,1307-00670,1224.52,R,Ashville Care Home
http://statistics.data.gov.uk/doc/local-authority/00DA,Leeds City Council,Adult Social Care,Services For Older People - 65 And Over,Third Party Payments,Residential Care Dementia,571,03-Jul-13,1307-00671,1253.92,R,Ashville Care Home
http://statistics.data.gov.uk/doc/local-authority/00DA,Leeds City Council,Adult Social Care,Services For Older People - 65 And Over,Third Party Payments,Residential Care Dementia,571,31-Jul-13,1307-00672,1243.08,R,Ashworth Grange
http://statistics.data.gov.uk/doc/local-authority/00DA,Leeds City Council,Adult Social Care,Services For Older People - 65 And Over,Third Party Payments,Residential Care Dementia,571,03-Jul-13,1307-00673,1292.04,R,Ashworth Grange
http://statistics.data.gov.uk/doc/local-authority/00DA,Leeds City Council,Adult Social Care,Services For Older People - 65 And Over,Third Party Payments,Residential,580,31-Jul-13,1307-00674,1201.24,R,Ashworth Grange
http://statistics.data.gov.uk/doc/local-authority/00DA,Leeds City Council,Adult Social Care,Services For Older People - 65 And Over,Third Party Payments,Residential,580,03-Jul-13,1307-00675,1250.2,R,Ashworth Grange
http://statistics.data.gov.uk/doc/local-authority/00DA,Leeds City Council,City Development,Libraries  Arts & Heritage,Supplies and Services,Books & Audio-Visual Materials,206,31-Jul-13,1307-00676,490.3,R,Askews & Holts Library Services Ltd
http://statistics.data.gov.uk/doc/local-authority/00DA,Leeds City Council,City Development,Libraries  Arts & Heritage,Supplies and Services,Books & Audio-Visual Materials,206,02-Jul-13,1307-00677,508.52,R,Askews & Holts Library Services Ltd
http://statistics.data.gov.uk/doc/local-authority/00DA,Leeds City Council,City Development,Libraries  Arts & Heritage,Supplies and Services,Books & Audio-Visual Materials,206,04-Jul-13,1307-00678,577.25,R,Askews & Holts Library Services Ltd
http://statistics.data.gov.uk/doc/local-authority/00DA,Leeds City Council,City Development,Libraries  Arts & Heritage,Supplies and Services,Books & Audio-Visual Materials,206,15-Jul-13,1307-00679,613.82,R,Askews & Holts Library Services Ltd
http://statistics.data.gov.uk/doc/local-authority/00DA,Leeds City Council,City Development,Libraries  Arts & Heritage,Supplies and Services,Books & Audio-Visual Materials,206,22-Jul-13,1307-00680,715.2,R,Askews & Holts Library Services Ltd
http://statistics.data.gov.uk/doc/local-authority/00DA,Leeds City Council,City Development,Libraries  Arts & Heritage,Supplies and Services,Books & Audio-Visual Materials,206,08-Jul-13,1307-00681,749.73,R,Askews & Holts Library Services Ltd
http://statistics.data.gov.uk/doc/local-authority/00DA,Leeds City Council,City Development,Libraries  Arts & Heritage,Supplies and Services,Books & Audio-Visual Materials,206,02-Jul-13,1307-00682,832.87,R,Askews & Holts Library Services Ltd
http://statistics.data.gov.uk/doc/local-authority/00DA,Leeds City Council,City Development,Libraries  Arts & Heritage,Supplies and Services,Books & Audio-Visual Materials,206,22-Jul-13,1307-00683,1309.69,R,Askews & Holts Library Services Ltd
http://statistics.data.gov.uk/doc/local-authority/00DA,Leeds City Council,City Development,Libraries  Arts & Heritage,Supplies and Services,Books & Audio-Visual Materials,206,30-Jul-13,1307-00684,1513.08,R,Askews & Holts Library Services Ltd
http://statistics.data.gov.uk/doc/local-authority/00DA,Leeds City Council,City Development,Libraries  Arts & Heritage,Supplies and Services,Books & Audio-Visual Materials,206,08-Jul-13,1307-00685,1591.86,R,Askews & Holts Library Services Ltd
http://statistics.data.gov.uk/doc/local-authority/00DA,Leeds City Council,City Development,Libraries  Arts & Heritage,Supplies and Services,Books & Audio-Visual Materials,206,02-Jul-13,1307-00686,1623.64,R,Askews & Holts Library Services Ltd
http://statistics.data.gov.uk/doc/local-authority/00DA,Leeds City Council,City Development,Libraries  Arts & Heritage,Supplies and Services,Books & Audio-Visual Materials,206,30-Jul-13,1307-00687,1692.99,R,Askews & Holts Library Services Ltd
http://statistics.data.gov.uk/doc/local-authority/00DA,Leeds City Council,City Development,Libraries  Arts & Heritage,Supplies and Services,Books & Audio-Visual Materials,206,30-Jul-13,1307-00688,1842.1,R,Askews & Holts Library Services Ltd
http://statistics.data.gov.uk/doc/local-authority/00DA,Leeds City Council,City Development,Libraries  Arts & Heritage,Supplies and Services,Books & Audio-Visual Materials,206,22-Jul-13,1307-00689,1905.87,R,Askews & Holts Library Services Ltd
http://statistics.data.gov.uk/doc/local-authority/00DA,Leeds City Council,City Development,Libraries  Arts & Heritage,Supplies and Services,Books & Audio-Visual Materials,206,15-Jul-13,1307-00690,2002.02,R,Askews & Holts Library Services Ltd
http://statistics.data.gov.uk/doc/local-authority/00DA,Leeds City Council,City Development,Libraries  Arts & Heritage,Supplies and Services,Books & Audio-Visual Materials,206,02-Jul-13,1307-00691,2116.57,R,Askews & Holts Library Services Ltd
http://statistics.data.gov.uk/doc/local-authority/00DA,Leeds City Council,City Development,Libraries  Arts & Heritage,Supplies and Services,Books & Audio-Visual Materials,206,08-Jul-13,1307-00692,2134.19,R,Askews & Holts Library Services Ltd
http://statistics.data.gov.uk/doc/local-authority/00DA,Leeds City Council,City Development,Libraries  Arts & Heritage,Supplies and Services,Books & Audio-Visual Materials,206,08-Jul-13,1307-00693,2164.93,R,Askews & Holts Library Services Ltd
http://statistics.data.gov.uk/doc/local-authority/00DA,Leeds City Council,City Development,Libraries  Arts & Heritage,Supplies and Services,Books & Audio-Visual Materials,206,08-Jul-13,1307-00694,2378.67,R,Askews & Holts Library Services Ltd
http://statistics.data.gov.uk/doc/local-authority/00DA,Leeds City Council,City Development,Libraries  Arts & Heritage,Supplies and Services,Books & Audio-Visual Materials,206,22-Jul-13,1307-00695,2870.37,R,Askews & Holts Library Services Ltd
http://statistics.data.gov.uk/doc/local-authority/00DA,Leeds City Council,City Development,Libraries  Arts & Heritage,Supplies and Services,Books & Audio-Visual Materials,206,22-Jul-13,1307-00696,3028.91,R,Askews & Holts Library Services Ltd
http://statistics.data.gov.uk/doc/local-authority/00DA,Leeds City Council,City Development,Libraries  Arts & Heritage,Supplies and Services,Books & Audio-Visual Materials,206,02-Jul-13,1307-00697,3741.37,R,Askews & Holts Library Services Ltd
http://statistics.data.gov.uk/doc/local-authority/00DA,Leeds City Council,City Development,Libraries  Arts & Heritage,Supplies and Services,Books & Audio-Visual Materials,206,15-Jul-13,1307-00698,4435.35,R,Askews & Holts Library Services Ltd
http://statistics.data.gov.uk/doc/local-authority/00DA,Leeds City Council,City Development,Libraries  Arts & Heritage,Supplies and Services,Books & Audio-Visual Materials,206,15-Jul-13,1307-00699,4768.69,R,Askews & Holts Library Services Ltd
http://statistics.data.gov.uk/doc/local-authority/00DA,Leeds City Council,City Development,Libraries  Arts & Heritage,Supplies and Services,Books & Audio-Visual Materials,206,02-Jul-13,1307-00700,4925.68,R,Askews & Holts Library Services Ltd
http://statistics.data.gov.uk/doc/local-authority/00DA,Leeds City Council,City Development,Libraries  Arts & Heritage,Supplies and Services,Books & Audio-Visual Materials,206,30-Jul-13,1307-00701,5979.13,R,Askews & Holts Library Services Ltd
http://statistics.data.gov.uk/doc/local-authority/00DA,Leeds City Council,City Development,Libraries  Arts & Heritage,Supplies and Services,Books & Audio-Visual Materials,206,15-Jul-13,1307-00702,6742.68,R,Askews & Holts Library Services Ltd
http://statistics.data.gov.uk/doc/local-authority/00DA,Aire Valley Homes Leeds,Aire Valley Homes Leeds,Aire Valley Homes Leeds,Employees,General Training,79,12-Jul-13,1307-00703,840,R,Askham Bryan College
http://statistics.data.gov.uk/doc/local-authority/00DA,East - North East  ,East - North East,Corporate Directorate,Employees,General Training,79,26-Jul-13,1307-00704,880,R,Askham Bryan College
http://statistics.data.gov.uk/doc/local-authority/00DA,East - North East  ,East - North East,Corporate Directorate,Employees,General Training,79,26-Jul-13,1307-00705,880,R,Askham Bryan College
http://statistics.data.gov.uk/doc/local-authority/00DA,Leeds City Council,Environment & Housing,Parks & Countryside,Employees,Training Costs,71,31-Jul-13,1307-00706,695,R,Askham Bryan College
http://statistics.data.gov.uk/doc/local-authority/00DA,Leeds City Council,Environment & Housing,Parks & Countryside,Employees,Training Costs,71,09-Jul-13,1307-00707,2180,R,Askham Bryan College
http://statistics.data.gov.uk/doc/local-authority/00DA,West - North West,West - North West,Corporate Services,Employees,General Training,79,01-Jul-13,1307-00708,1305,R,Askham Bryan College
http://statistics.data.gov.uk/doc/local-authority/00DA,Leeds City Council,City Development,Highways,Transport,Plant Hire - By Directorate,305,08-Jul-13,1307-00709,-650,R,Asphalt Pavers
http://statistics.data.gov.uk/doc/local-authority/00DA,Leeds City Council,City Development,Highways,Transport,Plant Hire - By Directorate,305,08-Jul-13,1307-00710,-533,R,Asphalt Pavers
http://statistics.data.gov.uk/doc/local-authority/00DA,Leeds City Council,City Development,Highways,Transport,Plant Hire - By Directorate,305,08-Jul-13,1307-00711,-442,R,Asphalt Pavers
http://statistics.data.gov.uk/doc/local-authority/00DA,Leeds City Council,City Development,Highways,Transport,Plant Hire - By Directorate,305,12-Jul-13,1307-00712,597.5,R,Asphalt Pavers
http://statistics.data.gov.uk/doc/local-authority/00DA,Leeds City Council,City Development,Highways,Transport,Plant Hire - By Directorate,305,08-Jul-13,1307-00713,620,R,Asphalt Pavers
http://statistics.data.gov.uk/doc/local-authority/00DA,Leeds City Council,City Development,Highways,Transport,Plant Hire - By Directorate,305,19-Jul-13,1307-00714,635,R,Asphalt Pavers
http://statistics.data.gov.uk/doc/local-authority/00DA,Leeds City Council,City Development,Highways,Transport,Plant Hire - By Directorate,305,30-Jul-13,1307-00715,650,R,Asphalt Pavers
http://statistics.data.gov.uk/doc/local-authority/00DA,Leeds City Council,City Development,Highways,Transport,Plant Hire - By Directorate,305,08-Jul-13,1307-00716,650,R,Asphalt Pavers
http://statistics.data.gov.uk/doc/local-authority/00DA,Leeds City Council,City Development,Highways,Transport,Plant Hire - By Directorate,305,02-Jul-13,1307-00717,650,R,Asphalt Pavers
http://statistics.data.gov.uk/doc/local-authority/00DA,Leeds City Council,City Development,Highways,Transport,Plant Hire - By Directorate,305,08-Jul-13,1307-00718,784,R,Asphalt Pavers
http://statistics.data.gov.uk/doc/local-authority/00DA,Leeds City Council,City Development,Highways,Transport,Plant Hire - By Directorate,305,19-Jul-13,1307-00719,790,R,Asphalt Pavers
http://statistics.data.gov.uk/doc/local-authority/00DA,Leeds City Council,City Development,Highways,Transport,Plant Hire - By Directorate,305,19-Jul-13,1307-00720,790,R,Asphalt Pavers
http://statistics.data.gov.uk/doc/local-authority/00DA,Leeds City Council,City Development,Highways,Transport,Plant Hire - By Directorate,305,17-Jul-13,1307-00721,790,R,Asphalt Pavers
http://statistics.data.gov.uk/doc/local-authority/00DA,Leeds City Council,City Development,Highways,Transport,Plant Hire - By Directorate,305,19-Jul-13,1307-00722,790,R,Asphalt Pavers
http://statistics.data.gov.uk/doc/local-authority/00DA,Leeds City Council,City Development,Highways,Transport,Plant Hire - By Directorate,305,18-Jul-13,1307-00723,790,R,Asphalt Pavers
http://statistics.data.gov.uk/doc/local-authority/00DA,Leeds City Council,City Development,Highways,Transport,Plant Hire - By Directorate,305,26-Jul-13,1307-00724,790,R,Asphalt Pavers
http://statistics.data.gov.uk/doc/local-authority/00DA,Leeds City Council,City Development,Highways,Transport,Plant Hire - By Directorate,305,30-Jul-13,1307-00725,790,R,Asphalt Pavers
http://statistics.data.gov.uk/doc/local-authority/00DA,Leeds City Council,City Development,Highways,Transport,Plant Hire - By Directorate,305,30-Jul-13,1307-00726,790,R,Asphalt Pavers
http://statistics.data.gov.uk/doc/local-authority/00DA,Leeds City Council,City Development,Highways,Transport,Plant Hire - By Directorate,305,08-Jul-13,1307-00727,790,R,Asphalt Pavers
http://statistics.data.gov.uk/doc/local-authority/00DA,Leeds City Council,City Development,Highways,Transport,Plant Hire - By Directorate,305,02-Jul-13,1307-00728,790,R,Asphalt Pavers
http://statistics.data.gov.uk/doc/local-authority/00DA,Leeds City Council,City Development,Highways,Transport,Plant Hire - By Directorate,305,18-Jul-13,1307-00729,790,R,Asphalt Pavers
http://statistics.data.gov.uk/doc/local-authority/00DA,Leeds City Council,City Development,Highways,Transport,Plant Hire - By Directorate,305,02-Jul-13,1307-00730,790,R,Asphalt Pavers
http://statistics.data.gov.uk/doc/local-authority/00DA,Leeds City Council,City Development,Highways,Transport,Plant Hire - By Directorate,305,30-Jul-13,1307-00731,850,R,Asphalt Pavers
http://statistics.data.gov.uk/doc/local-authority/00DA,Leeds City Council,City Development,Highways,Transport,Plant Hire - By Directorate,305,18-Jul-13,1307-00732,924,R,Asphalt Pavers
http://statistics.data.gov.uk/doc/local-authority/00DA,Leeds City Council,City Development,Highways,Transport,Plant Hire - By Directorate,305,08-Jul-13,1307-00733,1064,R,Asphalt Pavers
http://statistics.data.gov.uk/doc/local-authority/00DA,Leeds City Council,City Development,Highways,Transport,Plant Hire - By Directorate,305,02-Jul-13,1307-00734,1064,R,Asphalt Pavers
http://statistics.data.gov.uk/doc/local-authority/00DA,Leeds City Council,City Development,Highways,Transport,Plant Hire - By Directorate,305,08-Jul-13,1307-00735,1130,R,Asphalt Pavers
http://statistics.data.gov.uk/doc/local-authority/00DA,Leeds City Council,City Development,Highways,Transport,Plant Hire - By Directorate,305,19-Jul-13,1307-00736,1160,R,Asphalt Pavers
http://statistics.data.gov.uk/doc/local-authority/00DA,Leeds City Council,City Development,Highways,Transport,Plant Hire - By Directorate,305,10-Jul-13,1307-00737,1300,R,Asphalt Pavers
http://statistics.data.gov.uk/doc/local-authority/00DA,Leeds City Council,City Development,Highways,Transport,Plant Hire - By Directorate,305,19-Jul-13,1307-00738,1810,R,Asphalt Pavers
http://statistics.data.gov.uk/doc/local-authority/00DA,Leeds City Council,City Development,Highways,Transport,Plant Hire - By Directorate,305,02-Jul-13,1307-00739,1810,R,Asphalt Pavers
http://statistics.data.gov.uk/doc/local-authority/00DA,Leeds City Council,City Development,Highways,Transport,Plant Hire - By Directorate,305,08-Jul-13,1307-00740,2363,R,Asphalt Pavers
http://statistics.data.gov.uk/doc/local-authority/00DA,Leeds City Council,City Development,Highways,Transport,Plant Hire - By Directorate,305,10-Jul-13,1307-00741,2502,R,Asphalt Pavers
http://statistics.data.gov.uk/doc/local-authority/00DA,Leeds City Council,City Development,Highways,Transport,Plant Hire - By Directorate,305,19-Jul-13,1307-00742,2690,R,Asphalt Pavers
http://statistics.data.gov.uk/doc/local-authority/00DA,Leeds City Council,City Development,Highways,Transport,Plant Hire - By Directorate,305,18-Jul-13,1307-00743,2690,R,Asphalt Pavers
http://statistics.data.gov.uk/doc/local-authority/00DA,Leeds City Council,City Development,Highways,Transport,Plant Hire - By Directorate,305,02-Jul-13,1307-00744,3060,R,Asphalt Pavers
http://statistics.data.gov.uk/doc/local-authority/00DA,Leeds City Council,Childrens Services,Learning Skills & Universal,Third Party Payments,Services Rendered By Other Organisations,511,19-Jul-13,1307-00745,760,R,Aspire-I Limited
http://statistics.data.gov.uk/doc/local-authority/00DA,Leeds City Council,Childrens Services,Learning Skills & Universal,Third Party Payments,Services Rendered By Other Organisations,511,04-Jul-13,1307-00746,1912.34,R,Asquith Court Nursery
http://statistics.data.gov.uk/doc/local-authority/00DA,East - North East ,East - North East,Construction Services  ,Premises,Removal Of Workplace Waste,126,06-Jun-13,1307-00747,2443.54,R,Associated Waste Manag
http://statistics.data.gov.uk/doc/local-authority/00DA,East - North East ,East - North East,Construction Services  ,Premises,Removal Of Workplace Waste,126,12-Jun-13,1307-00748,2508.05,R,Associated Waste Manag
http://statistics.data.gov.uk/doc/local-authority/00DA,East - North East ,East - North East,Construction Services  ,Premises,Removal Of Workplace Waste,126,19-Jun-13,1307-00749,2739.26,R,Associated Waste Manag
http://statistics.data.gov.uk/doc/local-authority/00DA,East - North East ,East - North East,Construction Services  ,Premises,Removal Of Workplace Waste,126,04-Jun-13,1307-00750,2759.9,R,Associated Waste Manag
http://statistics.data.gov.uk/doc/local-authority/00DA,East - North East ,East - North East,Construction Services  ,Premises,Removal Of Workplace Waste,126,26-Jun-13,1307-00751,3194.21,R,Associated Waste Manag
http://statistics.data.gov.uk/doc/local-authority/00DA,Leeds City Council,Central & Corporate Functions,Commercial Services Trading Services  ,Premises,Removal Of Workplace Waste,126,17-Jun-13,1307-00752,719.87,R,Associated Waste Manag
http://statistics.data.gov.uk/doc/local-authority/00DA,Leeds City Council,Central & Corporate Functions,Commercial Services Trading Services  ,Premises,Removal Of Workplace Waste,126,20-Jun-13,1307-00753,965.63,R,Associated Waste Manag
http://statistics.data.gov.uk/doc/local-authority/00DA,Leeds City Council,Central & Corporate Functions,Commercial Services Trading Services  ,Premises,Removal Of Workplace Waste,126,04-Jun-13,1307-00754,3622.01,R,Associated Waste Manag
http://statistics.data.gov.uk/doc/local-authority/00DA,Leeds City Council,Central & Corporate Functions,Commercial Services Trading Services  ,Supplies and Services,Operational Materials,205,20-Jun-13,1307-00755,1023.89,R,Associated Waste Manag
http://statistics.data.gov.uk/doc/local-authority/00DA,Leeds City Council,Central & Corporate Functions,Commercial Services Trading Services  ,Supplies and Services,Waste Disposal Charges,236,06-Jun-13,1307-00756,568.42,R,Associated Waste Manag
http://statistics.data.gov.uk/doc/local-authority/00DA,Leeds City Council,Central & Corporate Functions,Support And Facilities General Fund  ,Premises,Cleaning Maintenance & Toiletries,127,14-Jun-13,1307-00757,1809.29,R,Associated Waste Manag
http://statistics.data.gov.uk/doc/local-authority/00DA,Leeds City Council,Central & Corporate,Support And Facilities General Fund,Premises,Removal Of Workplace Waste,126,17-Jul-13,1307-00758,588,R,Associated Waste Management Limited
http://statistics.data.gov.uk/doc/local-authority/00DA,Leeds City Council,Central & Corporate,Support And Facilities General Fund,Premises,Removal Of Workplace Waste,126,29-Jul-13,1307-00759,5111.95,R,Associated Waste Management Limited
http://statistics.data.gov.uk/doc/local-authority/00DA,Leeds City Council,City Development,Economic Development,Premises,Removal Of Workplace Waste,126,12-Jul-13,1307-00760,436.16,R,Associated Waste Management Limited
http://statistics.data.gov.uk/doc/local-authority/00DA,Leeds City Council,City Development,Economic Development,Premises,Removal Of Workplace Waste,126,26-Jul-13,1307-00761,450.03,R,Associated Waste Management Limited
http://statistics.data.gov.uk/doc/local-authority/00DA,Leeds City Council,City Development,Economic Development,Premises,Removal Of Workplace Waste,126,12-Jul-13,1307-00762,480,R,Associated Waste Management Limited
http://statistics.data.gov.uk/doc/local-authority/00DA,Leeds City Council,City Development,Economic Development,Premises,Removal Of Workplace Waste,126,12-Jul-13,1307-00763,491.63,R,Associated Waste Management Limited
http://statistics.data.gov.uk/doc/local-authority/00DA,Leeds City Council,City Development,Economic Development,Premises,Removal Of Workplace Waste,126,15-Jul-13,1307-00764,511.06,R,Associated Waste Management Limited
http://statistics.data.gov.uk/doc/local-authority/00DA,Leeds City Council,City Development,Economic Development,Premises,Removal Of Workplace Waste,126,15-Jul-13,1307-00765,518.29,R,Associated Waste Management Limited
http://statistics.data.gov.uk/doc/local-authority/00DA,Leeds City Council,City Development,Economic Development,Premises,Removal Of Workplace Waste,126,16-Jul-13,1307-00766,564.05,R,Associated Waste Management Limited
http://statistics.data.gov.uk/doc/local-authority/00DA,Leeds City Council,City Development,Economic Development,Premises,Removal Of Workplace Waste,126,26-Jul-13,1307-00767,593.32,R,Associated Waste Management Limited
http://statistics.data.gov.uk/doc/local-authority/00DA,Leeds City Council,City Development,Economic Development,Premises,Removal Of Workplace Waste,126,02-Jul-13,1307-00768,621.06,R,Associated Waste Management Limited
http://statistics.data.gov.uk/doc/local-authority/00DA,Leeds City Council,City Development,Economic Development,Premises,Removal Of Workplace Waste,126,19-Jul-13,1307-00769,634.92,R,Associated Waste Management Limited
http://statistics.data.gov.uk/doc/local-authority/00DA,Leeds City Council,City Development,Highways,Supplies and Services,Recycling & Reuse Charges,234,12-Jul-13,1307-00770,614.18,R,Associated Waste Management Limited
http://statistics.data.gov.uk/doc/local-authority/00DA,Leeds City Council,City Development,Highways,Income,Sale Of Recyclable Materials,915,22-Jul-13,1307-00771,-1491.37,R,Associated Waste Management Limited
http://statistics.data.gov.uk/doc/local-authority/00DA,Leeds City Council,City Development,Highways,Income,Sale Of Recyclable Materials,915,22-Jul-13,1307-00772,-602.03,R,Associated Waste Management Limited
http://statistics.data.gov.uk/doc/local-authority/00DA,Leeds City Council,City Development,Libraries  Arts & Heritage,Premises,Removal Of Workplace Waste,126,30-Jul-13,1307-00773,480,R,Associated Waste Management Limited
http://statistics.data.gov.uk/doc/local-authority/00DA,Leeds City Council,City Development,Support Services,Premises,Removal Of Workplace Waste,126,15-Jul-13,1307-00774,1254.88,R,Associated Waste Management Limited
http://statistics.data.gov.uk/doc/local-authority/00DA,Leeds City Council,Environment & Housing,Parks & Countryside,Premises,Removal Of Workplace Waste,126,02-Jul-13,1307-00775,426,R,Associated Waste Management Limited
http://statistics.data.gov.uk/doc/local-authority/00DA,Leeds City Council,Environment & Housing,Parks & Countryside,Premises,Removal Of Workplace Waste,126,16-Jul-13,1307-00776,426,R,Associated Waste Management Limited
http://statistics.data.gov.uk/doc/local-authority/00DA,Leeds City Council,Environment & Housing,Parks & Countryside,Premises,Removal Of Workplace Waste,126,12-Jul-13,1307-00777,426,R,Associated Waste Management Limited
http://statistics.data.gov.uk/doc/local-authority/00DA,Leeds City Council,Environment & Housing,Parks & Countryside,Premises,Removal Of Workplace Waste,126,18-Jul-13,1307-00778,650,R,Associated Waste Management Limited
http://statistics.data.gov.uk/doc/local-authority/00DA,Leeds City Council,Environment & Housing,Parks & Countryside,Premises,Removal Of Workplace Waste,126,26-Jul-13,1307-00779,833,R,Associated Waste Management Limited
http://statistics.data.gov.uk/doc/local-authority/00DA,Leeds City Council,Environment & Housing,Parks & Countryside,Premises,Removal Of Workplace Waste,126,12-Jul-13,1307-00780,899.27,R,Associated Waste Management Limited
http://statistics.data.gov.uk/doc/local-authority/00DA,Leeds City Council,Environment & Housing,Parks & Countryside,Premises,Removal Of Workplace Waste,126,05-Jul-13,1307-00781,1554.22,R,Associated Waste Management Limited
http://statistics.data.gov.uk/doc/local-authority/00DA,Leeds City Council,Environment & Housing,Statutory Housing,Supplies and Services,Other Hired And Contracted Services,265,01-Jul-13,1307-00782,444,R,Associated Waste Management Limited
http://statistics.data.gov.uk/doc/local-authority/00DA,Leeds City Council,Environment & Housing,Streetscene Environmental Services,Supplies and Services,Waste Disposal Charges,236,16-Jul-13,1307-00783,610.35,R,Associated Waste Management Limited
http://statistics.data.gov.uk/doc/local-authority/00DA,Leeds City Council,Environment & Housing,Streetscene Environmental Services,Supplies and Services,Waste Disposal Charges,236,16-Jul-13,1307-00784,659.54,R,Associated Waste Management Limited
http://statistics.data.gov.uk/doc/local-authority/00DA,Leeds City Council,Environment & Housing,Streetscene Environmental Services,Supplies and Services,Waste Disposal Charges,236,16-Jul-13,1307-00785,667.23,R,Associated Waste Management Limited
http://statistics.data.gov.uk/doc/local-authority/00DA,Leeds City Council,Environment & Housing,Streetscene Environmental Services,Supplies and Services,Waste Disposal Charges,236,16-Jul-13,1307-00786,673.38,R,Associated Waste Management Limited
http://statistics.data.gov.uk/doc/local-authority/00DA,Leeds City Council,Environment & Housing,Streetscene Environmental Services,Supplies and Services,Waste Disposal Charges,236,16-Jul-13,1307-00787,687.22,R,Associated Waste Management Limited
http://statistics.data.gov.uk/doc/local-authority/00DA,Leeds City Council,Environment & Housing,Streetscene Environmental Services,Supplies and Services,Waste Disposal Charges,236,16-Jul-13,1307-00788,697.98,R,Associated Waste Management Limited
http://statistics.data.gov.uk/doc/local-authority/00DA,Leeds City Council,Environment & Housing,Streetscene Environmental Services,Supplies and Services,Waste Disposal Charges,236,16-Jul-13,1307-00789,722.58,R,Associated Waste Management Limited
http://statistics.data.gov.uk/doc/local-authority/00DA,Leeds City Council,Environment & Housing,Streetscene Environmental Services,Supplies and Services,Waste Disposal Charges,236,16-Jul-13,1307-00790,730.27,R,Associated Waste Management Limited
http://statistics.data.gov.uk/doc/local-authority/00DA,Leeds City Council,Environment & Housing,Streetscene Environmental Services,Supplies and Services,Waste Disposal Charges,236,16-Jul-13,1307-00791,770.24,R,Associated Waste Management Limited
http://statistics.data.gov.uk/doc/local-authority/00DA,Leeds City Council,Environment & Housing,Streetscene Environmental Services,Supplies and Services,Waste Disposal Charges,236,23-Jul-13,1307-00792,121470.39,R,Associated Waste Management Limited
http://statistics.data.gov.uk/doc/local-authority/00DA,Leeds City Council,Environment & Housing,Streetscene Environmental Services,Supplies and Services,Waste Disposal Charges,236,29-Jul-13,1307-00793,129132.41,R,Associated Waste Management Limited
http://statistics.data.gov.uk/doc/local-authority/00DA,Leeds City Council,Environment & Housing,Streetscene Environmental Services,Supplies and Services,Waste Disposal Charges,236,02-Jul-13,1307-00794,133174.93,R,Associated Waste Management Limited
http://statistics.data.gov.uk/doc/local-authority/00DA,Leeds City Council,Environment & Housing,Streetscene Environmental Services,Supplies and Services,Waste Disposal Charges,236,22-Jul-13,1307-00795,137963.99,R,Associated Waste Management Limited
http://statistics.data.gov.uk/doc/local-authority/00DA,Leeds City Council,Adult Social Care,Social Services Support Services,Third Party Payments,Payments To Voluntary Organisations,561,01-Jul-13,1307-00796,6279,R,Association Of Blind Asians
http://statistics.data.gov.uk/doc/local-authority/00DA,Leeds City Council,Adult Social Care,Service Strategy,Supplies and Services,Memberships,226,15-Jul-13,1307-00797,1582,R,Association Of Directors Of Adult Social
http://statistics.data.gov.uk/doc/local-authority/00DA,Leeds City Council,Central & Corporate,Support And Facilities General Fund,Employees,Tuition & Course Fees,73,12-Jul-13,1307-00798,482.5,R,Association Of Electoral Administrators
http://statistics.data.gov.uk/doc/local-authority/00DA,East - North East  ,East - North East,Corporate Directorate,Employees,General Training,79,24-Jul-13,1307-00799,600,R,Astra  Access Safety Training Ltd
http://statistics.data.gov.uk/doc/local-authority/00DA,East - North East  ,East - North East,Corporate Directorate,Employees,General Training,79,24-Jul-13,1307-00800,600,R,Astra  Access Safety Training Ltd
http://statistics.data.gov.uk/doc/local-authority/00DA,East - North East  ,East - North East,Corporate Directorate,Employees,General Training,79,24-Jul-13,1307-00801,600,R,Astra  Access Safety Training Ltd
http://statistics.data.gov.uk/doc/local-authority/00DA,East - North East  ,East - North East,Corporate Directorate,Employees,General Training,79,24-Jul-13,1307-00802,600,R,Astra  Access Safety Training Ltd
http://statistics.data.gov.uk/doc/local-authority/00DA,Leeds City Council,Adult Social Care,Services For Older People - 65 And Over,Third Party Payments,Nursing Home,570,03-Jul-13,1307-00803,13011.63,R,Atkinson Court
http://statistics.data.gov.uk/doc/local-authority/00DA,Leeds City Council,Adult Social Care,Services For Older People - 65 And Over,Third Party Payments,Nursing Home,570,31-Jul-13,1307-00804,25243.38,R,Atkinson Court
http://statistics.data.gov.uk/doc/local-authority/00DA,Leeds City Council,Adult Social Care,Services For Older People - 65 And Over,Third Party Payments,Nursing Care Dementia,574,03-Jul-13,1307-00805,7584.22,R,Atkinson Court
http://statistics.data.gov.uk/doc/local-authority/00DA,Leeds City Council,Adult Social Care,Services For Older People - 65 And Over,Third Party Payments,Nursing Care Dementia,574,31-Jul-13,1307-00806,17028.82,R,Atkinson Court
http://statistics.data.gov.uk/doc/local-authority/00DA,Leeds City Council,Adult Social Care,Services For Older People - 65 And Over,Third Party Payments,Residential,580,03-Jul-13,1307-00807,1951.68,R,Atkinson Court
http://statistics.data.gov.uk/doc/local-authority/00DA,Leeds City Council,Adult Social Care,Services For Older People - 65 And Over,Third Party Payments,Residential,580,31-Jul-13,1307-00808,1951.68,R,Atkinson Court
http://statistics.data.gov.uk/doc/local-authority/00DA,Leeds City Council,Central & Corporate,Commercial Services Trading Services,Supplies and Services,Operational Materials,205,19-Jul-13,1307-00809,432.59,R,Atkinsons Fencing Limited
http://statistics.data.gov.uk/doc/local-authority/00DA,Leeds City Council,Central & Corporate,Commercial Services Trading Services,Supplies and Services,Operational Materials,205,26-Jul-13,1307-00810,623.98,R,Atkinsons Fencing Limited
http://statistics.data.gov.uk/doc/local-authority/00DA,Leeds City Council,Childrens Services,Strategy Policy Planning & Participation  ,Supplies and Services,Office Furniture & Equipment,201,24-Jun-13,1307-00811,957.08,R,Atlantic Office
http://statistics.data.gov.uk/doc/local-authority/00DA,Leeds City Council,City Development,Libraries  Arts & Heritage,Supplies and Services,Books & Audio-Visual Materials,206,31-Jul-13,1307-00812,417,R,Audiogo Ltd
http://statistics.data.gov.uk/doc/local-authority/00DA,Leeds City Council,City Development,Libraries  Arts & Heritage,Supplies and Services,Books & Audio-Visual Materials,206,31-Jul-13,1307-00813,456.5,R,Audiogo Ltd
http://statistics.data.gov.uk/doc/local-authority/00DA,Leeds City Council,City Development,Libraries  Arts & Heritage,Supplies and Services,Books & Audio-Visual Materials,206,19-Jul-13,1307-00814,495.6,R,Audiogo Ltd
http://statistics.data.gov.uk/doc/local-authority/00DA,Leeds City Council,City Development,Libraries  Arts & Heritage,Supplies and Services,Books & Audio-Visual Materials,206,17-Jul-13,1307-00815,508.38,R,Audiogo Ltd
http://statistics.data.gov.uk/doc/local-authority/00DA,Leeds City Council,City Development,Libraries  Arts & Heritage,Supplies and Services,Books & Audio-Visual Materials,206,12-Jul-13,1307-00816,649.28,R,Audiogo Ltd
http://statistics.data.gov.uk/doc/local-authority/00DA,Leeds City Council,City Development,Libraries  Arts & Heritage,Supplies and Services,Books & Audio-Visual Materials,206,31-Jul-13,1307-00817,701.25,R,Audiogo Ltd
http://statistics.data.gov.uk/doc/local-authority/00DA,Leeds City Council,Central & Corporate,Audit And Risk,Supplies and Services,Memberships,226,09-Jul-13,1307-00818,2000,R,Audit Commission
http://statistics.data.gov.uk/doc/local-authority/00DA,Leeds City Council,Adult Social Care,Services For Older People - 65 And Over,Transfer Payments,Personalised Budgets,627,03-Jul-13,1307-00819,922.6,R,REDACTED PERSONAL DATA
http://statistics.data.gov.uk/doc/local-authority/00DA,Leeds City Council,Adult Social Care,Services For Older People - 65 And Over,Transfer Payments,Personalised Budgets,627,31-Jul-13,1307-00820,958.4,R,REDACTED PERSONAL DATA
http://statistics.data.gov.uk/doc/local-authority/00DA,Leeds City Council,Adult Social Care,Services For Older People - 65 And Over,Transfer Payments,Personalised Budgets,627,03-Jul-13,1307-00821,958.4,R,REDACTED PERSONAL DATA
http://statistics.data.gov.uk/doc/local-authority/00DA,Leeds City Council as Accountable Body,Social Services Pooled Budgets,Jcs For People With Learning Disabilitie,Third Party Payments,Residential,580,03-Jul-13,1307-00822,8217,R,Autism Care (Uk) Ltd
http://statistics.data.gov.uk/doc/local-authority/00DA,Leeds City Council as Accountable Body,Social Services Pooled Budgets,Jcs For People With Learning Disabilitie,Third Party Payments,Residential,580,31-Jul-13,1307-00823,8217,R,Autism Care (Uk) Ltd
http://statistics.data.gov.uk/doc/local-authority/00DA,Leeds City Council,Childrens Services,Safeguarding Targeted & Specialist,Third Party Payments,SEN Placements,566,12-Jul-13,1307-00824,3028.13,R,Autism Partnership Uk Ltd
http://statistics.data.gov.uk/doc/local-authority/00DA,Leeds City Council,Childrens Services,Safeguarding Targeted & Specialist,Third Party Payments,SEN Placements,566,12-Jul-13,1307-00825,4277,R,Autism Partnership Uk Ltd
http://statistics.data.gov.uk/doc/local-authority/00DA,Leeds City Council,Environment & Housing,Parks & Countryside,Supplies and Services,Other Hired And Contracted Services,265,26-Jul-13,1307-00826,568.04,R,Av Irrigation Ltd
http://statistics.data.gov.uk/doc/local-authority/00DA,Leeds City Council,Environment & Housing,Parks & Countryside,Supplies and Services,Other Hired And Contracted Services,265,31-Jul-13,1307-00827,612.52,R,Av Irrigation Ltd
http://statistics.data.gov.uk/doc/local-authority/00DA,Leeds City Council as Accountable Body,Social Services Pooled Budgets,Jcs For People With Learning Disabilitie,Third Party Payments,Residential,580,19-Jul-13,1307-00828,4642.2,R,Avens Ltd
http://statistics.data.gov.uk/doc/local-authority/00DA,Leeds City Council,Adult Social Care,Services For Older People - 65 And Over,Third Party Payments,Residential Care Dementia,571,31-Jul-13,1307-00829,2387.56,R,REDACTED PERSONAL DATA
http://statistics.data.gov.uk/doc/local-authority/00DA,Leeds City Council as Accountable Body,Social Services Pooled Budgets,Jcs For People With Learning Disabilitie,Third Party Payments,Residential,580,03-Jul-13,1307-00830,4123.12,R,Avon Lodge
http://statistics.data.gov.uk/doc/local-authority/00DA,Leeds City Council as Accountable Body,Social Services Pooled Budgets,Jcs For People With Learning Disabilitie,Third Party Payments,Residential,580,31-Jul-13,1307-00831,4123.12,R,Avon Lodge
http://statistics.data.gov.uk/doc/local-authority/00DA,Leeds City Council,Childrens Services,Learning Skills & Universal,Supplies and Services,Licences,266,17-Jul-13,1307-00832,4550,R,Award Scheme Ltd
http://statistics.data.gov.uk/doc/local-authority/00DA,Leeds City Council,City Development,Asset Management Services,Premises,Rents,141,01-Jul-13,1307-00833,432.63,R,Aws Ltd
http://statistics.data.gov.uk/doc/local-authority/00DA,West - North West,West - North West,Corporate Services,Premises,Cct Contract Cleaning,129,10-Jul-13,1307-00834,561.24,R,Axis Cleaning & Support Services
http://statistics.data.gov.uk/doc/local-authority/00DA,Leeds City Council as Accountable Body,Social Services Pooled Budgets,Jcs For People With Learning Disabilitie,Third Party Payments,Sheltered Accommodation,569,31-Jul-13,1307-00835,4656.36,R,Ayersome Terrace
http://statistics.data.gov.uk/doc/local-authority/00DA,Leeds City Council as Accountable Body,Social Services Pooled Budgets,Jcs For People With Learning Disabilitie,Third Party Payments,Sheltered Accommodation,569,03-Jul-13,1307-00836,4656.36,R,Ayersome Terrace
http://statistics.data.gov.uk/doc/local-authority/00DA,Leeds City Council as Accountable Body,Social Services Pooled Budgets,Jcs For People With Learning Disabilitie,Third Party Payments,Residential,580,31-Jul-13,1307-00837,13798.28,R,Ayersome Terrace
http://statistics.data.gov.uk/doc/local-authority/00DA,Leeds City Council as Accountable Body,Social Services Pooled Budgets,Jcs For People With Learning Disabilitie,Third Party Payments,Residential,580,03-Jul-13,1307-00838,13798.28,R,Ayersome Terrace
http://statistics.data.gov.uk/doc/local-authority/00DA,Leeds City Council,Adult Social Care,Services For Older People - 65 And Over,Transfer Payments,Direct Payments,626,03-Jul-13,1307-00839,673.64,R,REDACTED PERSONAL DATA
http://statistics.data.gov.uk/doc/local-authority/00DA,Leeds City Council,Adult Social Care,Services For Older People - 65 And Over,Transfer Payments,Direct Payments,626,31-Jul-13,1307-00840,673.64,R,REDACTED PERSONAL DATA
http://statistics.data.gov.uk/doc/local-authority/00DA,Leeds City Council,Adult Social Care,Services For Older People Under 65 P/Dis,Transfer Payments,Direct Payments,626,31-Jul-13,1307-00841,721.72,R,REDACTED PERSONAL DATA
http://statistics.data.gov.uk/doc/local-authority/00DA,Leeds City Council as Accountable Body,Social Services Pooled Budgets,Jcs For People With Learning Disabilitie,Transfer Payments,Personal Budgets,627,03-Jul-13,1307-00842,487.52,R,REDACTED PERSONAL DATA
http://statistics.data.gov.uk/doc/local-authority/00DA,Leeds City Council as Accountable Body,Social Services Pooled Budgets,Jcs For People With Learning Disabilitie,Transfer Payments,Personal Budgets,627,31-Jul-13,1307-00843,487.52,R,REDACTED PERSONAL DATA
http://statistics.data.gov.uk/doc/local-authority/00DA,Leeds City Council,Environment & Housing,Environmental Health,Capital,Construction,3,11-Jul-13,1307-00844,1513.1,C,B & K Passmore
http://statistics.data.gov.uk/doc/local-authority/00DA,Leeds City Council,Environment & Housing,Environmental Health,Capital,Construction,3,18-Jul-13,1307-00845,2890,C,B & K Passmore
http://statistics.data.gov.uk/doc/local-authority/00DA,Leeds City Council,Environment & Housing,Environmental Health,Capital,Construction,3,05-Jul-13,1307-00846,3219.85,C,B & K Passmore
http://statistics.data.gov.uk/doc/local-authority/00DA,Leeds City Council,Environment & Housing,Environmental Health,Capital,Construction,3,19-Jul-13,1307-00847,4150,C,B & K Passmore
http://statistics.data.gov.uk/doc/local-authority/00DA,Leeds City Council,Environment & Housing,Environmental Health,Capital,Construction,3,24-Jul-13,1307-00848,4150,C,B & K Passmore
http://statistics.data.gov.uk/doc/local-authority/00DA,Leeds City Council,Environment & Housing,Environmental Health,Capital,Construction,3,03-Jul-13,1307-00849,4150,C,B & K Passmore
http://statistics.data.gov.uk/doc/local-authority/00DA,Leeds City Council,Environment & Housing,Environmental Health,Capital,Construction,3,31-Jul-13,1307-00850,4150,C,B & K Passmore
http://statistics.data.gov.uk/doc/local-authority/00DA,Leeds City Council,Environment & Housing,Environmental Health,Capital,Construction,3,24-Jul-13,1307-00851,4150,C,B & K Passmore
http://statistics.data.gov.uk/doc/local-authority/00DA,Leeds City Council,Environment & Housing,Environmental Health,Capital,Construction,3,19-Jul-13,1307-00852,4150,C,B & K Passmore
http://statistics.data.gov.uk/doc/local-authority/00DA,Leeds City Council,Environment & Housing,Environmental Health,Capital,Construction,3,10-Jul-13,1307-00853,4150,C,B & K Passmore
http://statistics.data.gov.uk/doc/local-authority/00DA,Leeds City Council,Environment & Housing,Environmental Health,Capital,Construction,3,18-Jul-13,1307-00854,4150,C,B & K Passmore
http://statistics.data.gov.uk/doc/local-authority/00DA,Leeds City Council,Environment & Housing,Environmental Health,Capital,Construction,3,19-Jul-13,1307-00855,4150,C,B & K Passmore
http://statistics.data.gov.uk/doc/local-authority/00DA,Leeds City Council,Environment & Housing,Environmental Health,Capital,Construction,3,10-Jul-13,1307-00856,4150,C,B & K Passmore
http://statistics.data.gov.uk/doc/local-authority/00DA,Leeds City Council,Environment & Housing,Environmental Health,Capital,Construction,3,19-Jul-13,1307-00857,4150,C,B & K Passmore
http://statistics.data.gov.uk/doc/local-authority/00DA,Leeds City Council,Environment & Housing,Environmental Health,Capital,Construction,3,22-Jul-13,1307-00858,4150,C,B & K Passmore
http://statistics.data.gov.uk/doc/local-authority/00DA,Leeds City Council,Environment & Housing,Environmental Health,Capital,Construction,3,19-Jul-13,1307-00859,4422,C,B & K Passmore
http://statistics.data.gov.uk/doc/local-authority/00DA,Leeds City Council,Environment & Housing,Environmental Health,Capital,Construction,3,24-Jul-13,1307-00860,4720,C,B & K Passmore
http://statistics.data.gov.uk/doc/local-authority/00DA,Leeds City Council,Childrens Services,Learning Skills & Universal,Supplies and Services,Bought In Professional Services,277,26-Jul-13,1307-00861,4000,R,B11 Education Ltd
http://statistics.data.gov.uk/doc/local-authority/00DA,Leeds City Council,Childrens Services,Partnership Development & Leadership,Employees,Training Costs,71,19-Jul-13,1307-00862,636,R,Baaf Registered Charity
http://statistics.data.gov.uk/doc/local-authority/00DA,Leeds City Council,Central & Corporate,Corporate Governance,Supplies and Services,Office Furniture & Equipment,201,25-Jul-13,1307-00863,471.99,R,Back Care Solutions Ltd
http://statistics.data.gov.uk/doc/local-authority/00DA,Leeds City Council,Central & Corporate Functions,Corporate Services Support Services  ,Supplies and Services,Office Furniture & Equipment,201,11-Jun-13,1307-00864,716.45,R,Backcare Solutions Ltd
http://statistics.data.gov.uk/doc/local-authority/00DA,Aire Valley Homes Leeds,Aire Valley Homes Leeds,S. Offices,Employees,Temporary Staff-Basic,9,19-Jul-13,1307-00865,518.4,R,Badenoch & Clark Ltd
http://statistics.data.gov.uk/doc/local-authority/00DA,Aire Valley Homes Leeds,Aire Valley Homes Leeds,S. Offices,Employees,Temporary Staff-Basic,9,23-Jul-13,1307-00866,532.8,R,Badenoch & Clark Ltd
http://statistics.data.gov.uk/doc/local-authority/00DA,West - North West,West - North West,Customer And Tenancy,Employees,Temporary Staff-Basic,9,05-Jul-13,1307-00867,453.06,R,Badenoch & Clark Ltd
http://statistics.data.gov.uk/doc/local-authority/00DA,Leeds City Council,Environment & Housing,Statutory Housing,Supplies and Services,Other Hired And Contracted Services,265,26-Jul-13,1307-00868,600,R,Bahadar Singh & Rk Matu
http://statistics.data.gov.uk/doc/local-authority/00DA,Leeds City Council,City Development,Libraries  Arts & Heritage,Supplies and Services,Art Galleries Total Stores,3,29-Jul-13,1307-00869,426.07,R,Baker & Taylor (Uk) Ltd
http://statistics.data.gov.uk/doc/local-authority/00DA,Leeds City Council,City Development,Libraries  Arts & Heritage,Supplies and Services,Art Galleries Total Stores,3,29-Jul-13,1307-00870,755.47,R,Baker & Taylor (Uk) Ltd
http://statistics.data.gov.uk/doc/local-authority/00DA,Leeds City Council,City Development,Libraries  Arts & Heritage,Supplies and Services,Art Galleries Total Stores,3,29-Jul-13,1307-00871,760.73,R,Baker & Taylor (Uk) Ltd
http://statistics.data.gov.uk/doc/local-authority/00DA,Leeds City Council,City Development,Libraries  Arts & Heritage,Supplies and Services,Art Galleries Total Stores,3,29-Jul-13,1307-00872,973.44,R,Baker & Taylor (Uk) Ltd
http://statistics.data.gov.uk/doc/local-authority/00DA,Leeds City Council,City Development,Recreation  ,Supplies and Services,Operational Materials,205,21-Jun-13,1307-00873,1208.6,R,Ball Colegrave Ltd
http://statistics.data.gov.uk/doc/local-authority/00DA,Leeds City Council,City Development,Libraries  Arts & Heritage,Supplies and Services,Art Galleries Total Stores,3,05-Jul-13,1307-00874,498.69,R,Ballancourt Ltd
http://statistics.data.gov.uk/doc/local-authority/00DA,Leeds City Council,City Development,Recreation  ,Transport,Hire of Movable Plant & Machinery,315,26-Jun-13,1307-00875,960,R,Balmers Gm Limited
http://statistics.data.gov.uk/doc/local-authority/00DA,Leeds City Council,City Development,Recreation  ,Transport,Hire of Movable Plant & Machinery,315,26-Jun-13,1307-00876,1824,R,Balmers Gm Limited
